Workbook

Sheet EventConfig
A1: ID | B1: EventLinksId | C1: EventTriggerType | D1: EventTag | E1: EventType | F1: Score | G1: EventQuality | H1: PrizeType | I1: PrizeIDs | J1: PrizeNums | K1: RefreshProbability | L1: RefreshCount | M1: placeID | N1: XiantuID | O1: =SUMIF(C:C,2,K:K) -> 0 | P1: EventConditionId | Q1: EventValue | R1: EventCount | S1: EventName | T1: Description
A2: int | B2: int[] | C2: int | D2: int | E2: int | F2: int | G2: int | H2: int[] | I2: int[] | J2: int[] | K2: int | L2: int | M2: int | N2: int | P2: int | Q2: int[] | R2: int | S2: int | T2: int
X3: 1 | Y3: 2 | Z3: 3 | AA3: 4 | AB3: 5 | AC3: 6 | AD3: 7 | AE3: 8 | AF3: 9 | AG3: 10 | AH3: 11 | AI3: 12 | AJ3: 13 | AK3: 14 | AL3: 15 | AM3: 16 | AN3: 17 | AO3: 18 | AP3: 19 | AQ3: 20
A4: ID | B4: 事件包含的ID | C4: 事件类型： 1.通用事件 2.挂机事件 4.主线任务 5.仙山探险 6.支线事件 99.无标记 | D4: tag 1主线2支线 3通用 4地图通用 5道友6任务 7资源 | E4: 1.正常触发 2.直接结算 | F4: 增加进度值 | G4: 事件品质 | H4: 产出tag 在辅助表查询 | I4: 事件结局奖励 | J4: 事件结局奖励数量 | K4: 刷新的概率 （100=100%） | L4: 最大刷新数量 | M4: 属于哪张地图 | N4: 仙途日志ID | O4: 触发条件 | P4: 触发条件类型 只能配处于什么状态和数值，不能配变化的数值 | Q4: 触发效果值 | R4: 触发判定数量or次数 | S4: 任务标题 | T4: 任务详情界面的总描述 | U4: 标题 | V4: 整体描述 | W4: 总步数 | X4: 步骤1 | Y4: 步骤2 | Z4: 步骤3 | AA4: 步骤4 | AB4: 步骤5 | AC4: 步骤6 | AD4: 步骤7 | AE4: 步骤8 | AF4: 步骤9 | AG4: 步骤10 | AH4: 步骤11 | AI4: 步骤12 | AJ4: 步骤13 | AK4: 步骤14 | AL4: 步骤15 | AM4: 步骤16 | AN4: 步骤17 | AO4: 步骤18 | AP4: 步骤19 | AQ4: 步骤20 | AR4: 道具1 | AS4: 数量1 | AT4: 道具2 | AU4: 数量2
A5: 1 | B5: =IF(A5="","",_xlfn.TEXTJOIN(";",1,X5:AQ5,102)) -> 1001;1002;1003;1004;1005;100;102 | C5: 1 | D5: 7 | E5: 1 | F5: 0 | G5: 1 | H5: 5 | I5: =_xlfn.TEXTJOIN(";",1,AR5,AT5) -> 1003;999001 | J5: =_xlfn.TEXTJOIN(";",1,AS5,AU5) -> -1000;1 | K5: 100 | O5: =IF(P5="","",VLOOKUP(P5,条件类型查询!A:B,2,FALSE)) ->  | S5: 174 | T5: 1936 | U5: 受伤的狼 | V5: 你发现一只奄奄一息的狼，决定上前一探究竟。 | W5: =COUNTIF(EventLinkConfig!O:O,EventConfig!A5) -> 5 | X5: 1001 | Y5: 1002 | Z5: 1003 | AA5: 1004 | AB5: 1005 | AQ5: 100 | AR5: 1003 | AS5: -1000 | AT5: 999001 | AU5: 1
A6: 2 | B6: =IF(A6="","",_xlfn.TEXTJOIN(";",1,X6:AQ6,102)) -> 1010;1011;1012;1013;1014;1015;1016;100;102 | C6: 1 | D6: 7 | E6: 1 | F6: 0 | G6: 1 | H6: 6 | I6: =_xlfn.TEXTJOIN(";",1,AR6,AT6) -> 1003;999002 | J6: =_xlfn.TEXTJOIN(";",1,AS6,AU6) -> -1000;1 | K6: 100 | O6: =IF(P6="","",VLOOKUP(P6,条件类型查询!A:B,2,FALSE)) ->  | S6: 175 | T6: 1937 | U6: 鹬蚌相争 | V6: 附近的小树林闹的不可开交，你决定去看看怎么回事。 | W6: =COUNTIF(EventLinkConfig!O:O,EventConfig!A6) -> 6 | X6: 1010 | Y6: 1011 | Z6: 1012 | AA6: 1013 | AB6: 1014 | AC6: 1015 | AD6: 1016 | AQ6: 100 | AR6: 1003 | AS6: -1000 | AT6: 999002 | AU6: 1
A7: 4 | B7: 1030;100;102 | C7: 1 | D7: 7 | E7: 2 | F7: 0 | G7: 1 | H7: 1 | I7: 1003;1001 | J7: -1000;-5000 | K7: 100 | O7: =IF(P7="","",VLOOKUP(P7,条件类型查询!A:B,2,FALSE)) ->  | S7: 217 | T7: 1939 | U7: 溅血背包 | V7: 不远处有一个小红点，走近一看你发现是一个带血的背包。 | W7: =COUNTIF(EventLinkConfig!O:O,EventConfig!A7) -> 1 | X7: 1030 | AQ7: 100 | AR7: 1003 | AS7: -1000 | AT7: 1001 | AU7: -5000
A8: 5 | B8: 1040;100;102 | C8: 1 | D8: 7 | E8: 2 | F8: 0 | G8: 1 | H8: 2 | I8: 1003;1005 | J8: -1000;-5000 | K8: 100 | O8: =IF(P8="","",VLOOKUP(P8,条件类型查询!A:B,2,FALSE)) ->  | S8: 218 | T8: 1940 | U8: 废弃矿山 | V8: 底下一座矿山甚是磅礴雄伟，走，去看一看。 | W8: =COUNTIF(EventLinkConfig!O:O,EventConfig!A8) -> 1 | X8: 1040 | AQ8: 100 | AR8: 1003 | AS8: -1000 | AT8: 1005 | AU8: -5000
A9: 6 | B9: 1050;100;102 | C9: 1 | D9: 7 | E9: 2 | F9: 0 | G9: 1 | H9: 3 | I9: 1003;1006 | J9: -1000;-5000 | K9: 100 | O9: =IF(P9="","",VLOOKUP(P9,条件类型查询!A:B,2,FALSE)) ->  | S9: 219 | T9: 1941 | U9: 吵架声 | V9: 你被一男一女的吵架声吸引。 | W9: =COUNTIF(EventLinkConfig!O:O,EventConfig!A9) -> 1 | X9: 1050 | AQ9: 100 | AR9: 1003 | AS9: -1000 | AT9: 1006 | AU9: -5000
A10: 7 | B10: 1060;100;102 | C10: 1 | D10: 7 | E10: 2 | F10: 0 | G10: 1 | H10: 4 | I10: 1003;999001 | J10: -1000;1 | K10: 100 | O10: =IF(P10="","",VLOOKUP(P10,条件类型查询!A:B,2,FALSE)) ->  | S10: 220 | T10: 1942 | U10: 一座道观 | V10: 远处一座道观仙气缭绕，似有仙人在此。 | W10: =COUNTIF(EventLinkConfig!O:O,EventConfig!A10) -> 1 | X10: 1060 | AQ10: 100 | AR10: 1003 | AS10: -1000 | AT10: 999001 | AU10: 1
A11: 1011 | B11: =IF(A11="","",_xlfn.TEXTJOIN(";",1,X11:AQ11,102)) -> 101101;100;102 | C11: 1 | D11: 7 | E11: 1 | F11: 0 | G11: 1 | H11: 7 | I11: 1003;999002 | J11: -1000;1 | K11: 100 | S11: 3017 | T11: 3018 | U11: 药田 | V11: 神识探索至一处山洞之中，似乎别有洞天 | W11: =COUNTIF(EventLinkConfig!O:O,EventConfig!A11) -> 1 | X11: =IF($W11>=X$3,$A11*100+X$3,"") -> 101101 | AQ11: 100 | AR11: 1003 | AS11: -1000 | AT11: 999002 | AU11: 1
A12: 1012 | B12: 101201;100;102 | C12: 1 | D12: 7 | E12: 1 | F12: 0 | G12: 3 | H12: 7 | I12: 1003;1001 | J12: -1000;-5000 | K12: 100 | S12: 3038 | T12: 3039 | U12: 矿井 | V12: 神识探索至一处矿井之中，此处灵气氤氲 | W12: =COUNTIF(EventLinkConfig!O:O,EventConfig!A12) -> 1 | X12: 101201 | AQ12: 100 | AR12: 1003 | AS12: -1000 | AT12: 1001 | AU12: -5000
A13: 1013 | B13: 101301;100;102 | C13: 1 | D13: 7 | E13: 1 | F13: 0 | G13: 3 | H13: 7 | I13: 1003;1005 | J13: -1000;-5000 | K13: 100 | S13: 3040 | T13: 3041 | U13: 寺庙 | V13: 神识经过一处荒废寺庙之外，寺庙之中似乎有不同寻常之物 | W13: =COUNTIF(EventLinkConfig!O:O,EventConfig!A13) -> 1 | X13: 101301 | AQ13: 100 | AR13: 1003 | AS13: -1000 | AT13: 1005 | AU13: -5000
A14: 1014 | B14: 101401;100;102 | C14: 1 | D14: 7 | E14: 1 | F14: 0 | G14: 3 | H14: 7 | I14: 1003;1006 | J14: -1000;-5000 | K14: 100 | S14: 3042 | T14: 3043 | U14: 洞府遗址 | V14: 神识至一处灵气充盈之地，似乎是处洞府 | W14: =COUNTIF(EventLinkConfig!O:O,EventConfig!A14) -> 1 | X14: 101401 | AQ14: 100 | AR14: 1003 | AS14: -1000 | AT14: 1006 | AU14: -5000
A15: 1015 | B15: 101501;101502;100;102 | C15: 1 | D15: 7 | E15: 1 | F15: 0 | G15: 1 | H15: 8 | I15: 1003;999001 | J15: -1000;1 | K15: 100 | S15: 3046 | T15: 3047 | U15: 拦路山贼 | V15: 一个不知好歹的山贼拦住了你的去路 | W15: =COUNTIF(EventLinkConfig!O:O,EventConfig!A15) -> 2 | X15: 101501 | Y15: 101502 | AQ15: 100 | AR15: 1003 | AS15: -1000 | AT15: 999001 | AU15: 1
A16: 1016 | B16: 101601;101602;100;102 | C16: 1 | D16: 7 | E16: 1 | F16: 0 | G16: 1 | H16: 8 | I16: 1003;999002 | J16: -1000;1 | K16: 100 | S16: 3048 | T16: 3049 | U16: 丢袈裟的和尚 | V16: 一位和尚叫住了你，似乎有什么急事 | W16: =COUNTIF(EventLinkConfig!O:O,EventConfig!A16) -> 2 | X16: 101601 | Y16: 101602 | AQ16: 100 | AR16: 1003 | AS16: -1000 | AT16: 999002 | AU16: 1
A17: 1017 | B17: 101701;100;102 | C17: 1 | D17: 7 | E17: 1 | F17: 0 | G17: 1 | H17: 8 | I17: 1003;1001 | J17: -1000;-5000 | K17: 100 | P17: 10 | Q17: 30009 | S17: 3048 | T17: 3050 | U17: 丢袈裟的和尚 | V17: 将袈裟还给和尚 | W17: =COUNTIF(EventLinkConfig!O:O,EventConfig!A17) -> 1 | X17: 101701 | AQ17: 100 | AR17: 1003 | AS17: -1000 | AT17: 1001 | AU17: -5000
A18: 1018 | B18: 101801;101802;101803;101804;100;102 | C18: 1 | D18: 7 | E18: 1 | F18: 0 | G18: 1 | H18: 8 | I18: 1003;1005 | J18: -1000;-5000 | K18: 100 | S18: 3051 | T18: 3052 | U18: 云游修士 | V18: 一名云游修士前来问道 | W18: =COUNTIF(EventLinkConfig!O:O,EventConfig!A18) -> 4 | X18: 101801 | Y18: 101802 | Z18: 101803 | AA18: 101804 | AQ18: 100 | AR18: 1003 | AS18: -1000 | AT18: 1005 | AU18: -5000
A19: 1019 | B19: 101901;101902;101903;100;102 | C19: 1 | D19: 7 | E19: 1 | F19: 0 | G19: 1 | H19: 9 | I19: 1003;1006 | J19: -1000;-5000 | K19: 100 | S19: 3053 | T19: 3054 | U19: 镇压妖王 | V19: 逍遥宗长老前来求教 | W19: =COUNTIF(EventLinkConfig!O:O,EventConfig!A19) -> 3 | X19: 101901 | Y19: 101902 | Z19: 101903 | AQ19: 100 | AR19: 1003 | AS19: -1000 | AT19: 1006 | AU19: -5000
A20: 1020 | B20: 102001;102002;100;102 | C20: 1 | D20: 7 | E20: 1 | F20: 0 | G20: 1 | H20: 9 | I20: 1003;999001 | J20: -1000;1 | K20: 100 | S20: 3055 | T20: 3056 | U20: 清剿妖兽 | V20: 妖兽入侵了村子，消灭掉它们 | W20: =COUNTIF(EventLinkConfig!O:O,EventConfig!A20) -> 2 | X20: 102001 | Y20: 102002 | AQ20: 100 | AR20: 1003 | AS20: -1000 | AT20: 999001 | AU20: 1
A21: 1021 | B21: 102101;102102;102103;100;102 | C21: 1 | D21: 7 | E21: 1 | F21: 0 | G21: 1 | H21: 9 | I21: 1003;999002 | J21: -1000;1 | K21: 100 | S21: 3057 | T21: 3058 | U21: 失窃的琉璃盏 | V21: 琉璃盏被妖兽盗窃，前去寻回 | W21: =COUNTIF(EventLinkConfig!O:O,EventConfig!A21) -> 3 | X21: =IF($W21>=X$3,$A21*100+X$3,"") -> 102101 | Y21: 102102 | Z21: 102103 | AQ21: 100 | AR21: 1003 | AS21: -1000 | AT21: 999002 | AU21: 1
A22: 1022 | B22: 102201;102202;102203;102204;102205;102206;102207;100;102 | C22: 1 | D22: 7 | E22: 1 | F22: 0 | G22: 1 | H22: 10 | I22: 1003;1001 | J22: -1000;-5000 | K22: 100 | S22: 3059 | T22: 3060 | U22: 论道何长 | V22: 明镜道长前来论道 | W22: =COUNTIF(EventLinkConfig!O:O,EventConfig!A22) -> 7 | X22: 102201 | Y22: 102202 | Z22: 102203 | AA22: 102204 | AB22: 102205 | AC22: 102206 | AD22: 102207 | AQ22: 100 | AR22: 1003 | AS22: -1000 | AT22: 1001 | AU22: -5000
A23: 1023 | B23: 102301;102302;102303;100;102 | C23: 1 | D23: 7 | E23: 1 | F23: 0 | G23: 1 | H23: 10 | I23: 1003;1005 | J23: -1000;-5000 | K23: 100 | S23: 3061 | T23: 3062 | U23: 炼丹药童 | V23: 炼丹药童前来询问丹药 | W23: =COUNTIF(EventLinkConfig!O:O,EventConfig!A23) -> 3 | X23: 102301 | Y23: 102302 | Z23: 102303 | AQ23: 100 | AR23: 1003 | AS23: -1000 | AT23: 1005 | AU23: -5000
A24: 1024 | B24: 102401;102402;102403;100;102 | C24: 1 | D24: 7 | E24: 1 | F24: 0 | G24: 1 | H24: 11 | I24: 1003;1006 | J24: -1000;-5000 | K24: 100 | S24: 3063 | T24: 3064 | U24: 风无咎前来切磋 | V24: 风无咎前来与你武艺论道 | W24: =COUNTIF(EventLinkConfig!O:O,EventConfig!A24) -> 3 | X24: 102401 | Y24: 102402 | Z24: 102403 | AQ24: 100 | AR24: 1003 | AS24: -1000 | AT24: 1006 | AU24: -5000
A25: 1025 | B25: 102501;102502;102503;100;102 | C25: 1 | D25: 7 | E25: 1 | F25: 0 | G25: 1 | H25: 1 | I25: 1003;1002 | J25: -1000;100 | K25: 100 | S25: 3065 | T25: 3066 | U25: 魔族来犯 | V25: 与魔族交涉 | W25: =COUNTIF(EventLinkConfig!O:O,EventConfig!A25) -> 3 | X25: 102501 | Y25: 102502 | Z25: 102503 | AQ25: 100 | AR25: 1003 | AS25: -1000 | AT25: 1002 | AU25: 100
A26: 1026 | B26: 102601;102602;100;102 | C26: 1 | D26: 7 | E26: 1 | F26: 0 | G26: 1 | H26: 2 | I26: 1003;1004 | J26: -1000;10 | K26: 100 | S26: 3067 | T26: 3068 | U26: 妖族入侵 | V26: 击败妖族 | W26: =COUNTIF(EventLinkConfig!O:O,EventConfig!A26) -> 2 | X26: 102601 | Y26: 102602 | AQ26: 100 | AR26: 1003 | AS26: -1000 | AT26: 1004 | AU26: 10
A27: 1027 | B27: 102701;102702;100;102 | C27: 1 | D27: 7 | E27: 1 | F27: 0 | G27: 1 | H27: 3 | I27: 1003;1501 | J27: -1000;1 | K27: 100 | S27: 3069 | T27: 3070 | U27: 北海危机 | V27: 击败拦路妖兽 | W27: =COUNTIF(EventLinkConfig!O:O,EventConfig!A27) -> 2 | X27: 102701 | Y27: 102702 | AQ27: 100 | AR27: 1003 | AS27: -1000 | AT27: 1501 | AU27: 1
A28: 1028 | B28: 102801;102802;102803;102804;102805;100;102 | C28: 1 | D28: 7 | E28: 1 | F28: 0 | G28: 1 | H28: 4 | I28: 1003;1601 | J28: -1000;1 | K28: 100 | S28: 3071 | T28: 3072 | U28: 保护北海 | V28: 击败入侵妖兽 | W28: =COUNTIF(EventLinkConfig!O:O,EventConfig!A28) -> 5 | X28: 102801 | Y28: 102802 | Z28: 102803 | AA28: 102804 | AB28: 102805 | AQ28: 100 | AR28: 1003 | AS28: -1000 | AT28: 1601 | AU28: 1
A29: 1029 | B29: 102901;102902;102903;102904;102905;102906;102907;102908;100;102 | C29: 1 | D29: 7 | E29: 1 | F29: 0 | G29: 1 | H29: 7 | I29: 1003;21012 | J29: -1000;1 | K29: 100 | S29: 3073 | T29: 3074 | U29: 境明论道 | V29: 境明道长邀请你与其论道 | W29: =COUNTIF(EventLinkConfig!O:O,EventConfig!A29) -> 8 | X29: 102901 | Y29: 102902 | Z29: 102903 | AA29: 102904 | AB29: 102905 | AC29: 102906 | AD29: 102907 | AE29: 102908 | AQ29: 100 | AR29: 1003 | AS29: -1000 | AT29: 21012 | AU29: 1
A30: 1030 | B30: 103001;103002;103003;103004;103005;103006;103007;100;102 | C30: 1 | D30: 7 | E30: 1 | F30: 0 | G30: 1 | H30: 8 | I30: 1003;21013 | J30: -1000;1 | K30: 100 | S30: 3075 | T30: 3076 | U30: 听经习道 | V30: 前去寺庙之中听经 | W30: =COUNTIF(EventLinkConfig!O:O,EventConfig!A30) -> 7 | X30: 103001 | Y30: 103002 | Z30: 103003 | AA30: 103004 | AB30: 103005 | AC30: 103006 | AD30: 103007 | AQ30: 100 | AR30: 1003 | AS30: -1000 | AT30: 21013 | AU30: 1
A31: 1031 | B31: 103101;103102;103103;103104;103105;100;102 | C31: 1 | D31: 7 | E31: 1 | F31: 0 | G31: 1 | H31: 9 | I31: 1003;1002 | J31: -1000;50 | K31: 100 | S31: 3077 | T31: 3074 | U31: 境明论道二 | V31: 境明道长邀请你与其论道 | W31: =COUNTIF(EventLinkConfig!O:O,EventConfig!A31) -> 5 | X31: 103101 | Y31: 103102 | Z31: 103103 | AA31: 103104 | AB31: 103105 | AQ31: 100 | AR31: 1003 | AS31: -1000 | AT31: 1002 | AU31: 50
C33: 2 | D33: 3 | E33: 1 | F33: 0 | G33: 1 | I33: =_xlfn.TEXTJOIN(";",1,AR33,AT33) -> 1003 | J33: =_xlfn.TEXTJOIN(";",1,AS33,AU33) -> -5 | U33: 挂机1 | V33: 修为 | W33: =COUNTIF(EventLinkConfig!O:O,EventConfig!A33) -> 0 | X33: =IF($W33>=X$3,$A33*100+X$3,"") ->  | AQ33: 100 | AR33: 1003 | AS33: -5
C34: 2 | D34: 3 | E34: 1 | F34: 0 | G34: 1 | I34: =_xlfn.TEXTJOIN(";",1,AR34,AT34) -> 1005 | J34: =_xlfn.TEXTJOIN(";",1,AS34,AU34) -> -5 | U34: 挂机2 | V34: 灵气 | W34: =COUNTIF(EventLinkConfig!O:O,EventConfig!A34) -> 0 | AQ34: 100 | AR34: 1005 | AS34: -5
C35: 2 | D35: 3 | E35: 1 | F35: 0 | G35: 1 | I35: 1006 | J35: -5 | U35: 挂机3 | V35: 玄晶 | W35: =COUNTIF(EventLinkConfig!O:O,EventConfig!A35) -> 0 | AQ35: 100 | AR35: 1006 | AS35: -5
C36: 2 | D36: 3 | E36: 1 | F36: 0 | G36: 1 | I36: 1001 | J36: -5 | U36: 挂机4 | V36: 灵石 | W36: =COUNTIF(EventLinkConfig!O:O,EventConfig!A36) -> 0 | AQ36: 100 | AR36: 1001 | AS36: -5
C37: 2 | D37: 3 | E37: 1 | F37: 0 | G37: 1 | I37: 1001 | J37: -5 | U37: 挂机5 | V37: 神识丹 | W37: =COUNTIF(EventLinkConfig!O:O,EventConfig!A37) -> 0 | AQ37: 100 | AR37: 1001 | AS37: -5
B38: =IF(A38="","",_xlfn.TEXTJOIN(";",1,X38:AQ38,102)) ->  | C38: 2 | D38: 3 | E38: 1 | F38: 0 | G38: 1 | I38: 1001 | J38: -5 | U38: 挂机6 | V38: 妖丹 | W38: =COUNTIF(EventLinkConfig!O:O,EventConfig!A38) -> 0 | AQ38: 100 | AR38: 1001 | AS38: -5
O39: =IF(P39="","",VLOOKUP(P39,条件类型查询!A:B,2,FALSE)) -> 
A40: 10001 | B40: 1000101;1000102;1000103;1000104;102 | C40: 4 | D40: 1 | E40: 1 | F40: 10 | G40: 1 | I40: 1701;1401 | J40: 1;2 | M40: 1 | N40: 1 | O40: =IF(P40="","",VLOOKUP(P40,条件类型查询!A:B,2,FALSE)) ->  | S40: 1906 | T40: 1914 | U40: 鲲鹏何在 | V40: 神识未灭 | W40: =COUNTIF(EventLinkConfig!O:O,EventConfig!A40) -> 4 | X40: =IF($W40>=X$3,$A40*100+X$3,"") -> 1000101 | Y40: 1000102 | Z40: 1000103 | AA40: 1000104
A41: 10002 | B41: 1000201;1000202;1000203;102 | C41: 4 | D41: 1 | E41: 1 | F41: 10 | G41: 1 | I41: 1701;1401 | J41: 1;2 | M41: 1 | N41: 1 | O41: =IF(P41="","",VLOOKUP(P41,条件类型查询!A:B,2,FALSE)) ->  | S41: 1907 | T41: 1915 | U41: 北海迷径1 | V41: 御剑而行 | W41: =COUNTIF(EventLinkConfig!O:O,EventConfig!A41) -> 3 | X41: 1000201 | Y41: 1000202 | Z41: 1000203
A42: 10003 | B42: 1000301;1000302;1000303;1000304;1000305;1000306;1000307;1000308;1000309;102 | C42: 4 | D42: 1 | E42: 1 | F42: 10 | G42: 1 | I42: 1701;1401 | J42: 1;2 | M42: 1 | N42: 1 | O42: =IF(P42="","",VLOOKUP(P42,条件类型查询!A:B,2,FALSE)) ->  | S42: 1908 | T42: 1916 | U42: 北海迷径2 | V42: 雀笑大鹏 | W42: =COUNTIF(EventLinkConfig!O:O,EventConfig!A42) -> 9 | X42: 1000301 | Y42: 1000302 | Z42: 1000303 | AA42: 1000304 | AB42: 1000305 | AC42: 1000306 | AD42: 1000307 | AE42: 1000308 | AF42: 1000309
A43: 10004 | B43: 1000401;1000402;1000403;1000404;102 | C43: 4 | D43: 1 | E43: 1 | F43: 10 | G43: 1 | I43: 1701;1401 | J43: 1;2 | M43: 1 | N43: 1 | O43: =IF(P43="","",VLOOKUP(P43,条件类型查询!A:B,2,FALSE)) ->  | S43: 1909 | T43: 1917 | U43: 古径阵法 | V43: 击败结界兽 | W43: =COUNTIF(EventLinkConfig!O:O,EventConfig!A43) -> 4 | X43: 1000401 | Y43: 1000402 | Z43: 1000403 | AA43: 1000404
A44: 10005 | B44: 1000501;1000502;1000503;1000504;1000505;1000506;1000507;1000508;1000509;1000510;1000511;1000512;1000513;1000514;102 | C44: 4 | D44: 1 | E44: 1 | F44: 10 | G44: 1 | I44: 1701;1401 | J44: 1;2 | M44: 1 | N44: 1 | O44: =IF(P44="","",VLOOKUP(P44,条件类型查询!A:B,2,FALSE)) ->  | S44: 2135 | T44: 2137 | U44: 浮空之岛1 | V44: 初见疯道人 | W44: =COUNTIF(EventLinkConfig!O:O,EventConfig!A44) -> 14 | X44: 1000501 | Y44: 1000502 | Z44: 1000503 | AA44: 1000504 | AB44: 1000505 | AC44: 1000506 | AD44: 1000507 | AE44: 1000508 | AF44: 1000509 | AG44: 1000510 | AH44: 1000511 | AI44: 1000512 | AJ44: 1000513 | AK44: 1000514
A45: 10006 | B45: 1000601;1000602;1000603;1000604;1000605;1000606;102 | C45: 4 | D45: 1 | E45: 1 | F45: 10 | G45: 1 | I45: 1701;1401 | J45: 2;2 | L45: 11 | M45: 1 | N45: 1 | O45: =IF(P45="","",VLOOKUP(P45,条件类型查询!A:B,2,FALSE)) ->  | S45: 2136 | T45: 2138 | U45: 浮空之岛2 | V45: 筑基中期 | W45: =COUNTIF(EventLinkConfig!O:O,EventConfig!A45) -> 6 | X45: 1000601 | Y45: 1000602 | Z45: 1000603 | AA45: 1000604 | AB45: 1000605 | AC45: 1000606
A46: 10007 | B46: 1000701;1000702;1000703;1000704;1000705;102 | C46: 4 | D46: 1 | E46: 1 | F46: 10 | G46: 1 | I46: 1701;1401 | J46: 2;2 | M46: 1 | N46: 1 | O46: =IF(P46="","",VLOOKUP(P46,条件类型查询!A:B,2,FALSE)) ->  | S46: 2801 | T46: 2822 | U46: 风中洞府1 | V46: 击败痴道人 | W46: =COUNTIF(EventLinkConfig!O:O,EventConfig!A46) -> 5 | X46: 1000701 | Y46: 1000702 | Z46: 1000703 | AA46: 1000704 | AB46: 1000705
A47: 10008 | B47: 1000801;1000802;1000803;1000804;1000805;1000806;1000807;1000808;1000809;1000810;1000811;1000812;1000813;1000814;102 | C47: 4 | D47: 1 | E47: 1 | F47: 10 | G47: 1 | I47: 1701;1401 | J47: 2;2 | M47: 1 | N47: 1 | O47: =IF(P47="","",VLOOKUP(P47,条件类型查询!A:B,2,FALSE)) ->  | S47: 2802 | T47: 2823 | U47: 风中洞府2 | V47: 疯痴相聚 | W47: =COUNTIF(EventLinkConfig!O:O,EventConfig!A47) -> 14 | X47: 1000801 | Y47: 1000802 | Z47: 1000803 | AA47: 1000804 | AB47: 1000805 | AC47: 1000806 | AD47: 1000807 | AE47: 1000808 | AF47: 1000809 | AG47: 1000810 | AH47: 1000811 | AI47: 1000812 | AJ47: 1000813 | AK47: 1000814
A48: 10009 | B48: 1000901;1000902;1000903;102 | C48: 4 | D48: 1 | E48: 1 | F48: 10 | G48: 1 | I48: 1701;1401 | J48: 2;2 | M48: 1 | N48: 1 | O48: =IF(P48="","",VLOOKUP(P48,条件类型查询!A:B,2,FALSE)) ->  | S48: 2803 | T48: 2824 | U48: 风灵之力 | V48: 筑基后期 | W48: =COUNTIF(EventLinkConfig!O:O,EventConfig!A48) -> 3 | X48: 1000901 | Y48: 1000902 | Z48: 1000903
A49: 10010 | B49: 1001001;102 | C49: 4 | D49: 1 | E49: 1 | F49: 10 | G49: 1 | I49: 1701;1401 | J49: 2;2 | L49: 21 | M49: 1 | N49: 1 | O49: =IF(P49="","",VLOOKUP(P49,条件类型查询!A:B,2,FALSE)) ->  | S49: 2804 | T49: 2825 | U49: 北海深处1 | V49: 妖兽横行 | W49: =COUNTIF(EventLinkConfig!O:O,EventConfig!A49) -> 1 | X49: 1001001
A50: 10011 | B50: 1001101;102 | C50: 4 | D50: 1 | E50: 1 | F50: 10 | G50: 1 | I50: 1702;1401 | J50: 1;2 | M50: 1 | N50: 1 | O50: =IF(P50="","",VLOOKUP(P50,条件类型查询!A:B,2,FALSE)) ->  | S50: 2805 | T50: 2826 | U50: 北海深处2 | V50: 遇见鲲鹏 | W50: =COUNTIF(EventLinkConfig!O:O,EventConfig!A50) -> 1 | X50: =IF($W50>=X$3,$A50*100+X$3,"") -> 1001101
A51: 10012 | B51: 1001201;1001202;1001203;1001204;1001205;1001206;1001207;1001208;1001209;1001210;1001211;1001212;102 | C51: 4 | D51: 1 | E51: 1 | F51: 10 | G51: 1 | I51: 1702;1401 | J51: 1;2 | L51: 31 | M51: 2 | N51: 1 | O51: =IF(P51="","",VLOOKUP(P51,条件类型查询!A:B,2,FALSE)) ->  | S51: 2806 | T51: 2827 | U51: 尧之都 | V51: 尧让天下 | W51: =COUNTIF(EventLinkConfig!O:O,EventConfig!A51) -> 12 | X51: 1001201 | Y51: 1001202 | Z51: 1001203 | AA51: 1001204 | AB51: 1001205 | AC51: 1001206 | AD51: 1001207 | AE51: 1001208 | AF51: 1001209 | AG51: 1001210 | AH51: 1001211 | AI51: 1001212
A52: 10013 | B52: 1001301;1001302;1001303;1001304;1001305;1001306;1001307;1001308;1001309;1001310;1001311;1001312;1001313;1001314;1001315;1001316;102 | C52: 4 | D52: 1 | E52: 1 | F52: 10 | G52: 1 | I52: 1702;1402 | J52: 1;2 | M52: 2 | N52: 1 | O52: =IF(P52="","",VLOOKUP(P52,条件类型查询!A:B,2,FALSE)) ->  | S52: 2807 | T52: 2828 | U52: 山林清音 | V52: 访贤许由 | W52: =COUNTIF(EventLinkConfig!O:O,EventConfig!A52) -> 16 | X52: 1001301 | Y52: 1001302 | Z52: 1001303 | AA52: 1001304 | AB52: 1001305 | AC52: 1001306 | AD52: 1001307 | AE52: 1001308 | AF52: 1001309 | AG52: 1001310 | AH52: 1001311 | AI52: 1001312 | AJ52: 1001313 | AK52: 1001314 | AL52: 1001315 | AM52: 1001316
A53: 10014 | B53: 1001401;1001402;1001403;1001404;1001405;1001406;1001407;1001408;102 | C53: 4 | D53: 1 | E53: 1 | F53: 10 | G53: 1 | I53: 1702;1402 | J53: 1;2 | L53: 41 | M53: 2 | N53: 1 | O53: =IF(P53="","",VLOOKUP(P53,条件类型查询!A:B,2,FALSE)) ->  | S53: 2808 | T53: 2829 | U53: 山中劳作 | V53: 割草喝茶 | W53: =COUNTIF(EventLinkConfig!O:O,EventConfig!A53) -> 8 | X53: 1001401 | Y53: 1001402 | Z53: 1001403 | AA53: 1001404 | AB53: 1001405 | AC53: 1001406 | AD53: 1001407 | AE53: 1001408
A54: 10015 | B54: 1001501;1001502;1001503;1001504;1001505;1001506;1001507;1001508;102 | C54: 4 | D54: 1 | E54: 1 | F54: 10 | G54: 1 | I54: 1702;1402 | J54: 1;2 | M54: 2 | N54: 1 | O54: =IF(P54="","",VLOOKUP(P54,条件类型查询!A:B,2,FALSE)) ->  | S54: 2809 | T54: 2830 | U54: 风起夜战 | V54: 再来一杯 | W54: =COUNTIF(EventLinkConfig!O:O,EventConfig!A54) -> 8 | X54: 1001501 | Y54: 1001502 | Z54: 1001503 | AA54: 1001504 | AB54: 1001505 | AC54: 1001506 | AD54: 1001507 | AE54: 1001508
A55: 10016 | B55: 1001601;1001602;1001603;1001604;1001605;1001606;1001607;1001608;1001609;1001610;1001611;1001612;1001613;102 | C55: 4 | D55: 1 | E55: 1 | F55: 10 | G55: 1 | I55: 1702;1402 | J55: 1;2 | L55: 51 | M55: 2 | N55: 1 | O55: =IF(P55="","",VLOOKUP(P55,条件类型查询!A:B,2,FALSE)) ->  | S55: 2810 | T55: 2831 | U55: 吃茶三问 | V55: 战胜妖王 | W55: =COUNTIF(EventLinkConfig!O:O,EventConfig!A55) -> 13 | X55: 1001601 | Y55: 1001602 | Z55: 1001603 | AA55: 1001604 | AB55: 1001605 | AC55: 1001606 | AD55: 1001607 | AE55: 1001608 | AF55: 1001609 | AG55: 1001610 | AH55: 1001611 | AI55: 1001612 | AJ55: 1001613
A56: 10017 | B56: 1001701;1001702;1001703;1001704;1001705;1001706;1001707;1001708;1001709;1001710;102 | C56: 4 | D56: 1 | E56: 1 | F56: 10 | G56: 1 | I56: 1702;1402 | J56: 1;2 | M56: 2 | N56: 1 | O56: =IF(P56="","",VLOOKUP(P56,条件类型查询!A:B,2,FALSE)) ->  | S56: 2811 | T56: 2832 | U56: 尧让天下 | V56: 复命尧帝 | W56: =COUNTIF(EventLinkConfig!O:O,EventConfig!A56) -> 10 | X56: 1001701 | Y56: 1001702 | Z56: 1001703 | AA56: 1001704 | AB56: 1001705 | AC56: 1001706 | AD56: 1001707 | AE56: 1001708 | AF56: 1001709 | AG56: 1001710
A57: 10018 | B57: 1001801;1001802;1001803;1001804;1001805;1001806;1001807;1001808;1001809;1001810;1001811;1001812;1001813;1001814;1001815;1001816;1001817;1001818;1001819;1001820;102 | C57: 4 | D57: 1 | E57: 1 | F57: 10 | G57: 1 | I57: 1702;1403 | J57: 2;2 | L57: 61 | M57: 2 | N57: 1 | O57: =IF(P57="","",VLOOKUP(P57,条件类型查询!A:B,2,FALSE)) ->  | S57: 2812 | T57: 2833 | U57: 无用之树 | V57: 树下闲话 | W57: =COUNTIF(EventLinkConfig!O:O,EventConfig!A57) -> 20 | X57: 1001801 | Y57: 1001802 | Z57: 1001803 | AA57: 1001804 | AB57: 1001805 | AC57: 1001806 | AD57: 1001807 | AE57: 1001808 | AF57: 1001809 | AG57: 1001810 | AH57: 1001811 | AI57: 1001812 | AJ57: 1001813 | AK57: 1001814 | AL57: 1001815 | AM57: 1001816 | AN57: =IF($W57>=AN$3,$A57*100+AN$3,"") -> 1001817 | AO57: =IF($W57>=AO$3,$A57*100+AO$3,"") -> 1001818 | AP57: =IF($W57>=AP$3,$A57*100+AP$3,"") -> 1001819 | AQ57: =IF($W57>=AQ$3,$A57*100+AQ$3,"") -> 1001820
A58: 10019 | B58: 1001901;1001902;102 | C58: 4 | D58: 1 | E58: 1 | F58: 10 | G58: 1 | I58: 1702;1403 | J58: 2;2 | M58: 2 | N58: 1 | O58: =IF(P58="","",VLOOKUP(P58,条件类型查询!A:B,2,FALSE)) ->  | S58: 2813 | T58: 2834 | U58: 樗木之灵 | V58: 切磋切磋 | W58: =COUNTIF(EventLinkConfig!O:O,EventConfig!A58) -> 2 | X58: 1001901 | Y58: 1001902
A59: 10020 | B59: 1002001;1002002;1002003;1002004;102 | C59: 4 | D59: 1 | E59: 1 | F59: 10 | G59: 1 | I59: 1702;1403 | J59: 2;2 | L59: 71 | M59: 2 | N59: 1 | O59: =IF(P59="","",VLOOKUP(P59,条件类型查询!A:B,2,FALSE)) ->  | S59: 2814 | T59: 2835 | U59: 游尧都 | V59: 金丹前期 | W59: =COUNTIF(EventLinkConfig!O:O,EventConfig!A59) -> 4 | X59: 1002001 | Y59: 1002002 | Z59: 1002003 | AA59: 1002004
A60: 10021 | B60: 1002101;1002102;1002103;1002104;1002105;1002106;1002107;1002108;1002109;1002110;1002111;1002112;102 | C60: 4 | D60: 1 | E60: 1 | F60: 10 | G60: 1 | I60: 1702;1403 | J60: 2;2 | M60: 2 | N60: 1 | O60: =IF(P60="","",VLOOKUP(P60,条件类型查询!A:B,2,FALSE)) ->  | S60: 2815 | T60: 2836 | U60: 再见尧帝 | V60: 仙山传说 | W60: =COUNTIF(EventLinkConfig!O:O,EventConfig!A60) -> 12 | X60: =IF($W60>=X$3,$A60*100+X$3,"") -> 1002101 | Y60: 1002102 | Z60: 1002103 | AA60: 1002104 | AB60: 1002105 | AC60: 1002106 | AD60: 1002107 | AE60: 1002108 | AF60: 1002109 | AG60: 1002110 | AH60: 1002111 | AI60: 1002112
A61: 10022 | B61: 1002201;1002202;1002203;102 | C61: 4 | D61: 1 | E61: 1 | F61: 10 | G61: 1 | I61: 1702;1403 | J61: 2;2 | L61: 81 | M61: 3 | N61: 1 | O61: =IF(P61="","",VLOOKUP(P61,条件类型查询!A:B,2,FALSE)) ->  | S61: 2816 | T61: 2837 | U61: 云海漫行 | V61: 入山幻阵 | W61: =COUNTIF(EventLinkConfig!O:O,EventConfig!A61) -> 3 | X61: 1002201 | Y61: 1002202 | Z61: 1002203
A62: 10023 | B62: 1002301;1002302;1002303;1002304;1002305;1002306;1002307;1002308;1002309;1002310;1002311;1002312;1002313;102 | C62: 4 | D62: 1 | E62: 1 | F62: 10 | G62: 1 | I62: 1702;1403 | J62: 2;2 | M62: 3 | N62: 1 | O62: =IF(P62="","",VLOOKUP(P62,条件类型查询!A:B,2,FALSE)) ->  | S62: 2817 | T62: 2838 | U62: 初见惠子 | V62: 葫芦种子 | W62: =COUNTIF(EventLinkConfig!O:O,EventConfig!A62) -> 13 | X62: 1002301 | Y62: 1002302 | Z62: 1002303 | AA62: 1002304 | AB62: 1002305 | AC62: 1002306 | AD62: 1002307 | AE62: 1002308 | AF62: 1002309 | AG62: 1002310 | AH62: 1002311 | AI62: 1002312 | AJ62: 1002313
A63: 10024 | B63: 1002401;1002402;1002403;1002404;1002405;1002406;1002407;102 | C63: 4 | D63: 1 | E63: 1 | F63: 10 | G63: 1 | I63: 1703;1404 | J63: 1;2 | L63: 91 | M63: 3 | N63: 1 | O63: =IF(P63="","",VLOOKUP(P63,条件类型查询!A:B,2,FALSE)) ->  | S63: 2818 | T63: 2839 | U63: 葫芦肥料 | V63: 天肥地肥 | W63: =COUNTIF(EventLinkConfig!O:O,EventConfig!A63) -> 7 | X63: 1002401 | Y63: 1002402 | Z63: 1002403 | AA63: 1002404 | AB63: 1002405 | AC63: 1002406 | AD63: 1002407
A64: 10025 | B64: 1002501;1002502;1002503;1002504;1002505;1002506;1002507;1002508;1002509;102 | C64: 4 | D64: 1 | E64: 1 | F64: 10 | G64: 1 | I64: 1703;1404 | J64: 1;2 | M64: 3 | N64: 1 | O64: =IF(P64="","",VLOOKUP(P64,条件类型查询!A:B,2,FALSE)) ->  | S64: 2819 | T64: 2840 | U64: 藐姑射山 | V64: 登山 | W64: =COUNTIF(EventLinkConfig!O:O,EventConfig!A64) -> 9 | X64: 1002501 | Y64: 1002502 | Z64: 1002503 | AA64: 1002504 | AB64: 1002505 | AC64: 1002506 | AD64: 1002507 | AE64: 1002508 | AF64: 1002509
A65: 10026 | B65: 102 | C65: 4 | D65: 1 | E65: 1 | F65: 10 | G65: 1 | I65: 1703;1404 | J65: 1;2 | M65: 3 | N65: 1 | O65: =IF(P65="","",VLOOKUP(P65,条件类型查询!A:B,2,FALSE)) ->  | S65: 2820 | T65: 2841 | U65: 炼器师 | V65: 重铸忘火剑 | W65: =COUNTIF(EventLinkConfig!O:O,EventConfig!A65) -> 0
A66: 10027 | B66: 102 | C66: 4 | D66: 1 | E66: 1 | F66: 10 | G66: 1 | I66: 1703;1404 | J66: 1;2 | M66: 3 | N66: 1 | O66: =IF(P66="","",VLOOKUP(P66,条件类型查询!A:B,2,FALSE)) ->  | S66: 2821 | T66: 2842 | U66: 忘火剑 | V66: 护法 | W66: =COUNTIF(EventLinkConfig!O:O,EventConfig!A66) -> 0
A69: 20001 | B69: 1001;1002;1003;1004;1005;102 | C69: 5 | E69: 1 | F69: 0 | G69: 1 | I69: 1001 | J69: 10 | S69: 174 | T69: 1936 | U69: 受伤的狼 | V69: 你发现一只奄奄一息的狼，决定上前一探究竟。 | X69: 1001 | Y69: 1002 | Z69: 1003 | AA69: 1004 | AB69: 1005
A70: 20002 | B70: =IF(A70="","",_xlfn.TEXTJOIN(";",1,X70:AQ70,102)) -> 1010;1011;1012;1013;1014;1015;1016;102 | C70: 5 | E70: 1 | F70: 0 | G70: 1 | I70: 1001 | J70: 10 | O70: =IF(P70="","",VLOOKUP(P70,条件类型查询!A:B,2,FALSE)) ->  | S70: 175 | T70: 1937 | U70: 鹬蚌相争 | V70: 附近的小树林闹的不可开交，你决定去看看怎么回事。 | X70: 1010 | Y70: 1011 | Z70: 1012 | AA70: 1013 | AB70: 1014 | AC70: 1015 | AD70: 1016
A71: 20003 | B71: 1001;1002;1003;1004;1005;102 | C71: 5 | E71: 1 | F71: 0 | G71: 1 | I71: 1001 | J71: 10 | S71: 1943 | T71: 1944 | U71: 受伤的鸟 | V71: 你发现一只奄奄一息的鸟，决定上前一探究竟。 | X71: 1001 | Y71: 1002 | Z71: 1003 | AA71: 1004 | AB71: 1005
A73: 9001 | B73: 1001;1002;1003;1004;1005;102 | C73: 6 | D73: 3 | E73: 1 | F73: 0 | G73: 1 | I73: 1001 | J73: 10 | S73: 174 | T73: 1936 | U73: 受伤的狼 | V73: 你发现一只奄奄一息的狼，决定上前一探究竟。 | X73: 1001 | Y73: 1002 | Z73: 1003 | AA73: 1004 | AB73: 1005
A74: 9002 | B74: 1010;1011;1012;1013;1014;1015;1016;102 | C74: 6 | D74: 3 | E74: 1 | F74: 0 | G74: 1 | I74: 1001 | J74: 10 | O74: =IF(P74="","",VLOOKUP(P74,条件类型查询!A:B,2,FALSE)) ->  | S74: 175 | T74: 1937 | U74: 鹬蚌相争 | V74: 附近的小树林闹的不可开交，你决定去看看怎么回事。 | X74: 1010 | Y74: 1011 | Z74: 1012 | AA74: 1013 | AB74: 1014 | AC74: 1015 | AD74: 1016
A75: 9025 | B75: 102 | C75: 6 | D75: 3 | E75: 1 | F75: 0 | G75: 1 | I75: 1001 | J75: 10 | M75: 1 | N75: 2 | S75: 2067 | T75: 2068 | U75: 惠子.没用的大葫芦 | V75: 惠子种的葫芦没用，他非常生气
A76: 9014 | B76: 9014;102 | C76: 6 | D76: 3 | E76: 1 | F76: 0 | G76: 1 | I76: 1001 | J76: 10 | M76: 2 | N76: 2 | S76: 2069 | T76: 2070 | U76: 发现魔修 | V76: 发现一群魔修，正在夺人钱财 | X76: 9014
A77: 9031 | B77: 9031;102 | C77: 6 | D77: 3 | E77: 1 | F77: 0 | G77: 1 | I77: 1001 | J77: 10 | K77: 30 | L77: 2 | M77: 3 | N77: 2 | S77: 2071 | T77: 2072 | U77: 魔修 | V77: 打败魔休 | X77: 9031
A78: 9003 | B78: 9003;9004;9005;9006;9007;9008;102 | C78: 6 | D78: 5 | E78: 1 | F78: 0 | G78: 1 | I78: 1001 | J78: 10 | S78: 2035 | T78: 2036 | U78: 幽谷剑鸣 | V78: 你在闭关修炼时，感受到一股凌厉的剑意波动。深入探查，发现一名白衣剑修“清霜”盘坐于谷中，周围剑气环绕，正与一柄散发不祥气息的灵剑对峙。她似在参悟剑诀，却灵气不足，剑灵桀骜。 | X78: 9003 | Y78: 9004 | Z78: 9005 | AA78: 9006 | AB78: 9007 | AC78: 9008
A80: 9101 | B80: =IF(A80="","",_xlfn.TEXTJOIN(";",1,X80:AQ80,102)) -> 910101;102 | C80: 1 | D80: 5 | E80: 1 | F80: 0 | G80: 1 | I80: 1501 | J80: 1 | U80: 初遇道友1 | V80: 你偶遇正在修炼的道友1 | W80: =COUNTIF(EventLinkConfig!O:O,EventConfig!A80) -> 1 | X80: =IF($W80>=X$3,$A80*100+X$3,"") -> 910101
A81: 9102 | B81: =IF(A81="","",_xlfn.TEXTJOIN(";",1,X81:AQ81,102)) -> 910201;102 | C81: 1 | D81: 5 | E81: 1 | F81: 0 | G81: 1 | I81: 1501 | J81: 1 | U81: 初遇道友2 | V81: 你偶遇正在修炼的道友2 | W81: =COUNTIF(EventLinkConfig!O:O,EventConfig!A81) -> 1 | X81: 910201
A82: 9103 | B82: 910301;102 | C82: 1 | D82: 5 | E82: 1 | F82: 0 | G82: 1 | I82: 1501 | J82: 1 | U82: 初遇道友3 | V82: 你偶遇正在修炼的道友3 | W82: =COUNTIF(EventLinkConfig!O:O,EventConfig!A82) -> 1 | X82: 910301
A83: 9104 | B83: =IF(A83="","",_xlfn.TEXTJOIN(";",1,X83:AQ83,102)) -> 910401;102 | C83: 1 | D83: 5 | E83: 1 | F83: 0 | G83: 1 | I83: 1501 | J83: 1 | U83: 初遇道友4 | V83: 你偶遇正在修炼的道友4 | W83: =COUNTIF(EventLinkConfig!O:O,EventConfig!A83) -> 1 | X83: 910401
A84: 9105 | B84: 910501;102 | C84: 1 | D84: 5 | E84: 1 | F84: 0 | G84: 1 | I84: 1501 | J84: 1 | U84: 初遇道友5 | V84: 你偶遇正在修炼的道友5 | W84: =COUNTIF(EventLinkConfig!O:O,EventConfig!A84) -> 1 | X84: 910501
A85: 9106 | B85: 910601;102 | C85: 1 | D85: 5 | E85: 1 | F85: 0 | G85: 1 | I85: 1501 | J85: 1 | U85: 初遇道友6 | V85: 你偶遇正在修炼的道友6 | W85: =COUNTIF(EventLinkConfig!O:O,EventConfig!A85) -> 1 | X85: 910601
A86: 9107 | B86: 910701;102 | C86: 1 | D86: 5 | E86: 1 | F86: 0 | G86: 1 | I86: 1501 | J86: 1 | U86: 初遇道友7 | V86: 你偶遇正在修炼的道友7 | W86: =COUNTIF(EventLinkConfig!O:O,EventConfig!A86) -> 1 | X86: 910701
A87: 9108 | B87: =IF(A87="","",_xlfn.TEXTJOIN(";",1,X87:AQ87,102)) -> 910801;102 | C87: 1 | D87: 5 | E87: 1 | F87: 0 | G87: 1 | I87: 1501 | J87: 1 | U87: 初遇道友8 | V87: 你偶遇正在修炼的道友8 | W87: =COUNTIF(EventLinkConfig!O:O,EventConfig!A87) -> 1 | X87: 910801
A88: 9109 | B88: 910901;102 | C88: 1 | D88: 5 | E88: 1 | F88: 0 | G88: 1 | I88: 1501 | J88: 1 | U88: 初遇道友9 | V88: 你偶遇正在修炼的道友9 | W88: =COUNTIF(EventLinkConfig!O:O,EventConfig!A88) -> 1 | X88: 910901
A89: 9110 | B89: =IF(A89="","",_xlfn.TEXTJOIN(";",1,X89:AQ89,102)) -> 911001;102 | C89: 1 | D89: 5 | E89: 1 | F89: 0 | G89: 1 | I89: 1501 | J89: 1 | U89: 初遇道友10 | V89: 你偶遇正在修炼的道友10 | W89: =COUNTIF(EventLinkConfig!O:O,EventConfig!A89) -> 1 | X89: 911001
A91: 3 | B91: =IF(A91="","",_xlfn.TEXTJOIN(";",1,X91:AQ91,102)) -> 1020;1021;1022;1023;1024;1025;1026;102 | C91: 99 | D91: 2 | E91: 1 | F91: 10 | G91: 1 | I91: 1001 | J91: 10 | M91: 1 | N91: 4 | O91: =IF(P91="","",VLOOKUP(P91,条件类型查询!A:B,2,FALSE)) -> 拥有特定道具 | P91: 1 | Q91: 1004 | R91: 1 | S91: 176 | T91: 1938 | U91: 鹬蚌相争2 | V91: 附近的小树林闹的不可开交，你决定去看看怎么回事。 | X91: 1020 | Y91: 1021 | Z91: 1022 | AA91: 1023 | AB91: 1024 | AC91: 1025 | AD91: 1026
A92: 1001 | B92: =IF(A92="","",_xlfn.TEXTJOIN(";",1,X92:AQ92,102)) -> 1001;1002;1003;1004;1005;100;102 | C92: 99 | D92: 4 | E92: 1 | F92: 10 | G92: 1 | I92: 1001 | J92: 10 | O92: =IF(P92="","",VLOOKUP(P92,条件类型查询!A:B,2,FALSE)) ->  | S92: 1943 | T92: 1944 | U92: 受伤的鸟 | V92: 你发现一只奄奄一息的鸟，决定上前一探究竟。 | X92: 1001 | Y92: 1002 | Z92: 1003 | AA92: 1004 | AB92: 1005 | AQ92: 100
A93: 30001 | B93: 100;102 | C93: 99 | D93: 6 | E93: 1 | F93: 0 | G93: 1 | K93: 50 | L93: 5 | O93: =IF(P93="","",VLOOKUP(P93,条件类型查询!A:B,2,FALSE)) ->  | W93: =COUNTIF(EventLinkConfig!O:O,EventConfig!A93) -> 0 | X93: =IF($W93>=X$3,$A93*100+X$3,"") ->  | AQ93: 100
A94: 30002 | B94: 100;102 | C94: 99 | D94: 6 | E94: 1 | F94: 0 | G94: 1 | K94: 50 | L94: 1 | O94: =IF(P94="","",VLOOKUP(P94,条件类型查询!A:B,2,FALSE)) ->  | W94: =COUNTIF(EventLinkConfig!O:O,EventConfig!A94) -> 0 | AQ94: 100
A95: 30003 | B95: 3000301;100;102 | C95: 99 | D95: 6 | E95: 1 | F95: 0 | G95: 1 | K95: 50 | L95: 1 | M95: 1 | O95: =IF(P95="","",VLOOKUP(P95,条件类型查询!A:B,2,FALSE)) ->  | W95: =COUNTIF(EventLinkConfig!O:O,EventConfig!A95) -> 1 | X95: 3000301 | AQ95: 100
A96: 30004 | B96: 3000401;100;102 | C96: 99 | D96: 6 | E96: 1 | F96: 0 | G96: 1 | K96: 50 | L96: 3 | M96: 2 | O96: =IF(P96="","",VLOOKUP(P96,条件类型查询!A:B,2,FALSE)) ->  | W96: =COUNTIF(EventLinkConfig!O:O,EventConfig!A96) -> 1 | X96: 3000401 | AQ96: 100
A97: 30005 | B97: 3000501;100;102 | C97: 99 | D97: 6 | E97: 1 | F97: 0 | G97: 1 | K97: 50 | L97: 1 | M97: 2 | O97: =IF(P97="","",VLOOKUP(P97,条件类型查询!A:B,2,FALSE)) ->  | W97: =COUNTIF(EventLinkConfig!O:O,EventConfig!A97) -> 1 | X97: 3000501 | AQ97: 100
A98: 30006 | B98: 3000601;100;102 | C98: 99 | D98: 6 | E98: 1 | F98: 0 | G98: 1 | K98: 50 | L98: 1 | M98: 2 | O98: =IF(P98="","",VLOOKUP(P98,条件类型查询!A:B,2,FALSE)) ->  | W98: =COUNTIF(EventLinkConfig!O:O,EventConfig!A98) -> 1 | X98: 3000601 | AQ98: 100
A99: 30007 | B99: 3000701;100;102 | C99: 99 | D99: 6 | E99: 1 | F99: 0 | G99: 1 | K99: 50 | L99: 1 | M99: 3 | O99: =IF(P99="","",VLOOKUP(P99,条件类型查询!A:B,2,FALSE)) ->  | W99: =COUNTIF(EventLinkConfig!O:O,EventConfig!A99) -> 1 | X99: 3000701 | AQ99: 100
A100: 30008 | B100: 3000801;100;102 | C100: 99 | D100: 6 | E100: 1 | F100: 0 | G100: 1 | K100: 15 | L100: 1 | M100: 3 | O100: =IF(P100="","",VLOOKUP(P100,条件类型查询!A:B,2,FALSE)) ->  | W100: =COUNTIF(EventLinkConfig!O:O,EventConfig!A100) -> 1 | X100: 3000801 | AQ100: 100
A101: 30009 | B101: 3000901;3000902;100;102 | C101: 99 | D101: 6 | E101: 1 | F101: 0 | G101: 1 | I101: 1301 | J101: 1 | K101: 100 | L101: 1 | M101: 3 | O101: =IF(P101="","",VLOOKUP(P101,条件类型查询!A:B,2,FALSE)) ->  | W101: =COUNTIF(EventLinkConfig!O:O,EventConfig!A101) -> 2 | X101: 3000901 | Y101: 3000902 | AQ101: 100
A102: 30010 | B102: 3001001;100;102 | C102: 99 | D102: 6 | E102: 1 | F102: 0 | G102: 1 | I102: 1001 | J102: 1 | K102: 100 | L102: 1 | M102: 3 | O102: =IF(P102="","",VLOOKUP(P102,条件类型查询!A:B,2,FALSE)) -> 前置事件 | P102: 10 | Q102: 1021 | W102: =COUNTIF(EventLinkConfig!O:O,EventConfig!A102) -> 1 | X102: 3001001 | AQ102: 100
A103: 30011 | B103: 3001101;3001102;100;102 | C103: 99 | D103: 6 | E103: 1 | F103: 0 | G103: 1 | I103: 20003 | J103: 3 | K103: 100 | L103: 1 | M103: 2 | O103: =IF(P103="","",VLOOKUP(P103,条件类型查询!A:B,2,FALSE)) ->  | W103: =COUNTIF(EventLinkConfig!O:O,EventConfig!A103) -> 2 | X103: 3001101 | Y103: 3001102 | AQ103: 100
A104: 5001 | B104: 500101;500102;500103;500104;500105;500106;500107;500108;500109;500110;500111;500112;500113;500114;500115;500116;500117;500118;500119;102 | C104: 99 | D104: 5 | E104: 1 | F104: 10 | G104: 1 | H104: 10 | I104: 1501 | J104: 1 | M104: 1 | N104: 1 | O104: =IF(P104="","",VLOOKUP(P104,条件类型查询!A:B,2,FALSE)) ->  | S104: 3019 | T104: 3020 | U104: 风影为二 | V104: 风影为二详情占位 | W104: =COUNTIF(EventLinkConfig!O:O,EventConfig!A104) -> 19 | X104: =IF($W104>=X$3,$A104*100+X$3,"") -> 500101 | Y104: 500102 | Z104: 500103 | AA104: 500104 | AB104: 500105 | AC104: 500106 | AD104: 500107 | AE104: 500108 | AF104: 500109 | AG104: 500110 | AH104: =IF($W104>=AH$3,$A104*100+AH$3,"") -> 500111 | AI104: 500112 | AJ104: 500113 | AK104: 500114 | AL104: 500115 | AM104: 500116 | AN104: 500117 | AO104: 500118 | AP104: 500119
A105: 5002 | B105: 500201;500202;500203;500204;500205;500206;500207;500208;500209;500210;500211;500212;500213;500214;500215;500216;102 | C105: 99 | D105: 5 | E105: 1 | F105: 10 | G105: 1 | H105: 11 | I105: 1601 | J105: 1 | M105: 1 | N105: 1 | O105: =IF(P105="","",VLOOKUP(P105,条件类型查询!A:B,2,FALSE)) -> 前置事件 | P105: 10 | Q105: 5001 | S105: 3036 | T105: 3037 | U105: 风影合一 | V105: 风影合一详情占位 | W105: =COUNTIF(EventLinkConfig!O:O,EventConfig!A105) -> 16 | X105: 500201 | Y105: 500202 | Z105: 500203 | AA105: 500204 | AB105: 500205 | AC105: 500206 | AD105: 500207 | AE105: 500208 | AF105: 500209 | AG105: 500210 | AH105: 500211 | AI105: 500212 | AJ105: 500213 | AK105: 500214 | AL105: 500215 | AM105: 500216
A106: 5003 | B106: 500301;500302;500303;500304;500305;500306;500307;500308;500309;500310;500311;500312;500313;500314;500315;500316;500317;500318;500319;500320;102 | C106: 99 | D106: 2 | E106: 1 | F106: 0 | G106: 1 | H106: 1 | I106: 1001 | J106: 500 | M106: 1 | N106: 1 | O106: =IF(P106="","",VLOOKUP(P106,条件类型查询!A:B,2,FALSE)) ->  | S106: 3034 | T106: 3035 | U106: 北海剑妖 | V106: 百年化妖为红颜，一剑焚海断孽缘 | W106: =COUNTIF(EventLinkConfig!O:O,EventConfig!A106) -> 20 | X106: 500301 | Y106: 500302 | Z106: 500303 | AA106: 500304 | AB106: 500305 | AC106: 500306 | AD106: 500307 | AE106: 500308 | AF106: 500309 | AG106: 500310 | AH106: 500311 | AI106: 500312 | AJ106: 500313 | AK106: 500314 | AL106: 500315 | AM106: 500316 | AN106: 500317 | AO106: 500318 | AP106: 500319 | AQ106: 500320
A107: 5004 | B107: =IF(A107="","",_xlfn.TEXTJOIN(";",1,X107:AQ107,102)) -> 500401;102 | C107: 99 | D107: 7 | E107: 1 | F107: 0 | G107: 1 | H107: 1 | I107: 1001 | J107: -20000 | O107: =IF(P107="","",VLOOKUP(P107,条件类型查询!A:B,2,FALSE)) ->  | S107: 3034 | T107: 3035 | U107: 【纳福】灵石 | V107: 大量获取灵石 | W107: =COUNTIF(EventLinkConfig!O:O,EventConfig!A107) -> 1 | X107: 500401
A108: 5005 | B108: =IF(A108="","",_xlfn.TEXTJOIN(";",1,X108:AQ108,102)) -> 500501;102 | C108: 99 | D108: 7 | E108: 1 | F108: 0 | G108: 1 | H108: 1 | I108: 1003 | J108: -20000 | O108: =IF(P108="","",VLOOKUP(P108,条件类型查询!A:B,2,FALSE)) ->  | S108: 3034 | T108: 3035 | U108: 【纳福】修为 | V108: 大量获取修为 | W108: =COUNTIF(EventLinkConfig!O:O,EventConfig!A108) -> 1 | X108: 500501
A109: 5006 | B109: 500601;102 | C109: 99 | D109: 7 | E109: 1 | F109: 0 | G109: 1 | H109: 1 | I109: 1005 | J109: -20000 | O109: =IF(P109="","",VLOOKUP(P109,条件类型查询!A:B,2,FALSE)) ->  | S109: 3034 | T109: 3035 | U109: 【纳福】灵气 | V109: 大量获取灵气 | W109: =COUNTIF(EventLinkConfig!O:O,EventConfig!A109) -> 1 | X109: 500601
A110: 5007 | B110: =IF(A110="","",_xlfn.TEXTJOIN(";",1,X110:AQ110,102)) -> 500701;102 | C110: 99 | D110: 7 | E110: 1 | F110: 0 | G110: 1 | H110: 1 | I110: 1006 | J110: -20000 | O110: =IF(P110="","",VLOOKUP(P110,条件类型查询!A:B,2,FALSE)) ->  | S110: 3034 | T110: 3035 | U110: 【纳福】玄晶 | V110: 大量获取玄晶 | W110: =COUNTIF(EventLinkConfig!O:O,EventConfig!A110) -> 1 | X110: 500701

Sheet EventLinkConfig
A1: ID | B1: conciseEventMessage | D1: EventConditionMessage | G1: PreShow | H1: PreShowPar | J1: NPCID | L1: LanID | N1: DialogueType | O1: EventID | Q1: ConditionId | U1: optionType | V1: optionPara1 | W1: optionPara2 | AD1: PrizeIDs | AE1: PrizeNums | AF1: ResultType | AG1: ResultOptions
A2: int | B2: int | D2: int | G2: int | H2: int | J2: int | L2: int[] | N2: int | O2: int | Q2: int[] | U2: int | V2: int[] | W2: int[] | AD2: int[] | AE2: int[] | AF2: int | AG2: int[]
A4: ID | B4: 任务列表中的简洁描述 | C4: 任务列表中的简洁描述 | D4: 无任务目标时的补充文本 | E4: 无任务目标时的补充文本 | G4: 前置表现 1飞行 | H4: 前置表现参数 | J4: 对话NPCID | K4: NPC | L4: 对话 | M4: 对话1 | N4: 对话框类型 | O4: 属于哪个事件 | P4: 步骤 | Q4: 条件判断类型 | R4: 任务目标1 | S4: 任务目标2 | T4: 条件判断内容 | U4: 步骤类型 1=提供选项 2=进入战斗 5=自动退出 3=获得奖励 4=扣除道具 | V4: 事件常量1 1=步骤IDs 2=战斗ID | W4: 事件常量2 1=事件文本 | X4: 选择1 | Y4: 选择1 步骤：填选项文本1 战斗：填战斗ID | Z4: 选择1 步骤1：跳转到哪一步 不填默认跳转到下一步 | AA4: 选择2 | AB4: 选择2 步骤：填选项文本2 | AC4: 选择1 步骤2：跳转到哪一步 不填默认跳转到下一步 | AD4: 事件结局奖励 | AE4: 事件结局奖励数量 | AF4: 事件结束类型 1：跳转步骤 2：根据战斗结果跳转 3.触发新事件 | AG4: 事件结局后提供的选项 1.EventLinkId 2.胜利id;失败id 3.EventConfigId | AH4: 1.步骤ID（不填默认为下一个步骤ID） 2.胜利ID（不填默认为下一个步骤ID） 3.事件ID（不填默认为下一个事件ID） | AI4: 语言表最大值
A5: 100 | L5: 216 | M5: 你被怪物击败，神识也随之消散了。 | Q5: =_xlfn.TEXTJOIN(";",1,R5:S5) ->  | T5: =IF(R5="","","-"&VLOOKUP(R5,EventConditionConfig!A:C,3,FALSE)&IF(S5="","",CHAR(10)&"-"&VLOOKUP(S5,EventConditionConfig!A:C,3,FALSE))) ->  | AI5: =IF(A5="","",MAX(B5,D5,L5,X5,AA5)) -> 216
A6: 101 | L6: 3011 | M6: 你败下阵来，感到头晕目眩，试图努力回忆起刚才发生的事情。 | Q6: =_xlfn.TEXTJOIN(";",1,R6:S6) ->  | T6: =IF(R6="","","-"&VLOOKUP(R6,EventConditionConfig!A:C,3,FALSE)&IF(S6="","",CHAR(10)&"-"&VLOOKUP(S6,EventConditionConfig!A:C,3,FALSE))) ->  | AI6: =IF(A6="","",MAX(B6,D6,L6,X6,AA6)) -> 3011
A7: 102 | L7: 3012 | M7: 战斗胜利，你的任务进度增加了。 | AI7: 3012
T8: =IF(R8="","","-"&VLOOKUP(R8,EventConditionConfig!A:C,3,FALSE)&IF(S8="","",CHAR(10)&"-"&VLOOKUP(S8,EventConditionConfig!A:C,3,FALSE))) -> 
A9: 1001 | B9: 177 | J9: 2 | L9: 177 | M9: 你遇到一只奄奄一息的野狼，从周围四散的血迹来看，想必它刚才经历了一场恶战。 | O9: 1 | T9: =IF(R9="","","-"&VLOOKUP(R9,EventConditionConfig!A:C,3,FALSE)&IF(S9="","",CHAR(10)&"-"&VLOOKUP(S9,EventConditionConfig!A:C,3,FALSE))) ->  | U9: 1 | V9: 1002;1003 | W9: 198;199 | Y9: 趁它虚弱赶紧除掉它！ | AB9: 你不忍见它受苦，选择帮它减轻痛苦。 | AI9: 177
A10: 1002 | B10: 178 | L10: 178 | M10: 野狼用它最后一口气，朝你扑了过来！ | O10: 1 | T10: =IF(R10="","","-"&VLOOKUP(R10,EventConditionConfig!A:C,3,FALSE)&IF(S10="","",CHAR(10)&"-"&VLOOKUP(S10,EventConditionConfig!A:C,3,FALSE))) ->  | U10: 2 | V10: 100001 | AF10: 2 | AG10: 1004;100 | AI10: 178
A11: 1003 | B11: 179 | L11: 179 | M11: 你抽出匕首准备了结它的生命，却发现怀中还躺着一只刚出生的狼崽。 | O11: 1 | T11: =IF(R11="","","-"&VLOOKUP(R11,EventConditionConfig!A:C,3,FALSE)&IF(S11="","",CHAR(10)&"-"&VLOOKUP(S11,EventConditionConfig!A:C,3,FALSE))) ->  | U11: 1 | V11: 1005 | W11: 200 | AI11: 179
A12: 1004 | B12: 180 | L12: 180 | M12: 随着你的最后一击，野狼应声倒下，你罔顾它幽怨的眼神，从它怀中拿走了一些财物。 | O12: 1 | T12: =IF(R12="","","-"&VLOOKUP(R12,EventConditionConfig!A:C,3,FALSE)&IF(S12="","",CHAR(10)&"-"&VLOOKUP(S12,EventConditionConfig!A:C,3,FALSE))) ->  | U12: 3 | AD12: 1002 | AE12: 100 | AI12: 180
A13: 1005 | B13: 181 | L13: 181 | M13: 母狼似乎懂你要做什么，眼神归于平静。你终结了她，决定收养这只小狼仔。 | O13: 1 | T13: =IF(R13="","","-"&VLOOKUP(R13,EventConditionConfig!A:C,3,FALSE)&IF(S13="","",CHAR(10)&"-"&VLOOKUP(S13,EventConditionConfig!A:C,3,FALSE))) ->  | U13: 3 | AD13: 1001 | AE13: 50 | AI13: 181
T14: =IF(R14="","","-"&VLOOKUP(R14,EventConditionConfig!A:C,3,FALSE)&IF(S14="","",CHAR(10)&"-"&VLOOKUP(S14,EventConditionConfig!A:C,3,FALSE))) -> 
A15: 1010 | B15: 182 | L15: 182 | M15: 从不远处传来刀剑声，听起来双方已经精疲力尽了。 | O15: 2 | T15: =IF(R15="","","-"&VLOOKUP(R15,EventConditionConfig!A:C,3,FALSE)&IF(S15="","",CHAR(10)&"-"&VLOOKUP(S15,EventConditionConfig!A:C,3,FALSE))) ->  | U15: 1 | V15: 1011;1012 | W15: 201;202 | Y15: 去看看 | AB15: (需拥有法宝凝神珠）听起来都是鸡毛蒜皮的小摩擦，你选择祭出凝神珠化解他们的怨气。 | AI15: 182
A16: 1011 | B16: 183 | L16: 183 | M16: 你走进一看，原来是一伙山贼分赃不均内讧了起来。你看着旁边被砍的七零八落的轿子和这群山贼，选择怎么做呢： | O16: 2 | T16: =IF(R16="","","-"&VLOOKUP(R16,EventConditionConfig!A:C,3,FALSE)&IF(S16="","",CHAR(10)&"-"&VLOOKUP(S16,EventConditionConfig!A:C,3,FALSE))) ->  | U16: 1 | V16: 1014;1015 | W16: 203;204 | Y16: 你顿时杀心四起，决定杀了贼寇，救出轿中之人 | AB16: 盗贼们个个双眼杀的通红，你决定来个渔翁得利。 | AI16: 183
A17: 1012 | B17: 184 | L17: 184;187 | M17: 法宝现身，效果立竿见影，刀剑声逐渐消失，这个世界安静了。 | O17: 2 | T17: =IF(R17="","","-"&VLOOKUP(R17,EventConditionConfig!A:C,3,FALSE)&IF(S17="","",CHAR(10)&"-"&VLOOKUP(S17,EventConditionConfig!A:C,3,FALSE))) ->  | U17: 3 | AD17: 1001 | AE17: 10 | AI17: 184 | AJ17: 1 | AK17: 1001;1
A18: 1014 | B18: 185 | L18: 185 | M18: 你怒斥贼寇的恶行，贼寇们被你激怒了，准备迎战！ | O18: 2 | T18: =IF(R18="","","-"&VLOOKUP(R18,EventConditionConfig!A:C,3,FALSE)&IF(S18="","",CHAR(10)&"-"&VLOOKUP(S18,EventConditionConfig!A:C,3,FALSE))) ->  | U18: 2 | V18: 100002 | AF18: 2 | AG18: 1016;100 | AI18: 185 | AJ18: 2 | AK18: 4;150
A19: 1015 | B19: 186 | L19: 186;189 | M19: 你趁人不备顺走了轿内主人的包裹，任留轿内人痛苦的挣扎。 | O19: 2 | T19: =IF(R19="","","-"&VLOOKUP(R19,EventConditionConfig!A:C,3,FALSE)&IF(S19="","",CHAR(10)&"-"&VLOOKUP(S19,EventConditionConfig!A:C,3,FALSE))) ->  | U19: 3 | AD19: 1003 | AE19: 1000 | AI19: 186
A20: 1016 | B20: 188 | L20: 188 | M20: 杀退贼寇，你上演了一出英雄救美的桥段。姑娘为了答谢你的救命之恩，将藏在贴身处的珍贵首饰赠与你作为定情信物。 | O20: 2 | T20: =IF(R20="","","-"&VLOOKUP(R20,EventConditionConfig!A:C,3,FALSE)&IF(S20="","",CHAR(10)&"-"&VLOOKUP(S20,EventConditionConfig!A:C,3,FALSE))) ->  | AD20: 1001 | AE20: 200 | AI20: 188
T21: =IF(R21="","","-"&VLOOKUP(R21,EventConditionConfig!A:C,3,FALSE)&IF(S21="","",CHAR(10)&"-"&VLOOKUP(S21,EventConditionConfig!A:C,3,FALSE))) -> 
A22: 1020 | B22: 190 | L22: 190 | M22: 从不远处传来刀剑声，听起来双方已经精疲力尽了。 | T22: =IF(R22="","","-"&VLOOKUP(R22,EventConditionConfig!A:C,3,FALSE)&IF(S22="","",CHAR(10)&"-"&VLOOKUP(S22,EventConditionConfig!A:C,3,FALSE))) ->  | U22: 1 | V22: 1021;1022 | W22: 201;202 | Y22: 去看看 | AB22: 使用法宝息事宁人 | AI22: 190
A23: 1021 | B23: 191 | L23: 191 | M23: 你走进一看，原来是一伙山贼抢了一名坐在官轿内的女子，因分赃不均内讧了起来。山贼二话不说就朝你冲了过来！ | T23: =IF(R23="","","-"&VLOOKUP(R23,EventConditionConfig!A:C,3,FALSE)&IF(S23="","",CHAR(10)&"-"&VLOOKUP(S23,EventConditionConfig!A:C,3,FALSE))) ->  | U23: 2 | V23: 100003 | AD23: 1002 | AE23: 100 | AF23: 2 | AG23: 1026;100 | AI23: 191
A24: 1022 | B24: 192 | L24: 192 | M24: 法宝现身，效果立竿见影，刀剑声逐渐消失，这个世界安静了。 | T24: =IF(R24="","","-"&VLOOKUP(R24,EventConditionConfig!A:C,3,FALSE)&IF(S24="","",CHAR(10)&"-"&VLOOKUP(S24,EventConditionConfig!A:C,3,FALSE))) ->  | U24: 4 | AD24: 1002 | AE24: 10 | AI24: 192 | AJ24: 1 | AK24: 1001;1
A25: 1024 | B25: 193 | L25: 193;196 | M25: 你大声怒斥贼寇的恶行，贼首发现你了，准备迎战！ | T25: =IF(R25="","","-"&VLOOKUP(R25,EventConditionConfig!A:C,3,FALSE)&IF(S25="","",CHAR(10)&"-"&VLOOKUP(S25,EventConditionConfig!A:C,3,FALSE))) ->  | U25: 2 | V25: 100004 | AD25: 1004 | AE25: 100 | AF25: 2 | AG25: 1016;100 | AI25: 193 | AJ25: 2 | AK25: 4;150
A26: 1025 | B26: 194 | L26: 194;197 | M26: 你趁人不备顺走了轿内主人的包裹，任留轿内人痛苦的挣扎。 | T26: =IF(R26="","","-"&VLOOKUP(R26,EventConditionConfig!A:C,3,FALSE)&IF(S26="","",CHAR(10)&"-"&VLOOKUP(S26,EventConditionConfig!A:C,3,FALSE))) ->  | U26: 3 | AD26: 1002 | AE26: 1000 | AI26: 194
A27: 1026 | B27: 207 | L27: 207 | M27: 你将山贼们打的落花流水，成功吸引了山贼头子的注意。 | T27: =IF(R27="","","-"&VLOOKUP(R27,EventConditionConfig!A:C,3,FALSE)&IF(S27="","",CHAR(10)&"-"&VLOOKUP(S27,EventConditionConfig!A:C,3,FALSE))) ->  | U27: 1 | V27: 1024;1025 | W27: 205;206 | Y27: 选择正面迎战山贼头领（困难） | AB27: 你决定避开山贼头领的视线，来个渔翁得利。 | AI27: 207
T28: =IF(R28="","","-"&VLOOKUP(R28,EventConditionConfig!A:C,3,FALSE)&IF(S28="","",CHAR(10)&"-"&VLOOKUP(S28,EventConditionConfig!A:C,3,FALSE))) -> 
A29: 1030 | L29: 221 | M29: 发现一个血迹斑斑的背包，好像刚刚发生了战斗，我翻翻背包... | O29: 4 | T29: =IF(R29="","","-"&VLOOKUP(R29,EventConditionConfig!A:C,3,FALSE)&IF(S29="","",CHAR(10)&"-"&VLOOKUP(S29,EventConditionConfig!A:C,3,FALSE))) ->  | U29: 3 | AD29: 1002 | AE29: 10 | AI29: 221
T30: =IF(R30="","","-"&VLOOKUP(R30,EventConditionConfig!A:C,3,FALSE)&IF(S30="","",CHAR(10)&"-"&VLOOKUP(S30,EventConditionConfig!A:C,3,FALSE))) -> 
A31: 1040 | L31: 222 | M31: 啥也没有....除了钱 | O31: 5 | T31: =IF(R31="","","-"&VLOOKUP(R31,EventConditionConfig!A:C,3,FALSE)&IF(S31="","",CHAR(10)&"-"&VLOOKUP(S31,EventConditionConfig!A:C,3,FALSE))) ->  | U31: 3 | AD31: 1002 | AE31: 10 | AI31: 222
T32: =IF(R32="","","-"&VLOOKUP(R32,EventConditionConfig!A:C,3,FALSE)&IF(S32="","",CHAR(10)&"-"&VLOOKUP(S32,EventConditionConfig!A:C,3,FALSE))) -> 
A33: 1050 | L33: 223 | M33: 两夫妻在吵架，似乎为了一件大事.. | O33: 6 | T33: =IF(R33="","","-"&VLOOKUP(R33,EventConditionConfig!A:C,3,FALSE)&IF(S33="","",CHAR(10)&"-"&VLOOKUP(S33,EventConditionConfig!A:C,3,FALSE))) ->  | U33: 3 | AD33: 1002;1001 | AE33: 10;20 | AI33: 223
T34: =IF(R34="","","-"&VLOOKUP(R34,EventConditionConfig!A:C,3,FALSE)&IF(S34="","",CHAR(10)&"-"&VLOOKUP(S34,EventConditionConfig!A:C,3,FALSE))) -> 
A35: 1060 | L35: 224 | M35: 没有任何发现，但感觉空气很好....下次有空再来看看 | O35: 7 | T35: =IF(R35="","","-"&VLOOKUP(R35,EventConditionConfig!A:C,3,FALSE)&IF(S35="","",CHAR(10)&"-"&VLOOKUP(S35,EventConditionConfig!A:C,3,FALSE))) ->  | AI35: 224
T36: =IF(R36="","","-"&VLOOKUP(R36,EventConditionConfig!A:C,3,FALSE)&IF(S36="","",CHAR(10)&"-"&VLOOKUP(S36,EventConditionConfig!A:C,3,FALSE))) -> 
T37: =IF(R37="","","-"&VLOOKUP(R37,EventConditionConfig!A:C,3,FALSE)&IF(S37="","",CHAR(10)&"-"&VLOOKUP(S37,EventConditionConfig!A:C,3,FALSE))) -> 
T38: =IF(R38="","","-"&VLOOKUP(R38,EventConditionConfig!A:C,3,FALSE)&IF(S38="","",CHAR(10)&"-"&VLOOKUP(S38,EventConditionConfig!A:C,3,FALSE))) -> 
A39: =O39*100+P39 -> 1101 | L39: 208 | M39: 你遇到一只拦路的妖兽，它看起来饥肠辘辘 | O39: 11 | P39: =IF(O39=O38,P38+1,1) -> 1 | T39: =IF(R39="","","-"&VLOOKUP(R39,EventConditionConfig!A:C,3,FALSE)&IF(S39="","",CHAR(10)&"-"&VLOOKUP(S39,EventConditionConfig!A:C,3,FALSE))) ->  | AF39: 1 | AG39: =A40 -> 1102 | AI39: 208
A40: =O40*100+P40 -> 1102 | L40: 209 | M40: 你扔出一块鹿肉，趁它抢食之际，你祭出腰间的法宝 | O40: 11 | P40: =IF(O40=O39,P39+1,1) -> 2 | T40: =IF(R40="","","-"&VLOOKUP(R40,EventConditionConfig!A:C,3,FALSE)&IF(S40="","",CHAR(10)&"-"&VLOOKUP(S40,EventConditionConfig!A:C,3,FALSE))) ->  | AF40: 1 | AG40: =A41 -> 1103 | AI40: 209
A41: =O41*100+P41 -> 1103 | L41: 209 | M41: 你成功诱捕了怪物，并从它身上吸取了一些修为 | O41: 11 | P41: =IF(O41=O40,P40+1,1) -> 3 | Q41: =_xlfn.TEXTJOIN(";",1,R41:S41) ->  | T41: =IF(R41="","","-"&VLOOKUP(R41,EventConditionConfig!A:C,3,FALSE)&IF(S41="","",CHAR(10)&"-"&VLOOKUP(S41,EventConditionConfig!A:C,3,FALSE))) ->  | AI41: =IF(A41="","",MAX(B41,D41,L41,X41,AA41)) -> 209
T42: =IF(R42="","","-"&VLOOKUP(R42,EventConditionConfig!A:C,3,FALSE)&IF(S42="","",CHAR(10)&"-"&VLOOKUP(S42,EventConditionConfig!A:C,3,FALSE))) -> 
A43: =O43*100+P43 -> 1201 | L43: 210 | M43: 你偶遇一处仙气四溢无人生活的洞穴 | O43: 12 | P43: =IF(O43=O42,P42+1,1) -> 1 | T43: =IF(R43="","","-"&VLOOKUP(R43,EventConditionConfig!A:C,3,FALSE)&IF(S43="","",CHAR(10)&"-"&VLOOKUP(S43,EventConditionConfig!A:C,3,FALSE))) ->  | AF43: 1 | AG43: =A44 -> 1202 | AI43: 210
A44: =O44*100+P44 -> 1202 | L44: 211 | M44: 不知哪位高人在洞穴内壁留下绝世秘籍 | O44: 12 | P44: =IF(O44=O43,P43+1,1) -> 2 | T44: =IF(R44="","","-"&VLOOKUP(R44,EventConditionConfig!A:C,3,FALSE)&IF(S44="","",CHAR(10)&"-"&VLOOKUP(S44,EventConditionConfig!A:C,3,FALSE))) ->  | AF44: 1 | AG44: =A45 -> 1203 | AI44: 211
A45: =O45*100+P45 -> 1203 | L45: 1903 | M45: 你仔细研读后，功法得到精进 | O45: 12 | P45: =IF(O45=O44,P44+1,1) -> 3 | T45: =IF(R45="","","-"&VLOOKUP(R45,EventConditionConfig!A:C,3,FALSE)&IF(S45="","",CHAR(10)&"-"&VLOOKUP(S45,EventConditionConfig!A:C,3,FALSE))) ->  | AI45: 1903
T46: =IF(R46="","","-"&VLOOKUP(R46,EventConditionConfig!A:C,3,FALSE)&IF(S46="","",CHAR(10)&"-"&VLOOKUP(S46,EventConditionConfig!A:C,3,FALSE))) -> 
A47: =O47*100+P47 -> 1301 | L47: 3220 | M47: 你偶然发现一只枯萎的葫芦，但泛着蓝光 | O47: 13 | P47: =IF(O47=O46,P46+1,1) -> 1 | T47: =IF(R47="","","-"&VLOOKUP(R47,EventConditionConfig!A:C,3,FALSE)&IF(S47="","",CHAR(10)&"-"&VLOOKUP(S47,EventConditionConfig!A:C,3,FALSE))) ->  | AF47: 1 | AG47: =A48 -> 1302 | AI47: 3220
A48: =O48*100+P48 -> 1302 | L48: 3221 | M48: 好奇的你凑近一看，不知谁将这件法宝遗落于此 | O48: 13 | P48: =IF(O48=O47,P47+1,1) -> 2 | T48: =IF(R48="","","-"&VLOOKUP(R48,EventConditionConfig!A:C,3,FALSE)&IF(S48="","",CHAR(10)&"-"&VLOOKUP(S48,EventConditionConfig!A:C,3,FALSE))) ->  | AF48: 1 | AG48: =A49 -> 1303 | AI48: 3221
A49: 1303 | L49: 3222 | M49: 但法宝已经枯竭，你后悔没有早点发现它 | O49: 13 | P49: 3 | T49: =IF(R49="","","-"&VLOOKUP(R49,EventConditionConfig!A:C,3,FALSE)&IF(S49="","",CHAR(10)&"-"&VLOOKUP(S49,EventConditionConfig!A:C,3,FALSE))) ->  | AF49: 1 | AG49: =A50 -> 1304 | AI49: 3222
A50: 1304 | L50: 3223 | M50: 最后你从法宝中回收了一些玄晶 | O50: 13 | P50: 4 | T50: =IF(R50="","","-"&VLOOKUP(R50,EventConditionConfig!A:C,3,FALSE)&IF(S50="","",CHAR(10)&"-"&VLOOKUP(S50,EventConditionConfig!A:C,3,FALSE))) ->  | AI50: 3223
L51: 3224 | T51: =IF(R51="","","-"&VLOOKUP(R51,EventConditionConfig!A:C,3,FALSE)&IF(S51="","",CHAR(10)&"-"&VLOOKUP(S51,EventConditionConfig!A:C,3,FALSE))) -> 
A52: =O52*100+P52 -> 1401 | L52: 3225 | M52: 你路过一座矿山，一个闪光点引起了你的注意 | O52: 14 | P52: =IF(O52=O51,P51+1,1) -> 1 | Q52: =_xlfn.TEXTJOIN(";",1,R52:S52) ->  | T52: =IF(R52="","","-"&VLOOKUP(R52,EventConditionConfig!A:C,3,FALSE)&IF(S52="","",CHAR(10)&"-"&VLOOKUP(S52,EventConditionConfig!A:C,3,FALSE))) ->  | AF52: 1 | AG52: =A53 -> 1402 | AI52: =IF(A52="","",MAX(B52,D52,L52,X52,AA52)) -> 3225
A53: =O53*100+P53 -> 1402 | L53: 3226 | M53: 原来这是一颗珍贵的绿玛瑙 | O53: 14 | P53: =IF(O53=O52,P52+1,1) -> 2 | T53: =IF(R53="","","-"&VLOOKUP(R53,EventConditionConfig!A:C,3,FALSE)&IF(S53="","",CHAR(10)&"-"&VLOOKUP(S53,EventConditionConfig!A:C,3,FALSE))) ->  | AF53: 1 | AG53: =A54 -> 1403 | AI53: 3226
A54: =O54*100+P54 -> 1403 | L54: 3227 | M54: 你祭出法宝，将它转化成一些灵石 | O54: 14 | P54: =IF(O54=O53,P53+1,1) -> 3 | T54: =IF(R54="","","-"&VLOOKUP(R54,EventConditionConfig!A:C,3,FALSE)&IF(S54="","",CHAR(10)&"-"&VLOOKUP(S54,EventConditionConfig!A:C,3,FALSE))) ->  | AI54: 3227
L55: 3228
A56: =O56*100+P56 -> 1501 | L56: 3229 | M56: 漫漫旅途，你通过神识释放增进不少阅历 | O56: 15 | P56: =IF(O56=O55,P55+1,1) -> 1 | Q56: =_xlfn.TEXTJOIN(";",1,R56:S56) ->  | T56: =IF(R56="","","-"&VLOOKUP(R56,EventConditionConfig!A:C,3,FALSE)&IF(S56="","",CHAR(10)&"-"&VLOOKUP(S56,EventConditionConfig!A:C,3,FALSE))) ->  | AF56: 1 | AG56: =A57 -> 1502 | AI56: =IF(A56="","",MAX(B56,D56,L56,X56,AA56)) -> 3229
A57: =O57*100+P57 -> 1502 | L57: 3230 | M57: 但随之而来的是神识用尽的空虚感 | O57: 15 | P57: =IF(O57=O56,P56+1,1) -> 2 | T57: =IF(R57="","","-"&VLOOKUP(R57,EventConditionConfig!A:C,3,FALSE)&IF(S57="","",CHAR(10)&"-"&VLOOKUP(S57,EventConditionConfig!A:C,3,FALSE))) ->  | AF57: 1 | AG57: =A58 -> 1503 | AI57: 3230
A58: =O58*100+P58 -> 1503 | L58: 3231 | M58: 但这种感受何尝又不是一种新的阅历呢 | O58: 15 | P58: =IF(O58=O57,P57+1,1) -> 3 | T58: =IF(R58="","","-"&VLOOKUP(R58,EventConditionConfig!A:C,3,FALSE)&IF(S58="","",CHAR(10)&"-"&VLOOKUP(S58,EventConditionConfig!A:C,3,FALSE))) ->  | AF58: 1 | AG58: =A59 -> 1504 | AI58: 3231
A59: =O59*100+P59 -> 1504 | L59: 3232 | M59: 你将这些新的感悟存进了一颗神识丹 | O59: 15 | P59: =IF(O59=O58,P58+1,1) -> 4 | Q59: =_xlfn.TEXTJOIN(";",1,R59:S59) ->  | T59: =IF(R59="","","-"&VLOOKUP(R59,EventConditionConfig!A:C,3,FALSE)&IF(S59="","",CHAR(10)&"-"&VLOOKUP(S59,EventConditionConfig!A:C,3,FALSE))) ->  | AI59: =IF(A59="","",MAX(B59,D59,L59,X59,AA59)) -> 3232
L60: 3233
A61: =O61*100+P61 -> 1601 | L61: 3234 | M61: 两只体型硕大的妖兽正在为了一颗灵丹而缠斗 | O61: 16 | P61: =IF(O61=O60,P60+1,1) -> 1 | Q61: =_xlfn.TEXTJOIN(";",1,R61:S61) ->  | T61: =IF(R61="","","-"&VLOOKUP(R61,EventConditionConfig!A:C,3,FALSE)&IF(S61="","",CHAR(10)&"-"&VLOOKUP(S61,EventConditionConfig!A:C,3,FALSE))) ->  | AF61: 1 | AG61: =A62 -> 1602 | AI61: =IF(A61="","",MAX(B61,D61,L61,X61,AA61)) -> 3234
A62: =O62*100+P62 -> 1602 | L62: 3235 | M62: 突然一道闪电自天而降，正中两只妖兽 | O62: 16 | P62: =IF(O62=O61,P61+1,1) -> 2 | T62: =IF(R62="","","-"&VLOOKUP(R62,EventConditionConfig!A:C,3,FALSE)&IF(S62="","",CHAR(10)&"-"&VLOOKUP(S62,EventConditionConfig!A:C,3,FALSE))) ->  | AF62: 1 | AG62: =A63 -> 1603 | AI62: 3235
A63: =O63*100+P63 -> 1603 | L63: 3236 | M63: 何其悲哉，念完往生咒，你顺手拿走了这颗珍贵的妖丹 | O63: 16 | P63: =IF(O63=O62,P62+1,1) -> 3 | T63: =IF(R63="","","-"&VLOOKUP(R63,EventConditionConfig!A:C,3,FALSE)&IF(S63="","",CHAR(10)&"-"&VLOOKUP(S63,EventConditionConfig!A:C,3,FALSE))) ->  | AI63: 3236
A65: 9003 | B65: 2036 | L65: 2036 | M65: 你在闭关修炼时，感受到一股凌厉的剑意波动。深入探查，发现一名白衣剑修“清霜”盘坐于谷中，周围剑气环绕，正与一柄散发不祥气息的灵剑对峙。她似在参悟剑诀，却灵气不足，剑灵桀骜。 | T65: =IF(R65="","","-"&VLOOKUP(R65,EventConditionConfig!A:C,3,FALSE)&IF(S65="","",CHAR(10)&"-"&VLOOKUP(S65,EventConditionConfig!A:C,3,FALSE))) ->  | U65: 1 | V65: 9004;9006 | W65: 2041;2042 | AI65: 2036
A66: 9004 | B66: 2037 | L66: 2037 | M66: 你上前以剑意对抗剑灵 | T66: =IF(R66="","","-"&VLOOKUP(R66,EventConditionConfig!A:C,3,FALSE)&IF(S66="","",CHAR(10)&"-"&VLOOKUP(S66,EventConditionConfig!A:C,3,FALSE))) ->  | U66: 2 | V66: 100001 | AF66: 2 | AG66: 9005;100 | AI66: 2037
A67: 9005 | B67: 2038 | L67: 2038 | M67: 成功压制剑灵，清霜赠你“霜华剑符”并结下道友之谊 | T67: =IF(R67="","","-"&VLOOKUP(R67,EventConditionConfig!A:C,3,FALSE)&IF(S67="","",CHAR(10)&"-"&VLOOKUP(S67,EventConditionConfig!A:C,3,FALSE))) ->  | AI67: 2038
A68: 9006 | B68: 2039 | L68: 2039 | M68: 你察觉谷中灵气匮乏，清霜剑意凝滞。神识探查得知，附近秘境可采集“玄冰花” | T68: =IF(R68="","","-"&VLOOKUP(R68,EventConditionConfig!A:C,3,FALSE)&IF(S68="","",CHAR(10)&"-"&VLOOKUP(S68,EventConditionConfig!A:C,3,FALSE))) ->  | AI68: 2039
A69: 9007 | B69: 2040 | L69: 2040 | M69: 献上玄冰花，清霜炼化灵气突破瓶颈，赠你“玄霜剑意” | T69: =IF(R69="","","-"&VLOOKUP(R69,EventConditionConfig!A:C,3,FALSE)&IF(S69="","",CHAR(10)&"-"&VLOOKUP(S69,EventConditionConfig!A:C,3,FALSE))) ->  | U69: 4 | AF69: 1 | AG69: 9007 | AI69: 2040
A70: 9008 | T70: =IF(R70="","","-"&VLOOKUP(R70,EventConditionConfig!A:C,3,FALSE)&IF(S70="","",CHAR(10)&"-"&VLOOKUP(S70,EventConditionConfig!A:C,3,FALSE))) ->  | U70: 3 | AD70: 1001 | AE70: 999 | AI70: 0
T71: =IF(R71="","","-"&VLOOKUP(R71,EventConditionConfig!A:C,3,FALSE)&IF(S71="","",CHAR(10)&"-"&VLOOKUP(S71,EventConditionConfig!A:C,3,FALSE))) -> 
T72: =IF(R72="","","-"&VLOOKUP(R72,EventConditionConfig!A:C,3,FALSE)&IF(S72="","",CHAR(10)&"-"&VLOOKUP(S72,EventConditionConfig!A:C,3,FALSE))) -> 
T73: =IF(R73="","","-"&VLOOKUP(R73,EventConditionConfig!A:C,3,FALSE)&IF(S73="","",CHAR(10)&"-"&VLOOKUP(S73,EventConditionConfig!A:C,3,FALSE))) -> 
A74: 9025 | B74: 2074 | D74: 2073 | E74: 和惠子交谈 | L74: 2074 | M74: 惠子种的葫芦没用，他非常生气，需要打败魔休 | T74: =IF(R74="","","-"&VLOOKUP(R74,EventConditionConfig!A:C,3,FALSE)&IF(S74="","",CHAR(10)&"-"&VLOOKUP(S74,EventConditionConfig!A:C,3,FALSE))) ->  | U74: 1 | V74: 9026 | W74: 2075 | AI74: 2074
A75: 9026 | M75: 选择后接新的事件 | T75: =IF(R75="","","-"&VLOOKUP(R75,EventConditionConfig!A:C,3,FALSE)&IF(S75="","",CHAR(10)&"-"&VLOOKUP(S75,EventConditionConfig!A:C,3,FALSE))) ->  | Y75: 接受任务 | AF75: 3 | AG75: 9014 | AI75: 0
T76: =IF(R76="","","-"&VLOOKUP(R76,EventConditionConfig!A:C,3,FALSE)&IF(S76="","",CHAR(10)&"-"&VLOOKUP(S76,EventConditionConfig!A:C,3,FALSE))) -> 
T77: =IF(R77="","","-"&VLOOKUP(R77,EventConditionConfig!A:C,3,FALSE)&IF(S77="","",CHAR(10)&"-"&VLOOKUP(S77,EventConditionConfig!A:C,3,FALSE))) -> 
A78: 9014 | B78: 2070 | E78: 击杀魔休 | Q78: 3 | R78: 3 | T78: =IF(R78="","","-"&VLOOKUP(R78,EventConditionConfig!A:C,3,FALSE)&IF(S78="","",CHAR(10)&"-"&VLOOKUP(S78,EventConditionConfig!A:C,3,FALSE))) -> -击杀魔休 | AI78: =IF(A78="","",MAX(B78,D78,L78,X78,AA78)) -> 2070
Q79: =_xlfn.TEXTJOIN(";",1,R79:S79) ->  | T79: =IF(R79="","","-"&VLOOKUP(R79,EventConditionConfig!A:C,3,FALSE)&IF(S79="","",CHAR(10)&"-"&VLOOKUP(S79,EventConditionConfig!A:C,3,FALSE))) -> 
T80: =IF(R80="","","-"&VLOOKUP(R80,EventConditionConfig!A:C,3,FALSE)&IF(S80="","",CHAR(10)&"-"&VLOOKUP(S80,EventConditionConfig!A:C,3,FALSE))) -> 
A81: 9031 | B81: 2076 | C81: 出现Boss魔修 | D81: 2077 | E81: 打败魔修 | T81: =IF(R81="","","-"&VLOOKUP(R81,EventConditionConfig!A:C,3,FALSE)&IF(S81="","",CHAR(10)&"-"&VLOOKUP(S81,EventConditionConfig!A:C,3,FALSE))) ->  | U81: 2 | V81: 100001 | AI81: 2077
T82: =IF(R82="","","-"&VLOOKUP(R82,EventConditionConfig!A:C,3,FALSE)&IF(S82="","",CHAR(10)&"-"&VLOOKUP(S82,EventConditionConfig!A:C,3,FALSE))) -> 
A83: =O83*100+P83 -> 1000101 | B83: 2086 | C83: 使用风铃唤醒还未泯灭的神识 | L83: 2083 | M83: 北冥有鱼，其名为鲲…… | N83: 2 | O83: 10001 | P83: =IF(O83=O82,P82+1,1) -> 1 | T83: =IF(R83="","","-"&VLOOKUP(R83,EventConditionConfig!A:C,3,FALSE)&IF(S83="","",CHAR(10)&"-"&VLOOKUP(S83,EventConditionConfig!A:C,3,FALSE))) ->  | AF83: =IF(A83="","",IF(U83=1,"",IF(A84="",3,1))) -> 1 | AG83: =IF(AF83=1,A84,IF(AF83=3,LEFT(A83,5)+1,"")) -> 1000102 | AI83: 2086
A84: =O84*100+P84 -> 1000102 | B84: 2086 | C84: 使用风铃唤醒还未泯灭的神识 | L84: 2084 | M84: 不过北海遥远，何时能寻得鲲鹏的踪迹。 | N84: 2 | O84: 10001 | P84: =IF(O84=O83,P83+1,1) -> 2 | T84: =IF(R84="","","-"&VLOOKUP(R84,EventConditionConfig!A:C,3,FALSE)&IF(S84="","",CHAR(10)&"-"&VLOOKUP(S84,EventConditionConfig!A:C,3,FALSE))) ->  | AF84: =IF(A84="","",IF(U84=1,"",IF(A85="",3,1))) -> 1 | AG84: =IF(AF84=1,A85,IF(AF84=3,LEFT(A84,5)+1,"")) -> 1000103 | AI84: 2086
A85: =O85*100+P85 -> 1000103 | B85: 2086 | C85: 使用风铃唤醒还未泯灭的神识 | L85: 2085 | M85: 好在我的神识尚在，可探天地，再加上刚刚的风铃，或许能寻得前路线索。 | N85: 2 | O85: 10001 | P85: 3 | T85: =IF(R85="","","-"&VLOOKUP(R85,EventConditionConfig!A:C,3,FALSE)&IF(S85="","",CHAR(10)&"-"&VLOOKUP(S85,EventConditionConfig!A:C,3,FALSE))) ->  | AF85: 1 | AG85: 1000104 | AI85: 2086
A86: =O86*100+P86 -> 1000104 | B86: 2086 | C86: 使用风铃唤醒还未泯灭的神识 | O86: 10001 | P86: 4 | Q86: 5 | R86: 5 | T86: =IF(R86="","","-"&VLOOKUP(R86,EventConditionConfig!A:C,3,FALSE)&IF(S86="","",CHAR(10)&"-"&VLOOKUP(S86,EventConditionConfig!A:C,3,FALSE))) -> -使用神识 | AF86: 3 | AG86: 10002 | AI86: 2086
T87: =IF(R87="","","-"&VLOOKUP(R87,EventConditionConfig!A:C,3,FALSE)&IF(S87="","",CHAR(10)&"-"&VLOOKUP(S87,EventConditionConfig!A:C,3,FALSE))) -> 
A88: =O88*100+P88 -> 1000201 | B88: 2091 | C88: 前往妖兽盘踞的地方 | D88: 2094 | E88: 御剑飞行 | L88: 2092 | M88: 神识发现有一条古径，隐于云山之间，不过似乎有妖兽盘踞。 | N88: 3 | O88: 10002 | P88: 1 | T88: =IF(R88="","","-"&VLOOKUP(R88,EventConditionConfig!A:C,3,FALSE)&IF(S88="","",CHAR(10)&"-"&VLOOKUP(S88,EventConditionConfig!A:C,3,FALSE))) ->  | AF88: 1 | AG88: =IF(AF88=1,A89,IF(AF88=3,LEFT(A88,5)+1,"")) -> 1000202 | AI88: 2094
A89: =O89*100+P89 -> 1000202 | B89: 2091 | C89: 前往妖兽盘踞的地方 | D89: 2094 | E89: 御剑飞行 | L89: 2093 | M89: 没其他办法了，过去看看吧。 | N89: 3 | O89: 10002 | P89: 2 | T89: =IF(R89="","","-"&VLOOKUP(R89,EventConditionConfig!A:C,3,FALSE)&IF(S89="","",CHAR(10)&"-"&VLOOKUP(S89,EventConditionConfig!A:C,3,FALSE))) ->  | AF89: 1 | AG89: 1000203 | AI89: 2094
A90: =O90*100+P90 -> 1000203 | B90: 2091 | C90: 前往妖兽盘踞的地方 | D90: 2094 | E90: 御剑飞行 | G90: 1 | H90: 1 | O90: 10002 | P90: 3 | T90: =IF(R90="","","-"&VLOOKUP(R90,EventConditionConfig!A:C,3,FALSE)&IF(S90="","",CHAR(10)&"-"&VLOOKUP(S90,EventConditionConfig!A:C,3,FALSE))) ->  | AF90: 3 | AG90: 10003 | AI90: 2094
T91: =IF(R91="","","-"&VLOOKUP(R91,EventConditionConfig!A:C,3,FALSE)&IF(S91="","",CHAR(10)&"-"&VLOOKUP(S91,EventConditionConfig!A:C,3,FALSE))) -> 
A92: 1000301 | B92: 2095 | C92: 蜩鸟和小麻雀对你的到来很好奇 | K92: =IF(J92="","",VLOOKUP(J92,EventNPC!A:E,5,FALSE)) ->  | L92: 2096 | M92: 应该就是这里了，似乎有古老的阵法挡住了去路 | O92: 10003 | P92: 1 | T92: =IF(R92="","","-"&VLOOKUP(R92,EventConditionConfig!A:C,3,FALSE)&IF(S92="","",CHAR(10)&"-"&VLOOKUP(S92,EventConditionConfig!A:C,3,FALSE))) ->  | AF92: 1 | AG92: 1000302 | AI92: 2096
A93: =O93*100+P93 -> 1000302 | B93: 2095 | C93: 蜩鸟和小麻雀对你的到来很好奇 | K93: =IF(J93="","",VLOOKUP(J93,EventNPC!A:E,5,FALSE)) ->  | L93: 2097 | M93: （结界门前，三只小鸟飞来，落在一旁古松上） | O93: 10003 | P93: 2 | T93: =IF(R93="","","-"&VLOOKUP(R93,EventConditionConfig!A:C,3,FALSE)&IF(S93="","",CHAR(10)&"-"&VLOOKUP(S93,EventConditionConfig!A:C,3,FALSE))) ->  | AF93: 1 | AG93: 1000303 | AI93: 2097
A94: =O94*100+P94 -> 1000303 | B94: 2095 | C94: 蜩鸟和小麻雀对你的到来很好奇 | J94: 101 | K94: =IF(J94="","",VLOOKUP(J94,EventNPC!A:E,5,FALSE)) -> 蜩鸟 | L94: 2098 | M94: （拍翅）：“咦？又是妄图穿行北海之人？” | O94: 10003 | P94: =IF(O94=O93,P93+1,1) -> 3 | T94: =IF(R94="","","-"&VLOOKUP(R94,EventConditionConfig!A:C,3,FALSE)&IF(S94="","",CHAR(10)&"-"&VLOOKUP(S94,EventConditionConfig!A:C,3,FALSE))) ->  | U94: 1 | V94: =A95 -> 1000304 | W94: =_xlfn.TEXTJOIN(";",1,X94,AA94) -> 2099 | X94: 2099 | Y94: 我在寻找鲲鹏，你们知道它在哪里吗？ | AI94: 2099
A95: =O95*100+P95 -> 1000304 | B95: 2095 | C95: 蜩鸟和小麻雀对你的到来很好奇 | J95: 102 | K95: =IF(J95="","",VLOOKUP(J95,EventNPC!A:E,5,FALSE)) -> 小麻雀 | L95: 2100 | M95: （扑棱翅膀）是想要从北海飞往南海的超级大鸟吧？ | O95: 10003 | P95: =IF(O95=O94,P94+1,1) -> 4 | T95: =IF(R95="","","-"&VLOOKUP(R95,EventConditionConfig!A:C,3,FALSE)&IF(S95="","",CHAR(10)&"-"&VLOOKUP(S95,EventConditionConfig!A:C,3,FALSE))) ->  | AF95: 1 | AG95: 1000305 | AI95: 2100
A96: =O96*100+P96 -> 1000305 | B96: 2095 | C96: 蜩鸟和小麻雀对你的到来很好奇 | J96: 102 | K96: =IF(J96="","",VLOOKUP(J96,EventNPC!A:E,5,FALSE)) -> 小麻雀 | L96: 2101 | M96: 我就想不明白，她为何要飞如此之远，太奇怪啦！ | O96: 10003 | P96: =IF(O96=O95,P95+1,1) -> 5 | T96: =IF(R96="","","-"&VLOOKUP(R96,EventConditionConfig!A:C,3,FALSE)&IF(S96="","",CHAR(10)&"-"&VLOOKUP(S96,EventConditionConfig!A:C,3,FALSE))) ->  | U96: 1 | V96: =A97 -> 1000306 | W96: 2102 | X96: 2102 | Y96: 鲲鹏是在追求心中的目标吧。 | AI96: 2102
A97: =O97*100+P97 -> 1000306 | B97: 2095 | C97: 蜩鸟和小麻雀对你的到来很好奇 | J97: 102 | K97: =IF(J97="","",VLOOKUP(J97,EventNPC!A:E,5,FALSE)) -> 小麻雀 | L97: 2103 | M97: （偏头想了想）目标？我天天在这里上蹿下跳，在附近树林飞来飞去，就已经很幸福啦。 | O97: 10003 | P97: =IF(O97=O96,P96+1,1) -> 6 | T97: =IF(R97="","","-"&VLOOKUP(R97,EventConditionConfig!A:C,3,FALSE)&IF(S97="","",CHAR(10)&"-"&VLOOKUP(S97,EventConditionConfig!A:C,3,FALSE))) ->  | AF97: 1 | AG97: 1000307 | AI97: 2103
A98: =O98*100+P98 -> 1000307 | B98: 2095 | C98: 蜩鸟和小麻雀对你的到来很好奇 | J98: 102 | K98: =IF(J98="","",VLOOKUP(J98,EventNPC!A:E,5,FALSE)) -> 小麻雀 | L98: 2104 | M98: 就那大傻鸟，非要飞那么远，又笨又蠢...真没意思。 | O98: 10003 | P98: =IF(O98=O97,P97+1,1) -> 7 | T98: =IF(R98="","","-"&VLOOKUP(R98,EventConditionConfig!A:C,3,FALSE)&IF(S98="","",CHAR(10)&"-"&VLOOKUP(S98,EventConditionConfig!A:C,3,FALSE))) ->  | U98: 1 | V98: =IF(U98=1,_xlfn.TEXTJOIN(";",1,IF(Z98="",A98+1,Z98),IF(AND(AA98<>"",AC98=""),A98+1,AC98)),IF(U98=2,Y98,"")) -> 1000308;1000308 | W98: 2105;2106 | X98: 2105 | Y98: 你说得也有一定道理… | AA98: 2106 | AB98: 你懂什么..这大鹏鸟可比你更有志向多了。 | AI98: 2106
A99: =O99*100+P99 -> 1000308 | B99: 2095 | C99: 蜩鸟和小麻雀对你的到来很好奇 | J99: 101 | K99: =IF(J99="","",VLOOKUP(J99,EventNPC!A:E,5,FALSE)) -> 蜩鸟 | L99: 2107 | M99: （翻飞一圈）志向有什么用？到头来还不是风停了就落地。 | O99: 10003 | P99: =IF(O99=O98,P98+1,1) -> 8 | T99: =IF(R99="","","-"&VLOOKUP(R99,EventConditionConfig!A:C,3,FALSE)&IF(S99="","",CHAR(10)&"-"&VLOOKUP(S99,EventConditionConfig!A:C,3,FALSE))) ->  | U99: 1 | V99: =A100 -> 1000309 | W99: 2108 | X99: 2108 | Y99: ...... | AI99: 2108
A100: =O100*100+P100 -> 1000309 | B100: 2095 | C100: 蜩鸟和小麻雀对你的到来很好奇 | K100: =IF(J100="","",VLOOKUP(J100,EventNPC!A:E,5,FALSE)) ->  | L100: 2109 | M100: （此时，结界微动，一缕风穿林而过，古径阵法竟有一丝松动） | O100: 10003 | P100: =IF(O100=O99,P99+1,1) -> 9 | T100: =IF(R100="","","-"&VLOOKUP(R100,EventConditionConfig!A:C,3,FALSE)&IF(S100="","",CHAR(10)&"-"&VLOOKUP(S100,EventConditionConfig!A:C,3,FALSE))) ->  | AF100: 3 | AG100: 10004 | AI100: 2109
T101: =IF(R101="","","-"&VLOOKUP(R101,EventConditionConfig!A:C,3,FALSE)&IF(S101="","",CHAR(10)&"-"&VLOOKUP(S101,EventConditionConfig!A:C,3,FALSE))) -> 
A102: =O102*100+P102 -> 1000401 | B102: 2110 | C102: 原来它们就是镇守阵法的结界兽 | D102: 3185 | E102: 击败结界兽 | J102: 101 | K102: =IF(J102="","",VLOOKUP(J102,EventNPC!A:E,5,FALSE)) -> 蜩鸟 | L102: 2111 | M102: 这结界似乎有所反应… | O102: 10004 | P102: =IF(O102=O101,P101+1,1) -> 1 | T102: =IF(R102="","","-"&VLOOKUP(R102,EventConditionConfig!A:C,3,FALSE)&IF(S102="","",CHAR(10)&"-"&VLOOKUP(S102,EventConditionConfig!A:C,3,FALSE))) ->  | U102: 1 | V102: =A103 -> 1000402 | W102: =_xlfn.TEXTJOIN(";",1,X102,AA102) -> 2112 | X102: 2112 | Y102: 与你们聊天很有意思，不过今天我是非过去不可，没人能阻止我重返仙途！ | AI102: 3185
A103: =O103*100+P103 -> 1000402 | B103: 2110 | C103: 原来它们就是镇守阵法的结界兽 | D103: 3185 | E103: 击败结界兽 | J103: 102 | K103: =IF(J103="","",VLOOKUP(J103,EventNPC!A:E,5,FALSE)) -> 小麻雀 | L103: 2113 | M103: "小鸟.."现身吧！ | O103: 10004 | P103: =IF(O103=O102,P102+1,1) -> 2 | T103: =IF(R103="","","-"&VLOOKUP(R103,EventConditionConfig!A:C,3,FALSE)&IF(S103="","",CHAR(10)&"-"&VLOOKUP(S103,EventConditionConfig!A:C,3,FALSE))) ->  | W103: =_xlfn.TEXTJOIN(";",1,X103,AA103) ->  | AF103: =IF(A103="","",IF(U103=1,"",IF(A104="",3,1))) -> 1 | AG103: =IF(AF103=1,A104,IF(AF103=3,LEFT(A103,5)+1,"")) -> 1000403 | AI103: 3185
A104: =O104*100+P104 -> 1000403 | B104: 2110 | C104: 原来它们就是镇守阵法的结界兽 | D104: 3185 | E104: 击败结界兽 | J104: 101 | K104: =IF(J104="","",VLOOKUP(J104,EventNPC!A:E,5,FALSE)) -> 蜩鸟 | L104: 2114 | M104: （轻轻飞下来..）又来...来吧来吧.. | O104: 10004 | P104: =IF(O104=O103,P103+1,1) -> 3 | T104: =IF(R104="","","-"&VLOOKUP(R104,EventConditionConfig!A:C,3,FALSE)&IF(S104="","",CHAR(10)&"-"&VLOOKUP(S104,EventConditionConfig!A:C,3,FALSE))) ->  | U104: 2 | V104: 100001 | W104: =_xlfn.TEXTJOIN(";",1,X104,AA104) ->  | AF104: 2 | AG104: 1000404;101 | AI104: 3185
A105: =O105*100+P105 -> 1000404 | B105: 2110 | C105: 原来它们就是镇守阵法的结界兽 | J105: 102 | K105: =IF(J105="","",VLOOKUP(J105,EventNPC!A:E,5,FALSE)) -> 小麻雀 | L105: 2115 | M105: 这么想过去，就去吧... | O105: 10004 | P105: =IF(O105=O104,P104+1,1) -> 4 | T105: =IF(R105="","","-"&VLOOKUP(R105,EventConditionConfig!A:C,3,FALSE)&IF(S105="","",CHAR(10)&"-"&VLOOKUP(S105,EventConditionConfig!A:C,3,FALSE))) ->  | W105: =_xlfn.TEXTJOIN(";",1,X105,AA105) ->  | AF105: =IF(A105="","",IF(U105=1,"",IF(A106="",3,1))) -> 3 | AG105: =IF(AF105=1,A106,IF(AF105=3,LEFT(A105,5)+1,"")) -> 10005 | AI105: 2115
T106: =IF(R106="","","-"&VLOOKUP(R106,EventConditionConfig!A:C,3,FALSE)&IF(S106="","",CHAR(10)&"-"&VLOOKUP(S106,EventConditionConfig!A:C,3,FALSE))) -> 
A107: =O107*100+P107 -> 1000501 | B107: 2151 | C107: 初见疯道人 | K107: =IF(J107="","",VLOOKUP(J107,EventNPC!A:E,5,FALSE)) ->  | L107: 2116 | M107: 你穿过古径结界，来到一片被风托起的浮空灵岛群。 | O107: 10005 | P107: =IF(O107=O106,P106+1,1) -> 1 | T107: =IF(R107="","","-"&VLOOKUP(R107,EventConditionConfig!A:C,3,FALSE)&IF(S107="","",CHAR(10)&"-"&VLOOKUP(S107,EventConditionConfig!A:C,3,FALSE))) ->  | W107: =_xlfn.TEXTJOIN(";",1,X107,AA107) ->  | AF107: =IF(A107="","",IF(U107=1,"",IF(A108="",3,1))) -> 1 | AG107: =IF(AF107=1,A108,IF(AF107=3,LEFT(A107,5)+1,"")) -> 1000502 | AI107: 2151
A108: =O108*100+P108 -> 1000502 | B108: 2151 | C108: 初见疯道人 | K108: =IF(J108="","",VLOOKUP(J108,EventNPC!A:E,5,FALSE)) ->  | L108: 2117 | M108: 风势强劲，岛与岛之间缝隙深不见底，无桥无梯。 | O108: 10005 | P108: =IF(O108=O107,P107+1,1) -> 2 | T108: =IF(R108="","","-"&VLOOKUP(R108,EventConditionConfig!A:C,3,FALSE)&IF(S108="","",CHAR(10)&"-"&VLOOKUP(S108,EventConditionConfig!A:C,3,FALSE))) ->  | AF108: =IF(A108="","",IF(U108=1,"",IF(A109="",3,1))) -> 1 | AG108: =IF(AF108=1,A109,IF(AF108=3,LEFT(A108,5)+1,"")) -> 1000503 | AI108: 2151
A109: =O109*100+P109 -> 1000503 | B109: 2151 | C109: 初见疯道人 | K109: =IF(J109="","",VLOOKUP(J109,EventNPC!A:E,5,FALSE)) ->  | L109: 2118 | M109: 此处盘踞一位神秘道人，常独自站在岛边望风，仿佛等待什么。 | O109: 10005 | P109: =IF(O109=O108,P108+1,1) -> 3 | T109: =IF(R109="","","-"&VLOOKUP(R109,EventConditionConfig!A:C,3,FALSE)&IF(S109="","",CHAR(10)&"-"&VLOOKUP(S109,EventConditionConfig!A:C,3,FALSE))) ->  | AF109: =IF(A109="","",IF(U109=1,"",IF(A110="",3,1))) -> 1 | AG109: =IF(AF109=1,A110,IF(AF109=3,LEFT(A109,5)+1,"")) -> 1000504 | AI109: 2151
A110: =O110*100+P110 -> 1000504 | B110: 2151 | C110: 初见疯道人 | K110: =IF(J110="","",VLOOKUP(J110,EventNPC!A:E,5,FALSE)) ->  | L110: 2119 | M110: （你尝试御剑，却在风中打转，被吹回原地） | O110: 10005 | P110: =IF(O110=O109,P109+1,1) -> 4 | T110: =IF(R110="","","-"&VLOOKUP(R110,EventConditionConfig!A:C,3,FALSE)&IF(S110="","",CHAR(10)&"-"&VLOOKUP(S110,EventConditionConfig!A:C,3,FALSE))) ->  | U110: 1 | V110: =A111 -> 1000505 | W110: 2120 | X110: 2120 | Y110: 前辈，这里的风太大，我无法飞行，请教如何才能通过？ | AF110: =IF(A110="","",IF(U110=1,"",IF(A111="",3,1))) ->  | AG110: =IF(AF110=1,A111,IF(AF110=3,LEFT(A110,5)+1,"")) ->  | AI110: 2151
A111: 1000505 | B111: 2151 | C111: 初见疯道人 | J111: 103 | K111: =IF(J111="","",VLOOKUP(J111,EventNPC!A:E,5,FALSE)) -> 疯道人 | L111: 2121 | M111: ...... | O111: 10005 | P111: 5 | T111: =IF(R111="","","-"&VLOOKUP(R111,EventConditionConfig!A:C,3,FALSE)&IF(S111="","",CHAR(10)&"-"&VLOOKUP(S111,EventConditionConfig!A:C,3,FALSE))) ->  | U111: 1 | V111: =A112 -> 1000506 | W111: 2122 | X111: 2122 | Y111: 前辈，我准备前往北海深处，寻鲲鹏。 | AI111: 2151
A112: 1000506 | B112: 2151 | C112: 初见疯道人 | J112: 103 | K112: =IF(J112="","",VLOOKUP(J112,EventNPC!A:E,5,FALSE)) -> 疯道人 | L112: 2123 | M112: 鲲鹏？……世间竟还有人记得它。 | O112: 10005 | P112: 6 | T112: =IF(R112="","","-"&VLOOKUP(R112,EventConditionConfig!A:C,3,FALSE)&IF(S112="","",CHAR(10)&"-"&VLOOKUP(S112,EventConditionConfig!A:C,3,FALSE))) ->  | AF112: 1 | AG112: 1000507 | AI112: 2151
A113: =O113*100+P113 -> 1000507 | B113: 2151 | C113: 初见疯道人 | J113: 103 | K113: =IF(J113="","",VLOOKUP(J113,EventNPC!A:E,5,FALSE)) -> 疯道人 | L113: 2124 | M113: （说着从手中掏出一个碎片，往空中一震，瞬间风停）过来吧。 | O113: 10005 | P113: =IF(O113=O112,P112+1,1) -> 7 | T113: =IF(R113="","","-"&VLOOKUP(R113,EventConditionConfig!A:C,3,FALSE)&IF(S113="","",CHAR(10)&"-"&VLOOKUP(S113,EventConditionConfig!A:C,3,FALSE))) ->  | AF113: =IF(A113="","",IF(U113=1,"",IF(A114="",3,1))) -> 1 | AG113: =IF(AF113=1,A114,IF(AF113=3,LEFT(A113,5)+1,"")) -> 1000508 | AI113: 2151
A114: =O114*100+P114 -> 1000508 | B114: 2151 | C114: 初见疯道人 | J114: 103 | K114: =IF(J114="","",VLOOKUP(J114,EventNPC!A:E,5,FALSE)) -> 疯道人 | L114: 2125 | M114: 说吧，为何寻那鲲鹏？ | O114: 10005 | P114: =IF(O114=O113,P113+1,1) -> 8 | T114: =IF(R114="","","-"&VLOOKUP(R114,EventConditionConfig!A:C,3,FALSE)&IF(S114="","",CHAR(10)&"-"&VLOOKUP(S114,EventConditionConfig!A:C,3,FALSE))) ->  | U114: 1 | V114: =IF(U114=1,_xlfn.TEXTJOIN(";",1,IF(Z114="",A114+1,Z114),IF(AND(AA114<>"",AC114=""),A114+1,AC114)),IF(U114=2,Y114,"")) -> 1000509;1000509 | W114: 2126;2127 | X114: 2126 | Y114: 冲虚真人让我去的 | AA114: 2127 | AB114: 我只是好奇.. | AF114: =IF(A114="","",IF(U114=1,"",IF(A115="",3,1))) ->  | AG114: =IF(AF114=1,A115,IF(AF114=3,LEFT(A114,5)+1,"")) ->  | AI114: 2151
A115: 1000509 | B115: 2151 | C115: 初见疯道人 | J115: 103 | K115: =IF(J115="","",VLOOKUP(J115,EventNPC!A:E,5,FALSE)) -> 疯道人 | L115: 2128 | M115: 你可知鹏飞九万里，需凭借龙卷风，才可达成？ | O115: 10005 | P115: 9 | T115: =IF(R115="","","-"&VLOOKUP(R115,EventConditionConfig!A:C,3,FALSE)&IF(S115="","",CHAR(10)&"-"&VLOOKUP(S115,EventConditionConfig!A:C,3,FALSE))) ->  | U115: 1 | V115: =A116 -> 1000510 | W115: 2129 | X115: 2129 | Y115: 请前辈赐教...... | AI115: 2151
A116: 1000510 | B116: 2151 | C116: 初见疯道人 | J116: 103 | K116: =IF(J116="","",VLOOKUP(J116,EventNPC!A:E,5,FALSE)) -> 疯道人 | L116: 2130 | M116: 看你修为尚浅，跟你说多了也无用。 | O116: 10005 | P116: 10 | T116: =IF(R116="","","-"&VLOOKUP(R116,EventConditionConfig!A:C,3,FALSE)&IF(S116="","",CHAR(10)&"-"&VLOOKUP(S116,EventConditionConfig!A:C,3,FALSE))) ->  | AF116: 1 | AG116: 1000511 | AI116: 2151
A117: =O117*100+P117 -> 1000511 | B117: 2151 | C117: 初见疯道人 | J117: 103 | K117: =IF(J117="","",VLOOKUP(J117,EventNPC!A:E,5,FALSE)) -> 疯道人 | L117: 2131 | M117: 再往前是我师弟的洞府了，他可不好说话。 | O117: 10005 | P117: =IF(O117=O116,P116+1,1) -> 11 | T117: =IF(R117="","","-"&VLOOKUP(R117,EventConditionConfig!A:C,3,FALSE)&IF(S117="","",CHAR(10)&"-"&VLOOKUP(S117,EventConditionConfig!A:C,3,FALSE))) ->  | AF117: =IF(A117="","",IF(U117=1,"",IF(A118="",3,1))) -> 1 | AG117: =IF(AF117=1,A118,IF(AF117=3,LEFT(A117,5)+1,"")) -> 1000512 | AI117: 2151
A118: =O118*100+P118 -> 1000512 | B118: 2151 | C118: 初见疯道人 | J118: 103 | K118: =IF(J118="","",VLOOKUP(J118,EventNPC!A:E,5,FALSE)) -> 疯道人 | L118: 2132 | M118: 就在我这附近好好修炼吧，至少提升至筑基修为。 | O118: 10005 | P118: =IF(O118=O117,P117+1,1) -> 12 | T118: =IF(R118="","","-"&VLOOKUP(R118,EventConditionConfig!A:C,3,FALSE)&IF(S118="","",CHAR(10)&"-"&VLOOKUP(S118,EventConditionConfig!A:C,3,FALSE))) ->  | U118: 1 | V118: =A119 -> 1000513 | W118: 2133 | X118: 2133 | Y118: 前辈为何如此助我？ | AF118: =IF(A118="","",IF(U118=1,"",IF(A119="",3,1))) ->  | AG118: =IF(AF118=1,A119,IF(AF118=3,LEFT(A118,5)+1,"")) ->  | AI118: 2151
A119: 1000513 | B119: 2151 | C119: 初见疯道人 | J119: 103 | K119: =IF(J119="","",VLOOKUP(J119,EventNPC!A:E,5,FALSE)) -> 疯道人 | L119: 2134 | M119: （疯道人望你一眼，没有回答，但丢过来一本功法）修到[筑基-中期]再来找我。 | O119: 10005 | P119: 13 | T119: =IF(R119="","","-"&VLOOKUP(R119,EventConditionConfig!A:C,3,FALSE)&IF(S119="","",CHAR(10)&"-"&VLOOKUP(S119,EventConditionConfig!A:C,3,FALSE))) ->  | AF119: 1 | AG119: 1000514 | AI119: 2151
A120: =O120*100+P120 -> 1000514 | B120: 2151 | C120: 初见疯道人 | K120: =IF(J120="","",VLOOKUP(J120,EventNPC!A:E,5,FALSE)) ->  | O120: 10005 | P120: =IF(O120=O119,P119+1,1) -> 14 | Q120: 2 | R120: 2 | T120: =IF(R120="","","-"&VLOOKUP(R120,EventConditionConfig!A:C,3,FALSE)&IF(S120="","",CHAR(10)&"-"&VLOOKUP(S120,EventConditionConfig!A:C,3,FALSE))) -> -达到境界：筑基-中期 | AF120: =IF(A120="","",IF(U120=1,"",IF(A121="",3,1))) -> 3 | AG120: =IF(AF120=1,A121,IF(AF120=3,LEFT(A120,5)+1,"")) -> 10006 | AI120: 2151
T121: =IF(R121="","","-"&VLOOKUP(R121,EventConditionConfig!A:C,3,FALSE)&IF(S121="","",CHAR(10)&"-"&VLOOKUP(S121,EventConditionConfig!A:C,3,FALSE))) -> 
A122: =O122*100+P122 -> 1000601 | B122: 2152 | C122: 疯道人赠与一半风灵珠 | J122: 103 | K122: =IF(J122="","",VLOOKUP(J122,EventNPC!A:E,5,FALSE)) -> 疯道人 | L122: 2139 | M122: 你已突破筑基前期达到中期，灵力通畅，是时候去会一会我的师弟了。 | O122: 10006 | P122: =IF(O122=O121,P121+1,1) -> 1 | T122: =IF(R122="","","-"&VLOOKUP(R122,EventConditionConfig!A:C,3,FALSE)&IF(S122="","",CHAR(10)&"-"&VLOOKUP(S122,EventConditionConfig!A:C,3,FALSE))) ->  | U122: 1 | V122: 1000603;1000602 | W122: =_xlfn.TEXTJOIN(";",1,X122,AA122) -> 2140;2141 | X122: 2140 | Y122: 是的。鲲鹏之行，志在必达。 | AA122: 2141 | AB122: 看看风的尽头到底有什么。 | AF122: =IF(A122="","",IF(U122=1,"",IF(A123="",3,1))) ->  | AG122: =IF(AF122=1,A123,IF(AF122=3,LEFT(A122,5)+1,"")) ->  | AI122: 2152
A123: =O123*100+P123 -> 1000602 | B123: 2152 | C123: 疯道人赠与一半风灵珠 | J123: 103 | K123: =IF(J123="","",VLOOKUP(J123,EventNPC!A:E,5,FALSE)) -> 疯道人 | L123: 2142 | M123: （轻轻一笑）你说风的尽头……我也曾想看。 （他望向远处翻涌的云海） | O123: 10006 | P123: =IF(O123=O122,P122+1,1) -> 2 | T123: =IF(R123="","","-"&VLOOKUP(R123,EventConditionConfig!A:C,3,FALSE)&IF(S123="","",CHAR(10)&"-"&VLOOKUP(S123,EventConditionConfig!A:C,3,FALSE))) ->  | U123: 1 | V123: =A124 -> 1000603 | W123: 2140 | X123: 2140 | Y123: 是的。鲲鹏之行，志在必达。 | AF123: =IF(A123="","",IF(U123=1,"",IF(A124="",3,1))) ->  | AG123: =IF(AF123=1,A124,IF(AF123=3,LEFT(A123,5)+1,"")) ->  | AI123: 2152
A124: =O124*100+P124 -> 1000603 | B124: 2152 | C124: 疯道人赠与一半风灵珠 | J124: 103 | K124: =IF(J124="","",VLOOKUP(J124,EventNPC!A:E,5,FALSE)) -> 疯道人 | L124: 2143 | M124: 我和师弟，共守这处风眼多年。我想出去，他却偏要留。 | O124: 10006 | P124: =IF(O124=O123,P123+1,1) -> 3 | T124: =IF(R124="","","-"&VLOOKUP(R124,EventConditionConfig!A:C,3,FALSE)&IF(S124="","",CHAR(10)&"-"&VLOOKUP(S124,EventConditionConfig!A:C,3,FALSE))) ->  | AF124: =IF(A124="","",IF(U124=1,"",IF(A125="",3,1))) -> 1 | AG124: =IF(AF124=1,A125,IF(AF124=3,LEFT(A124,5)+1,"")) -> 1000604 | AI124: 2152
A125: =O125*100+P125 -> 1000604 | B125: 2152 | C125: 疯道人赠与一半风灵珠 | J125: 103 | K125: =IF(J125="","",VLOOKUP(J125,EventNPC!A:E,5,FALSE)) -> 疯道人 | L125: 2144 | M125: 风灵珠碎成两半，一半在我这里，另一半……在他洞府中。 | O125: 10006 | P125: =IF(O125=O124,P124+1,1) -> 4 | T125: =IF(R125="","","-"&VLOOKUP(R125,EventConditionConfig!A:C,3,FALSE)&IF(S125="","",CHAR(10)&"-"&VLOOKUP(S125,EventConditionConfig!A:C,3,FALSE))) ->  | AF125: =IF(A125="","",IF(U125=1,"",IF(A126="",3,1))) -> 1 | AG125: =IF(AF125=1,A126,IF(AF125=3,LEFT(A125,5)+1,"")) -> 1000605 | AI125: 2152
A126: =O126*100+P126 -> 1000605 | B126: 2152 | C126: 疯道人赠与一半风灵珠 | J126: 103 | K126: =IF(J126="","",VLOOKUP(J126,EventNPC!A:E,5,FALSE)) -> 疯道人 | L126: 2145 | M126: 你若想见鲲鹏，必须要集齐整个风灵珠。 | O126: 10006 | P126: =IF(O126=O125,P125+1,1) -> 5 | T126: =IF(R126="","","-"&VLOOKUP(R126,EventConditionConfig!A:C,3,FALSE)&IF(S126="","",CHAR(10)&"-"&VLOOKUP(S126,EventConditionConfig!A:C,3,FALSE))) ->  | AF126: =IF(A126="","",IF(U126=1,"",IF(A127="",3,1))) -> 1 | AG126: =IF(AF126=1,A127,IF(AF126=3,LEFT(A126,5)+1,"")) -> 1000606 | AI126: 2152
A127: =O127*100+P127 -> 1000606 | B127: 2152 | C127: 疯道人赠与一半风灵珠 | J127: 103 | K127: =IF(J127="","",VLOOKUP(J127,EventNPC!A:E,5,FALSE)) -> 疯道人 | L127: 2146 | M127: 我这一半给你，可助你在大风中，来去自如。 | O127: 10006 | P127: =IF(O127=O126,P126+1,1) -> 6 | T127: =IF(R127="","","-"&VLOOKUP(R127,EventConditionConfig!A:C,3,FALSE)&IF(S127="","",CHAR(10)&"-"&VLOOKUP(S127,EventConditionConfig!A:C,3,FALSE))) ->  | AF127: =IF(A127="","",IF(U127=1,"",IF(A128="",3,1))) -> 3 | AG127: =IF(AF127=1,A128,IF(AF127=3,LEFT(A127,5)+1,"")) -> 10007 | AI127: 2152
T128: =IF(R128="","","-"&VLOOKUP(R128,EventConditionConfig!A:C,3,FALSE)&IF(S128="","",CHAR(10)&"-"&VLOOKUP(S128,EventConditionConfig!A:C,3,FALSE))) -> 
A129: =O129*100+P129 -> 1000701 | B129: 2153 | C129: 没想到痴道人一来就要与你交手 | K129: =IF(J129="","",VLOOKUP(J129,EventNPC!A:E,5,FALSE)) ->  | L129: 2147 | M129: 你获得了疯道人的半颗风灵珠，在狂风中自由飞行，好不自在。 | O129: 10007 | P129: =IF(O129=O128,P128+1,1) -> 1 | T129: =IF(R129="","","-"&VLOOKUP(R129,EventConditionConfig!A:C,3,FALSE)&IF(S129="","",CHAR(10)&"-"&VLOOKUP(S129,EventConditionConfig!A:C,3,FALSE))) ->  | W129: =_xlfn.TEXTJOIN(";",1,X129,AA129) ->  | AF129: =IF(A129="","",IF(U129=1,"",IF(A130="",3,1))) -> 1 | AG129: =IF(AF129=1,A130,IF(AF129=3,LEFT(A129,5)+1,"")) -> 1000702 | AI129: 2153
A130: =O130*100+P130 -> 1000702 | B130: 2153 | C130: 没想到痴道人一来就要与你交手 | K130: =IF(J130="","",VLOOKUP(J130,EventNPC!A:E,5,FALSE)) ->  | L130: 2148 | M130: 这......就是逍遥游吗？ | O130: 10007 | P130: =IF(O130=O129,P129+1,1) -> 2 | T130: =IF(R130="","","-"&VLOOKUP(R130,EventConditionConfig!A:C,3,FALSE)&IF(S130="","",CHAR(10)&"-"&VLOOKUP(S130,EventConditionConfig!A:C,3,FALSE))) ->  | W130: =_xlfn.TEXTJOIN(";",1,X130,AA130) ->  | AF130: =IF(A130="","",IF(U130=1,"",IF(A131="",3,1))) -> 1 | AG130: =IF(AF130=1,A131,IF(AF130=3,LEFT(A130,5)+1,"")) -> 1000703 | AI130: 2153
A131: =O131*100+P131 -> 1000703 | B131: 2153 | C131: 没想到痴道人一来就要与你交手 | J131: 104 | K131: =IF(J131="","",VLOOKUP(J131,EventNPC!A:E,5,FALSE)) -> 痴道人 | L131: 2149 | M131: 你终于来了...... | O131: 10007 | P131: =IF(O131=O130,P130+1,1) -> 3 | T131: =IF(R131="","","-"&VLOOKUP(R131,EventConditionConfig!A:C,3,FALSE)&IF(S131="","",CHAR(10)&"-"&VLOOKUP(S131,EventConditionConfig!A:C,3,FALSE))) ->  | U131: 1 | V131: =A132 -> 1000704 | W131: =_xlfn.TEXTJOIN(";",1,X131,AA131) -> 2150 | X131: 2150 | Y131: 你知道我要来？ | AF131: =IF(A131="","",IF(U131=1,"",IF(A132="",3,1))) ->  | AG131: =IF(AF131=1,A132,IF(AF131=3,LEFT(A131,5)+1,"")) ->  | AI131: 2153
A132: =O132*100+P132 -> 1000704 | B132: 2153 | C132: 没想到痴道人一来就要与你交手 | J132: 104 | K132: =IF(J132="","",VLOOKUP(J132,EventNPC!A:E,5,FALSE)) -> 痴道人 | L132: 2154 | M132: 多说无益，我早已感应到你身上的半颗风灵珠。必是那疯老头让来的。出手吧！ | O132: 10007 | P132: =IF(O132=O131,P131+1,1) -> 4 | T132: =IF(R132="","","-"&VLOOKUP(R132,EventConditionConfig!A:C,3,FALSE)&IF(S132="","",CHAR(10)&"-"&VLOOKUP(S132,EventConditionConfig!A:C,3,FALSE))) ->  | U132: 2 | V132: 100004 | W132: =_xlfn.TEXTJOIN(";",1,X132,AA132) ->  | AF132: 2 | AG132: 1000705;101 | AI132: 2154
A133: 1000705 | B133: 2153 | C133: 没想到痴道人一来就要与你交手 | J133: 104 | K133: =IF(J133="","",VLOOKUP(J133,EventNPC!A:E,5,FALSE)) -> 痴道人 | L133: 2155 | M133: （被击倒在一边）够了！ | O133: 10007 | P133: 5 | T133: =IF(R133="","","-"&VLOOKUP(R133,EventConditionConfig!A:C,3,FALSE)&IF(S133="","",CHAR(10)&"-"&VLOOKUP(S133,EventConditionConfig!A:C,3,FALSE))) ->  | W133: =_xlfn.TEXTJOIN(";",1,X133,AA133) ->  | AF133: =IF(A133="","",IF(U133=1,"",IF(A134="",3,1))) -> 3 | AG133: =IF(AF133=1,A134,IF(AF133=3,LEFT(A133,5)+1,"")) -> 10008 | AI133: 2155
T134: =IF(R134="","","-"&VLOOKUP(R134,EventConditionConfig!A:C,3,FALSE)&IF(S134="","",CHAR(10)&"-"&VLOOKUP(S134,EventConditionConfig!A:C,3,FALSE))) -> 
A135: =O135*100+P135 -> 1000801 | B135: 2156 | C135: 疯痴相聚 | J135: 104 | K135: =IF(J135="","",VLOOKUP(J135,EventNPC!A:E,5,FALSE)) -> 痴道人 | L135: 2157 | M135: ...... | O135: 10008 | P135: =IF(O135=O134,P134+1,1) -> 1 | T135: =IF(R135="","","-"&VLOOKUP(R135,EventConditionConfig!A:C,3,FALSE)&IF(S135="","",CHAR(10)&"-"&VLOOKUP(S135,EventConditionConfig!A:C,3,FALSE))) ->  | U135: 1 | V135: =A136 -> 1000802 | W135: =_xlfn.TEXTJOIN(";",1,X135,AA135) -> 2158 | X135: 2158 | Y135: （你靠近痴道人）你真的想一直留在这里？你师兄说你不肯走。 | AF135: =IF(A135="","",IF(U135=1,"",IF(A136="",3,1))) ->  | AG135: =IF(AF135=1,A136,IF(AF135=3,LEFT(A135,5)+1,"")) ->  | AI135: 2158
A136: 1000802 | B136: 2156 | C136: 疯痴相聚 | J136: 104 | K136: =IF(J136="","",VLOOKUP(J136,EventNPC!A:E,5,FALSE)) -> 痴道人 | L136: 2159 | M136: 你修炼的时候，有没有过那种感觉——身边的人都在往前走，只有你还在原地。 | O136: 10008 | P136: 2 | T136: =IF(R136="","","-"&VLOOKUP(R136,EventConditionConfig!A:C,3,FALSE)&IF(S136="","",CHAR(10)&"-"&VLOOKUP(S136,EventConditionConfig!A:C,3,FALSE))) ->  | AF136: 1 | AG136: 1000803 | AI136: 2159
A137: =O137*100+P137 -> 1000803 | B137: 2156 | C137: 疯痴相聚 | J137: 104 | K137: =IF(J137="","",VLOOKUP(J137,EventNPC!A:E,5,FALSE)) -> 痴道人 | L137: 2160 | M137: 我师兄，他悟性极高，一年就能走我三年的路。我不服气，想努力赶上他。 | O137: 10008 | P137: =IF(O137=O136,P136+1,1) -> 3 | T137: =IF(R137="","","-"&VLOOKUP(R137,EventConditionConfig!A:C,3,FALSE)&IF(S137="","",CHAR(10)&"-"&VLOOKUP(S137,EventConditionConfig!A:C,3,FALSE))) ->  | U137: 1 | V137: =A138 -> 1000804 | W137: 2161 | X137: 2161 | Y137: 然后呢？ | AF137: =IF(A137="","",IF(U137=1,"",IF(A138="",3,1))) ->  | AG137: =IF(AF137=1,A138,IF(AF137=3,LEFT(A137,5)+1,"")) ->  | AI137: 2161
A138: =O138*100+P138 -> 1000804 | B138: 2156 | C138: 疯痴相聚 | J138: 104 | K138: =IF(J138="","",VLOOKUP(J138,EventNPC!A:E,5,FALSE)) -> 痴道人 | L138: 2162 | M138: 我一直苦心修炼，可人也困在这儿了……越修炼，越困难，修不动了。 | O138: 10008 | P138: =IF(O138=O137,P137+1,1) -> 4 | T138: =IF(R138="","","-"&VLOOKUP(R138,EventConditionConfig!A:C,3,FALSE)&IF(S138="","",CHAR(10)&"-"&VLOOKUP(S138,EventConditionConfig!A:C,3,FALSE))) ->  | AF138: =IF(A138="","",IF(U138=1,"",IF(A139="",3,1))) -> 1 | AG138: =IF(AF138=1,A139,IF(AF138=3,LEFT(A138,5)+1,"")) -> 1000805 | AI138: 2162
A139: =O139*100+P139 -> 1000805 | B139: 2156 | C139: 疯痴相聚 | K139: =IF(J139="","",VLOOKUP(J139,EventNPC!A:E,5,FALSE)) ->  | L139: 2163 | M139: [此时，疯道人踏风而至，就在几步之外] | O139: 10008 | P139: =IF(O139=O138,P138+1,1) -> 5 | T139: =IF(R139="","","-"&VLOOKUP(R139,EventConditionConfig!A:C,3,FALSE)&IF(S139="","",CHAR(10)&"-"&VLOOKUP(S139,EventConditionConfig!A:C,3,FALSE))) ->  | AF139: =IF(A139="","",IF(U139=1,"",IF(A140="",3,1))) -> 1 | AG139: =IF(AF139=1,A140,IF(AF139=3,LEFT(A139,5)+1,"")) -> 1000806 | AI139: 2163
A140: =O140*100+P140 -> 1000806 | B140: 2156 | C140: 疯痴相聚 | J140: 103 | K140: =IF(J140="","",VLOOKUP(J140,EventNPC!A:E,5,FALSE)) -> 疯道人 | L140: 2164 | M140: 师弟，你修着修着，就不记得一开始，是为了什么而修行。 | O140: 10008 | P140: =IF(O140=O139,P139+1,1) -> 6 | T140: =IF(R140="","","-"&VLOOKUP(R140,EventConditionConfig!A:C,3,FALSE)&IF(S140="","",CHAR(10)&"-"&VLOOKUP(S140,EventConditionConfig!A:C,3,FALSE))) ->  | AF140: =IF(A140="","",IF(U140=1,"",IF(A141="",3,1))) -> 1 | AG140: =IF(AF140=1,A141,IF(AF140=3,LEFT(A140,5)+1,"")) -> 1000807 | AI140: 2164
A141: =O141*100+P141 -> 1000807 | B141: 2156 | C141: 疯痴相聚 | J141: 104 | K141: =IF(J141="","",VLOOKUP(J141,EventNPC!A:E,5,FALSE)) -> 痴道人 | L141: 2165 | M141: （抬头）......我，我真的不记得了。 | O141: 10008 | P141: =IF(O141=O140,P140+1,1) -> 7 | T141: =IF(R141="","","-"&VLOOKUP(R141,EventConditionConfig!A:C,3,FALSE)&IF(S141="","",CHAR(10)&"-"&VLOOKUP(S141,EventConditionConfig!A:C,3,FALSE))) ->  | AF141: =IF(A141="","",IF(U141=1,"",IF(A142="",3,1))) -> 1 | AG141: =IF(AF141=1,A142,IF(AF141=3,LEFT(A141,5)+1,"")) -> 1000808 | AI141: 2165
A142: =O142*100+P142 -> 1000808 | B142: 2156 | C142: 疯痴相聚 | J142: 103 | K142: =IF(J142="","",VLOOKUP(J142,EventNPC!A:E,5,FALSE)) -> 疯道人 | L142: 2166 | M142: 那就放下风灵珠，和我出去走走。 | O142: 10008 | P142: =IF(O142=O141,P141+1,1) -> 8 | T142: =IF(R142="","","-"&VLOOKUP(R142,EventConditionConfig!A:C,3,FALSE)&IF(S142="","",CHAR(10)&"-"&VLOOKUP(S142,EventConditionConfig!A:C,3,FALSE))) ->  | AF142: =IF(A142="","",IF(U142=1,"",IF(A143="",3,1))) -> 1 | AG142: =IF(AF142=1,A143,IF(AF142=3,LEFT(A142,5)+1,"")) -> 1000809 | AI142: =IF(A142="","",MAX(B142,D142,L142,X142,AA142)) -> 2166
A143: =O143*100+P143 -> 1000809 | B143: 2156 | C143: 疯痴相聚 | J143: 103 | K143: =IF(J143="","",VLOOKUP(J143,EventNPC!A:E,5,FALSE)) -> 疯道人 | L143: 2167 | M143: [痴道人楞了一下，片刻后轻轻点头] | O143: 10008 | P143: =IF(O143=O142,P142+1,1) -> 9 | Q143: =_xlfn.TEXTJOIN(";",1,R143:S143) ->  | T143: =IF(R143="","","-"&VLOOKUP(R143,EventConditionConfig!A:C,3,FALSE)&IF(S143="","",CHAR(10)&"-"&VLOOKUP(S143,EventConditionConfig!A:C,3,FALSE))) ->  | AF143: =IF(A143="","",IF(U143=1,"",IF(A144="",3,1))) -> 1 | AG143: =IF(AF143=1,A144,IF(AF143=3,LEFT(A143,5)+1,"")) -> 1000810 | AI143: 2167
A144: =O144*100+P144 -> 1000810 | B144: 2156 | C144: 疯痴相聚 | K144: =IF(J144="","",VLOOKUP(J144,EventNPC!A:E,5,FALSE)) ->  | L144: 2168 | M144: [突然..洞府周围灵气汇聚，快速涌入痴道人的身体.] | O144: 10008 | P144: =IF(O144=O143,P143+1,1) -> 10 | T144: =IF(R144="","","-"&VLOOKUP(R144,EventConditionConfig!A:C,3,FALSE)&IF(S144="","",CHAR(10)&"-"&VLOOKUP(S144,EventConditionConfig!A:C,3,FALSE))) ->  | U144: 1 | V144: =A145 -> 1000811 | W144: 2169 | X144: 2169 | Y144: 前辈，为何灵气会动！ | AF144: =IF(A144="","",IF(U144=1,"",IF(A145="",3,1))) ->  | AG144: =IF(AF144=1,A145,IF(AF144=3,LEFT(A144,5)+1,"")) ->  | AI144: 2169
A145: =O145*100+P145 -> 1000811 | B145: 2156 | C145: 疯痴相聚 | J145: 103 | K145: =IF(J145="","",VLOOKUP(J145,EventNPC!A:E,5,FALSE)) -> 疯道人 | L145: 2170 | M145: 恭喜师弟，突破心魔。 | O145: 10008 | P145: =IF(O145=O144,P144+1,1) -> 11 | T145: =IF(R145="","","-"&VLOOKUP(R145,EventConditionConfig!A:C,3,FALSE)&IF(S145="","",CHAR(10)&"-"&VLOOKUP(S145,EventConditionConfig!A:C,3,FALSE))) ->  | AF145: =IF(A145="","",IF(U145=1,"",IF(A146="",3,1))) -> 1 | AG145: =IF(AF145=1,A146,IF(AF145=3,LEFT(A145,5)+1,"")) -> 1000812 | AI145: 2170
A146: =O146*100+P146 -> 1000812 | B146: 2156 | C146: 疯痴相聚 | J146: 104 | K146: =IF(J146="","",VLOOKUP(J146,EventNPC!A:E,5,FALSE)) -> 痴道人 | L146: =MAX(B145,L145,D145,X145,AA145)+1 -> 2171 | M146: 多谢师兄！ | O146: 10008 | P146: =IF(O146=O145,P145+1,1) -> 12 | T146: =IF(R146="","","-"&VLOOKUP(R146,EventConditionConfig!A:C,3,FALSE)&IF(S146="","",CHAR(10)&"-"&VLOOKUP(S146,EventConditionConfig!A:C,3,FALSE))) ->  | U146: 1 | V146: =IF(U146=1,_xlfn.TEXTJOIN(";",1,IF(Z146="",A146+1,Z146),IF(AND(AA146<>"",AC146=""),A146+1,AC146)),IF(U146=2,Y146,"")) -> 1000813;1000813 | W146: 2172;2173 | X146: =L146+1 -> 2172 | Y146: 原来如此… | AA146: =X146+1 -> 2173 | AB146: 请前辈赐我风灵珠。 | AF146: =IF(A146="","",IF(U146=1,"",IF(A147="",3,1))) ->  | AG146: =IF(AF146=1,A147,IF(AF146=3,LEFT(A146,5)+1,"")) ->  | AI146: 2173
A147: =O147*100+P147 -> 1000813 | B147: 2156 | C147: 疯痴相聚 | J147: 104 | K147: =IF(J147="","",VLOOKUP(J147,EventNPC!A:E,5,FALSE)) -> 痴道人 | L147: =MAX(B146,L146,D146,X146,AA146)+1 -> 2174 | M147: 小友莫急… (说罢，痴道人将风灵珠的碎片合成了一颗完整的风灵珠) | O147: 10008 | P147: =IF(O147=O146,P146+1,1) -> 13 | T147: =IF(R147="","","-"&VLOOKUP(R147,EventConditionConfig!A:C,3,FALSE)&IF(S147="","",CHAR(10)&"-"&VLOOKUP(S147,EventConditionConfig!A:C,3,FALSE))) ->  | AF147: =IF(A147="","",IF(U147=1,"",IF(A148="",3,1))) -> 1 | AG147: =IF(AF147=1,A148,IF(AF147=3,LEFT(A147,5)+1,"")) -> 1000814 | AI147: 2174
A148: =O148*100+P148 -> 1000814 | B148: 2156 | C148: 疯痴相聚 | J148: 104 | K148: =IF(J148="","",VLOOKUP(J148,EventNPC!A:E,5,FALSE)) -> 痴道人 | L148: =MAX(B147,L147,D147,X147,AA147)+1 -> 2175 | M148: 拿好了，这风啊……来一回，不容易。 | O148: 10008 | P148: =IF(O148=O147,P147+1,1) -> 14 | T148: =IF(R148="","","-"&VLOOKUP(R148,EventConditionConfig!A:C,3,FALSE)&IF(S148="","",CHAR(10)&"-"&VLOOKUP(S148,EventConditionConfig!A:C,3,FALSE))) ->  | AF148: =IF(A148="","",IF(U148=1,"",IF(A149="",3,1))) -> 3 | AG148: =IF(AF148=1,A149,IF(AF148=3,LEFT(A148,5)+1,"")) -> 10009 | AI148: 2175
T149: =IF(R149="","","-"&VLOOKUP(R149,EventConditionConfig!A:C,3,FALSE)&IF(S149="","",CHAR(10)&"-"&VLOOKUP(S149,EventConditionConfig!A:C,3,FALSE))) -> 
A150: =O150*100+P150 -> 1000901 | B150: =IF(B149="",MAX(AA148,X148,L148)+1,B149) -> 2176 | C150: 达到筑基后期 | J150: 100 | K150: =IF(J150="","",VLOOKUP(J150,EventNPC!A:E,5,FALSE)) -> 玩家 | L150: =IF(P150=1,B150+1,MAX(B149,L149,D149,X149,AA149)+1) -> 2177 | M150: 完整的风灵珠果然不同凡响，我可以更大的狂风中穿行了。 | O150: 10009 | P150: =IF(O150=O149,P149+1,1) -> 1 | T150: =IF(R150="","","-"&VLOOKUP(R150,EventConditionConfig!A:C,3,FALSE)&IF(S150="","",CHAR(10)&"-"&VLOOKUP(S150,EventConditionConfig!A:C,3,FALSE))) ->  | W150: =_xlfn.TEXTJOIN(";",1,X150,AA150) ->  | AF150: =IF(A150="","",IF(U150=1,"",IF(A151="",3,1))) -> 1 | AG150: =IF(AF150=1,A151,IF(AF150=3,LEFT(A150,5)+1,"")) -> 1000902 | AI150: 2177
A151: =O151*100+P151 -> 1000902 | B151: =IF(B150="",MAX(AA149,X149,L149)+1,B150) -> 2176 | C151: 达到筑基后期 | J151: 100 | K151: =IF(J151="","",VLOOKUP(J151,EventNPC!A:E,5,FALSE)) -> 玩家 | L151: =IF(P151=1,B151+1,MAX(B150,L150,D150,X150,AA150)+1) -> 2178 | M151: 前方似乎有不少高阶妖兽，我先在此地提升一些修为吧。 | O151: 10009 | P151: =IF(O151=O150,P150+1,1) -> 2 | T151: =IF(R151="","","-"&VLOOKUP(R151,EventConditionConfig!A:C,3,FALSE)&IF(S151="","",CHAR(10)&"-"&VLOOKUP(S151,EventConditionConfig!A:C,3,FALSE))) ->  | W151: =_xlfn.TEXTJOIN(";",1,X151,AA151) ->  | AF151: =IF(A151="","",IF(U151=1,"",IF(A152="",3,1))) -> 1 | AG151: =IF(AF151=1,A152,IF(AF151=3,LEFT(A151,5)+1,"")) -> 1000903 | AI151: 2178
A152: =O152*100+P152 -> 1000903 | B152: =IF(B151="",MAX(AA150,X150,L150)+1,B151) -> 2176 | C152: 达到筑基后期 | J152: 100 | K152: =IF(J152="","",VLOOKUP(J152,EventNPC!A:E,5,FALSE)) -> 玩家 | L152: =IF(P152=1,B152+1,MAX(B151,L151,D151,X151,AA151)+1) -> 2179 | M152: 终于筑基后期了，继续寻找冲虚提到的“七道心境”吧，不知鲲鹏是否会给我答案。 | O152: 10009 | P152: =IF(O152=O151,P151+1,1) -> 3 | Q152: 8 | R152: 8 | T152: =IF(R152="","","-"&VLOOKUP(R152,EventConditionConfig!A:C,3,FALSE)&IF(S152="","",CHAR(10)&"-"&VLOOKUP(S152,EventConditionConfig!A:C,3,FALSE))) -> -达到境界：筑基-后期 | W152: =_xlfn.TEXTJOIN(";",1,X152,AA152) ->  | AF152: =IF(A152="","",IF(U152=1,"",IF(A153="",3,1))) -> 3 | AG152: =IF(AF152=1,A153,IF(AF152=3,LEFT(A152,5)+1,"")) -> 10010 | AI152: 2179
T153: =IF(R153="","","-"&VLOOKUP(R153,EventConditionConfig!A:C,3,FALSE)&IF(S153="","",CHAR(10)&"-"&VLOOKUP(S153,EventConditionConfig!A:C,3,FALSE))) -> 
A154: =O154*100+P154 -> 1001001 | B154: =IF(B153="",MAX(AA152,X152,L152)+1,B153) -> 2180 | C154: 妖兽横行 | K154: =IF(J154="","",VLOOKUP(J154,EventNPC!A:E,5,FALSE)) ->  | O154: =IF(O153="",O152+1,O153) -> 10010 | P154: =IF(O154=O153,P153+1,1) -> 1 | Q154: 9 | R154: 9 | T154: =IF(R154="","","-"&VLOOKUP(R154,EventConditionConfig!A:C,3,FALSE)&IF(S154="","",CHAR(10)&"-"&VLOOKUP(S154,EventConditionConfig!A:C,3,FALSE))) -> -击杀妖兽 | W154: =_xlfn.TEXTJOIN(";",1,X154,AA154) ->  | AF154: =IF(A154="","",IF(U154=1,"",IF(A155="",3,1))) -> 3 | AG154: =IF(AF154=1,A155,IF(AF154=3,LEFT(A154,5)+1,"")) -> 10011 | AI154: 2180
T155: =IF(R155="","","-"&VLOOKUP(R155,EventConditionConfig!A:C,3,FALSE)&IF(S155="","",CHAR(10)&"-"&VLOOKUP(S155,EventConditionConfig!A:C,3,FALSE))) -> 
A156: =O156*100+P156 -> 1001101 | B156: =IF(B155="",MAX(AA154,X154,L154,B154,D154)+1,B155) -> 2181 | C156: 遇见鲲鹏 | K156: =IF(J156="","",VLOOKUP(J156,EventNPC!A:E,5,FALSE)) ->  | L156: =IF(P156=1,B156+1,MAX(B155,L155,D155,X155,AA155)+1) -> 2182 | M156: 鲲鹏需要去南海最深处的天池，可缺少龙卷风，没有大风，大鹏无法飞起来 | O156: =IF(O155="",O154+1,O155) -> 10011 | P156: =IF(O156=O155,P155+1,1) -> 1 | Q156: 14 | R156: 14 | T156: =IF(R156="","","-"&VLOOKUP(R156,EventConditionConfig!A:C,3,FALSE)&IF(S156="","",CHAR(10)&"-"&VLOOKUP(S156,EventConditionConfig!A:C,3,FALSE))) -> -境界达到[金丹-前期] | W156: =_xlfn.TEXTJOIN(";",1,X156,AA156) ->  | AF156: =IF(A156="","",IF(U156=1,"",IF(A157="",3,1))) -> 3 | AG156: =IF(AF156=1,A157,IF(AF156=3,LEFT(A156,5)+1,"")) -> 10012 | AI156: 2182
T157: =IF(R157="","","-"&VLOOKUP(R157,EventConditionConfig!A:C,3,FALSE)&IF(S157="","",CHAR(10)&"-"&VLOOKUP(S157,EventConditionConfig!A:C,3,FALSE))) -> 
A158: =O158*100+P158 -> 1001201 | B158: =IF(B157="",MAX(AA156,X156,L156,B156,D156)+1,B157) -> 2183 | C158: 尧让天下 | D158: =IF(E158="","",B158+1) -> 2184 | E158: 倾听尧帝的烦恼 | K158: =IF(J158="","",VLOOKUP(J158,EventNPC!A:E,5,FALSE)) ->  | L158: =IF(M158="","",IF(P158=1,MAX(D158,B158)+1,MAX(B157,L157,D157,X157,AA157)+1)) -> 2185 | M158: 你踏入帝尧治下的仙域——一片祥和之地，灵气充沛，民众安居，仿佛世外桃源。 | O158: =IF(O157="",O156+1,O157) -> 10012 | P158: =IF(O158=O157,P157+1,1) -> 1 | T158: =IF(R158="","","-"&VLOOKUP(R158,EventConditionConfig!A:C,3,FALSE)&IF(S158="","",CHAR(10)&"-"&VLOOKUP(S158,EventConditionConfig!A:C,3,FALSE))) ->  | W158: =_xlfn.TEXTJOIN(";",1,X158,AA158) ->  | AF158: =IF(A158="","",IF(U158=1,"",IF(A159="",3,1))) -> 1 | AG158: =IF(AF158=1,A159,IF(AF158=3,LEFT(A158,5)+1,"")) -> 1001202 | AI158: 2185
A159: =O159*100+P159 -> 1001202 | B159: 2183 | C159: 尧让天下 | D159: =IF(E159="","",B159+1) -> 2184 | E159: 倾听尧帝的烦恼 | K159: =IF(J159="","",VLOOKUP(J159,EventNPC!A:E,5,FALSE)) ->  | L159: =IF(M159="","",IF(P159=1,MAX(D159,B159)+1,MAX(B158,L158,D158,X158,AA158)+1)) -> 2186 | M159: 然而，这位千年帝君，却眉宇间有难掩的忧色。 | O159: 10012 | P159: =IF(O159=O158,P158+1,1) -> 2 | T159: =IF(R159="","","-"&VLOOKUP(R159,EventConditionConfig!A:C,3,FALSE)&IF(S159="","",CHAR(10)&"-"&VLOOKUP(S159,EventConditionConfig!A:C,3,FALSE))) ->  | AF159: =IF(A159="","",IF(U159=1,"",IF(A160="",3,1))) -> 1 | AG159: =IF(AF159=1,A160,IF(AF159=3,LEFT(A159,5)+1,"")) -> 1001203 | AI159: 2186
A160: =O160*100+P160 -> 1001203 | B160: 2183 | C160: 尧让天下 | D160: 2184 | E160: 倾听尧帝的烦恼 | K160: =IF(J160="","",VLOOKUP(J160,EventNPC!A:E,5,FALSE)) ->  | L160: 2187 | M160: （你根据逍遥铃的指引，找到了尧） | O160: 10012 | P160: =IF(O160=O159,P159+1,1) -> 3 | T160: =IF(R160="","","-"&VLOOKUP(R160,EventConditionConfig!A:C,3,FALSE)&IF(S160="","",CHAR(10)&"-"&VLOOKUP(S160,EventConditionConfig!A:C,3,FALSE))) ->  | U160: 1 | V160: =A161 -> 1001204 | W160: 2188 | X160: =IF(Y160="","",L160+1) -> 2188 | Y160: 拜见帝尧，晚辈受冲虚真人的指引，游历到此处。 | AF160: =IF(A160="","",IF(U160=1,"",IF(A161="",3,1))) ->  | AG160: =IF(AF160=1,A161,IF(AF160=3,LEFT(A160,5)+1,"")) ->  | AI160: 2188
A161: =O161*100+P161 -> 1001204 | B161: 2183 | C161: 尧让天下 | D161: 2184 | E161: 倾听尧帝的烦恼 | J161: 105 | K161: =IF(J161="","",VLOOKUP(J161,EventNPC!A:E,5,FALSE)) -> 尧帝 | L161: 2189 | M161: （缓缓回头，脸上带着淡淡忧虑）冲虚真人吗？我也许久没见了.. | O161: 10012 | P161: =IF(O161=O160,P160+1,1) -> 4 | T161: =IF(R161="","","-"&VLOOKUP(R161,EventConditionConfig!A:C,3,FALSE)&IF(S161="","",CHAR(10)&"-"&VLOOKUP(S161,EventConditionConfig!A:C,3,FALSE))) ->  | AF161: =IF(A161="","",IF(U161=1,"",IF(A162="",3,1))) -> 1 | AG161: =IF(AF161=1,A162,IF(AF161=3,LEFT(A161,5)+1,"")) -> 1001205 | AI161: 2189
A162: =O162*100+P162 -> 1001205 | B162: 2183 | C162: 尧让天下 | D162: 2184 | E162: 倾听尧帝的烦恼 | J162: 105 | K162: =IF(J162="","",VLOOKUP(J162,EventNPC!A:E,5,FALSE)) -> 尧帝 | L162: 2190 | M162: (尧帝邀你来到一高处) 小友，你看此处景致如何？ | O162: 10012 | P162: =IF(O162=O161,P161+1,1) -> 5 | T162: =IF(R162="","","-"&VLOOKUP(R162,EventConditionConfig!A:C,3,FALSE)&IF(S162="","",CHAR(10)&"-"&VLOOKUP(S162,EventConditionConfig!A:C,3,FALSE))) ->  | U162: 1 | V162: 1001206;1001206 | W162: 2191;2192 | X162: 2191 | Y162: 万象更新，灵气环绕，是修行的福地。 | AA162: =IF(AB162="","",X162+1) -> 2192 | AB162: 国泰民安，仙人治理，世间罕见。 | AF162: =IF(A162="","",IF(U162=1,"",IF(A163="",3,1))) ->  | AG162: =IF(AF162=1,A163,IF(AF162=3,LEFT(A162,5)+1,"")) ->  | AI162: 2192
A163: =O163*100+P163 -> 1001206 | B163: 2183 | C163: 尧让天下 | D163: 2184 | E163: 倾听尧帝的烦恼 | J163: 105 | K163: =IF(J163="","",VLOOKUP(J163,EventNPC!A:E,5,FALSE)) -> 尧帝 | L163: 2193 | M163: （叹息）是啊，人人自在，唯我不自在。这些年来，我境界难以寸进，已有百年。 | O163: 10012 | P163: =IF(O163=O162,P162+1,1) -> 6 | T163: =IF(R163="","","-"&VLOOKUP(R163,EventConditionConfig!A:C,3,FALSE)&IF(S163="","",CHAR(10)&"-"&VLOOKUP(S163,EventConditionConfig!A:C,3,FALSE))) ->  | U163: 1 | V163: =A164 -> 1001207 | W163: 2194 | X163: 2194 | Y163: 帝尧何出此言？ | AF163: =IF(A163="","",IF(U163=1,"",IF(A164="",3,1))) ->  | AG163: =IF(AF163=1,A164,IF(AF163=3,LEFT(A163,5)+1,"")) ->  | AI163: 2194
A164: =O164*100+P164 -> 1001207 | B164: 2183 | C164: 尧让天下 | D164: 2184 | E164: 倾听尧帝的烦恼 | J164: 105 | K164: =IF(J164="","",VLOOKUP(J164,EventNPC!A:E,5,FALSE)) -> 尧帝 | L164: 2195 | M164: 你等散修，自由自在，来去如风，可曾体会过身负重任的滋味？ | O164: 10012 | P164: =IF(O164=O163,P163+1,1) -> 7 | T164: =IF(R164="","","-"&VLOOKUP(R164,EventConditionConfig!A:C,3,FALSE)&IF(S164="","",CHAR(10)&"-"&VLOOKUP(S164,EventConditionConfig!A:C,3,FALSE))) ->  | U164: 1 | V164: =A165 -> 1001208 | W164: 2196 | X164: 2196 | Y164: 也有重担，却未必如帝尧这样复杂。 | AF164: =IF(A164="","",IF(U164=1,"",IF(A165="",3,1))) ->  | AG164: =IF(AF164=1,A165,IF(AF164=3,LEFT(A164,5)+1,"")) ->  | AI164: 2196
A165: =O165*100+P165 -> 1001208 | B165: 2183 | C165: 尧让天下 | D165: 2184 | E165: 倾听尧帝的烦恼 | J165: 105 | K165: =IF(J165="","",VLOOKUP(J165,EventNPC!A:E,5,FALSE)) -> 尧帝 | L165: 2197 | M165: （微微一笑，摇头）天下如画卷，画卷再美，日夜背负，也终是负担。 | O165: 10012 | P165: =IF(O165=O164,P164+1,1) -> 8 | T165: =IF(R165="","","-"&VLOOKUP(R165,EventConditionConfig!A:C,3,FALSE)&IF(S165="","",CHAR(10)&"-"&VLOOKUP(S165,EventConditionConfig!A:C,3,FALSE))) ->  | U165: 1 | V165: =A166 -> 1001209 | W165: 2198 | X165: 2198 | Y165: ...... | AF165: =IF(A165="","",IF(U165=1,"",IF(A166="",3,1))) ->  | AG165: =IF(AF165=1,A166,IF(AF165=3,LEFT(A165,5)+1,"")) ->  | AI165: 2198
A166: =O166*100+P166 -> 1001209 | B166: 2183 | C166: 尧让天下 | D166: 2184 | E166: 倾听尧帝的烦恼 | J166: 105 | K166: =IF(J166="","",VLOOKUP(J166,EventNPC!A:E,5,FALSE)) -> 尧帝 | L166: 2199 | M166: （凝望远方云海）深山之中有位贤士，名为许由，素有盛名，我曾多次请他出山，但未成如愿。 | O166: 10012 | P166: =IF(O166=O165,P165+1,1) -> 9 | T166: =IF(R166="","","-"&VLOOKUP(R166,EventConditionConfig!A:C,3,FALSE)&IF(S166="","",CHAR(10)&"-"&VLOOKUP(S166,EventConditionConfig!A:C,3,FALSE))) ->  | AF166: =IF(A166="","",IF(U166=1,"",IF(A167="",3,1))) -> 1 | AG166: =IF(AF166=1,A167,IF(AF166=3,LEFT(A166,5)+1,"")) -> 1001210 | AI166: 2199
A167: =O167*100+P167 -> 1001210 | B167: 2183 | C167: 尧让天下 | D167: 2184 | E167: 倾听尧帝的烦恼 | J167: 105 | K167: =IF(J167="","",VLOOKUP(J167,EventNPC!A:E,5,FALSE)) -> 尧帝 | L167: 2200 | M167: 我甚至提出让天下于他，他也不为所动。 | O167: 10012 | P167: =IF(O167=O166,P166+1,1) -> 10 | T167: =IF(R167="","","-"&VLOOKUP(R167,EventConditionConfig!A:C,3,FALSE)&IF(S167="","",CHAR(10)&"-"&VLOOKUP(S167,EventConditionConfig!A:C,3,FALSE))) ->  | U167: 1 | V167: =A168 -> 1001211 | W167: 2201 | X167: 2201 | Y167: 世间竟然有此奇人？ | AF167: =IF(A167="","",IF(U167=1,"",IF(A168="",3,1))) ->  | AG167: =IF(AF167=1,A168,IF(AF167=3,LEFT(A167,5)+1,"")) ->  | AI167: 2201
A168: =O168*100+P168 -> 1001211 | B168: 2183 | C168: 尧让天下 | D168: 2184 | E168: 倾听尧帝的烦恼 | J168: 105 | K168: =IF(J168="","",VLOOKUP(J168,EventNPC!A:E,5,FALSE)) -> 尧帝 | L168: 2202 | M168: （凝望远方云海）若小友有空，帮我再请许由出山，我定当感谢。 | O168: 10012 | P168: =IF(O168=O167,P167+1,1) -> 11 | T168: =IF(R168="","","-"&VLOOKUP(R168,EventConditionConfig!A:C,3,FALSE)&IF(S168="","",CHAR(10)&"-"&VLOOKUP(S168,EventConditionConfig!A:C,3,FALSE))) ->  | U168: 1 | V168: =A169 -> 1001212 | W168: 2203 | X168: 2203 | Y168: 好的，既然来了，我就走一趟。 | AF168: =IF(A168="","",IF(U168=1,"",IF(A169="",3,1))) ->  | AG168: =IF(AF168=1,A169,IF(AF168=3,LEFT(A168,5)+1,"")) ->  | AI168: 2203
A169: =O169*100+P169 -> 1001212 | B169: 2183 | C169: 尧让天下 | D169: 2184 | E169: 倾听尧帝的烦恼 | K169: =IF(J169="","",VLOOKUP(J169,EventNPC!A:E,5,FALSE)) ->  | O169: 10012 | P169: =IF(O169=O168,P168+1,1) -> 12 | T169: =IF(R169="","","-"&VLOOKUP(R169,EventConditionConfig!A:C,3,FALSE)&IF(S169="","",CHAR(10)&"-"&VLOOKUP(S169,EventConditionConfig!A:C,3,FALSE))) ->  | AF169: =IF(A169="","",IF(U169=1,"",IF(A170="",3,1))) -> 3 | AG169: =IF(AF169=1,A170,IF(AF169=3,LEFT(A169,5)+1,"")) -> 10013 | AI169: 2184
T170: =IF(R170="","","-"&VLOOKUP(R170,EventConditionConfig!A:C,3,FALSE)&IF(S170="","",CHAR(10)&"-"&VLOOKUP(S170,EventConditionConfig!A:C,3,FALSE))) -> 
A171: =O171*100+P171 -> 1001301 | B171: =IF(B170="",MAX(AA169,X169,L169,B169,D169,AA168,X168,L168)+1,B170) -> 2204 | C171: 访贤许由 | D171: =IF(E171="","",B171+1) -> 2205 | E171: 听一听这位尧帝口中的贤士有何说法 | K171: =IF(J171="","",VLOOKUP(J171,EventNPC!A:E,5,FALSE)) ->  | L171: =IF(M171="","",IF(P171=1,MAX(D171,B171)+1,MAX(B170,L170,D170,X170,AA170)+1)) -> 2206 | M171: 你循帝尧所言，御剑前往幽山秘境。此处灵气绵长，古木参天，溪水潺潺。 | O171: =IF(O170="",O169+1,O170) -> 10013 | P171: =IF(O171=O170,P170+1,1) -> 1 | T171: =IF(R171="","","-"&VLOOKUP(R171,EventConditionConfig!A:C,3,FALSE)&IF(S171="","",CHAR(10)&"-"&VLOOKUP(S171,EventConditionConfig!A:C,3,FALSE))) ->  | W171: =_xlfn.TEXTJOIN(";",1,X171,AA171) ->  | X171: =IF(Y171="","",L171+1) ->  | AA171: =IF(AB171="","",X171+1) ->  | AF171: =IF(A171="","",IF(U171=1,"",IF(A172="",3,1))) -> 1 | AG171: =IF(AF171=1,A172,IF(AF171=3,LEFT(A171,5)+1,"")) -> 1001302 | AI171: 2206
A172: =O172*100+P172 -> 1001302 | B172: 2204 | C172: 访贤许由 | D172: =IF(E172="","",B172+1) -> 2205 | E172: 听一听这位尧帝口中的贤士有何说法 | K172: =IF(J172="","",VLOOKUP(J172,EventNPC!A:E,5,FALSE)) ->  | L172: =IF(M172="","",IF(P172=1,MAX(D172,B172)+1,MAX(B171,L171,D171,X171,AA171)+1)) -> 2207 | M172: 据说，许由栖身于此，绝迹尘世，已有数百年。 | O172: 10013 | P172: =IF(O172=O171,P171+1,1) -> 2 | T172: =IF(R172="","","-"&VLOOKUP(R172,EventConditionConfig!A:C,3,FALSE)&IF(S172="","",CHAR(10)&"-"&VLOOKUP(S172,EventConditionConfig!A:C,3,FALSE))) ->  | AF172: =IF(A172="","",IF(U172=1,"",IF(A173="",3,1))) -> 1 | AG172: =IF(AF172=1,A173,IF(AF172=3,LEFT(A172,5)+1,"")) -> 1001303 | AI172: 2207
A173: =O173*100+P173 -> 1001303 | B173: 2204 | C173: 访贤许由 | D173: =IF(E173="","",B173+1) -> 2205 | E173: 听一听这位尧帝口中的贤士有何说法 | K173: =IF(J173="","",VLOOKUP(J173,EventNPC!A:E,5,FALSE)) ->  | L173: =IF(M173="","",IF(P173=1,MAX(D173,B173)+1,MAX(B172,L172,D172,X172,AA172)+1)) -> 2208 | M173: 山风徐徐，水声如琴，你踏过青石小径，看见一位白衣道人正倚石观水。 | O173: 10013 | P173: =IF(O173=O172,P172+1,1) -> 3 | T173: =IF(R173="","","-"&VLOOKUP(R173,EventConditionConfig!A:C,3,FALSE)&IF(S173="","",CHAR(10)&"-"&VLOOKUP(S173,EventConditionConfig!A:C,3,FALSE))) ->  | U173: 1 | V173: =A174 -> 1001304 | W173: 2209 | X173: 2209 | Y173: 前辈可是许由？ | AF173: =IF(A173="","",IF(U173=1,"",IF(A174="",3,1))) ->  | AG173: =IF(AF173=1,A174,IF(AF173=3,LEFT(A173,5)+1,"")) ->  | AI173: 2209
A174: =O174*100+P174 -> 1001304 | B174: 2204 | C174: 访贤许由 | D174: =IF(E174="","",B174+1) -> 2205 | E174: 听一听这位尧帝口中的贤士有何说法 | J174: 106 | K174: =IF(J174="","",VLOOKUP(J174,EventNPC!A:E,5,FALSE)) -> 许由 | L174: =IF(M174="","",IF(P174=1,MAX(D174,B174)+1,MAX(B173,L173,D173,X173,AA173)+1)) -> 2210 | M174: 正是，小友何事？ | O174: 10013 | P174: =IF(O174=O173,P173+1,1) -> 4 | T174: =IF(R174="","","-"&VLOOKUP(R174,EventConditionConfig!A:C,3,FALSE)&IF(S174="","",CHAR(10)&"-"&VLOOKUP(S174,EventConditionConfig!A:C,3,FALSE))) ->  | AF174: =IF(A174="","",IF(U174=1,"",IF(A175="",3,1))) -> 1 | AG174: =IF(AF174=1,A175,IF(AF174=3,LEFT(A174,5)+1,"")) -> 1001305 | AI174: 2210
A175: =O175*100+P175 -> 1001305 | B175: 2204 | C175: 访贤许由 | D175: =IF(E175="","",B175+1) -> 2205 | E175: 听一听这位尧帝口中的贤士有何说法 | J175: 100 | K175: =IF(J175="","",VLOOKUP(J175,EventNPC!A:E,5,FALSE)) -> 玩家 | L175: =IF(M175="","",IF(P175=1,MAX(D175,B175)+1,MAX(B174,L174,D174,X174,AA174)+1)) -> 2211 | M175: 帝尧欲专心修行，求道问玄，又怕耽误世事，特托我前来相请，欲让天下于你。 | O175: 10013 | P175: =IF(O175=O174,P174+1,1) -> 5 | T175: =IF(R175="","","-"&VLOOKUP(R175,EventConditionConfig!A:C,3,FALSE)&IF(S175="","",CHAR(10)&"-"&VLOOKUP(S175,EventConditionConfig!A:C,3,FALSE))) ->  | AF175: =IF(A175="","",IF(U175=1,"",IF(A176="",3,1))) -> 1 | AG175: =IF(AF175=1,A176,IF(AF175=3,LEFT(A175,5)+1,"")) -> 1001306 | AI175: 2211
A176: =O176*100+P176 -> 1001306 | B176: 2204 | C176: 访贤许由 | D176: =IF(E176="","",B176+1) -> 2205 | E176: 听一听这位尧帝口中的贤士有何说法 | J176: 106 | K176: =IF(J176="","",VLOOKUP(J176,EventNPC!A:E,5,FALSE)) -> 许由 | L176: =IF(M176="","",IF(P176=1,MAX(D176,B176)+1,MAX(B175,L175,D175,X175,AA175)+1)) -> 2212 | M176: （静默片刻）昔日帝尧就提过此事，我已辞之。 | O176: 10013 | P176: =IF(O176=O175,P175+1,1) -> 6 | T176: =IF(R176="","","-"&VLOOKUP(R176,EventConditionConfig!A:C,3,FALSE)&IF(S176="","",CHAR(10)&"-"&VLOOKUP(S176,EventConditionConfig!A:C,3,FALSE))) ->  | AF176: =IF(A176="","",IF(U176=1,"",IF(A177="",3,1))) -> 1 | AG176: =IF(AF176=1,A177,IF(AF176=3,LEFT(A176,5)+1,"")) -> 1001307 | AI176: 2212
A177: =O177*100+P177 -> 1001307 | B177: 2204 | C177: 访贤许由 | D177: =IF(E177="","",B177+1) -> 2205 | E177: 听一听这位尧帝口中的贤士有何说法 | J177: 106 | K177: =IF(J177="","",VLOOKUP(J177,EventNPC!A:E,5,FALSE)) -> 许由 | L177: =IF(M177="","",IF(P177=1,MAX(D177,B177)+1,MAX(B176,L176,D176,X176,AA176)+1)) -> 2213 | M177: 今日又来，想是道心不定，执念未除。 | O177: 10013 | P177: =IF(O177=O176,P176+1,1) -> 7 | T177: =IF(R177="","","-"&VLOOKUP(R177,EventConditionConfig!A:C,3,FALSE)&IF(S177="","",CHAR(10)&"-"&VLOOKUP(S177,EventConditionConfig!A:C,3,FALSE))) ->  | U177: 1 | V177: =A178 -> 1001308 | W177: 2214 | X177: 2214 | Y177: 请前辈出山。 | AF177: =IF(A177="","",IF(U177=1,"",IF(A178="",3,1))) ->  | AG177: =IF(AF177=1,A178,IF(AF177=3,LEFT(A177,5)+1,"")) ->  | AI177: 2214
A178: 1001308 | B178: 2204 | C178: 访贤许由 | D178: 2205 | E178: 听一听这位尧帝口中的贤士有何说法 | J178: 106 | K178: =IF(J178="","",VLOOKUP(J178,EventNPC!A:E,5,FALSE)) -> 许由 | L178: 2215 | M178: 哼，让我去？ | O178: 10013 | P178: 8 | T178: =IF(R178="","","-"&VLOOKUP(R178,EventConditionConfig!A:C,3,FALSE)&IF(S178="","",CHAR(10)&"-"&VLOOKUP(S178,EventConditionConfig!A:C,3,FALSE))) ->  | AF178: 1 | AG178: 1001309 | AI178: 2215
A179: =O179*100+P179 -> 1001309 | B179: 2204 | C179: 访贤许由 | D179: =IF(E179="","",B179+1) -> 2205 | E179: 听一听这位尧帝口中的贤士有何说法 | J179: 106 | K179: =IF(J179="","",VLOOKUP(J179,EventNPC!A:E,5,FALSE)) -> 许由 | L179: =IF(M179="","",IF(P179=1,MAX(D179,B179)+1,MAX(B178,L178,D178,X178,AA178)+1)) -> 2216 | M179: 那我问你，日月升天，照耀四方。若这时有人手举火把照路，岂不徒劳？ | O179: 10013 | P179: =IF(O179=O178,P178+1,1) -> 9 | T179: =IF(R179="","","-"&VLOOKUP(R179,EventConditionConfig!A:C,3,FALSE)&IF(S179="","",CHAR(10)&"-"&VLOOKUP(S179,EventConditionConfig!A:C,3,FALSE))) ->  | AF179: =IF(A179="","",IF(U179=1,"",IF(A180="",3,1))) -> 1 | AG179: =IF(AF179=1,A180,IF(AF179=3,LEFT(A179,5)+1,"")) -> 1001310 | AI179: 2216
A180: =O180*100+P180 -> 1001310 | B180: 2204 | C180: 访贤许由 | D180: =IF(E180="","",B180+1) -> 2205 | E180: 听一听这位尧帝口中的贤士有何说法 | J180: 106 | K180: =IF(J180="","",VLOOKUP(J180,EventNPC!A:E,5,FALSE)) -> 许由 | L180: =IF(M180="","",IF(P180=1,MAX(D180,B180)+1,MAX(B179,L179,D179,X179,AA179)+1)) -> 2217 | M180: 那我再问你，斜风细雨，滋养万物。若这时有人用水桶来灌溉，岂不可笑？ | O180: 10013 | P180: =IF(O180=O179,P179+1,1) -> 10 | T180: =IF(R180="","","-"&VLOOKUP(R180,EventConditionConfig!A:C,3,FALSE)&IF(S180="","",CHAR(10)&"-"&VLOOKUP(S180,EventConditionConfig!A:C,3,FALSE))) ->  | AF180: =IF(A180="","",IF(U180=1,"",IF(A181="",3,1))) -> 1 | AG180: =IF(AF180=1,A181,IF(AF180=3,LEFT(A180,5)+1,"")) -> 1001311 | AI180: 2217
A181: =O181*100+P181 -> 1001311 | B181: 2204 | C181: 访贤许由 | D181: =IF(E181="","",B181+1) -> 2205 | E181: 听一听这位尧帝口中的贤士有何说法 | J181: 106 | K181: =IF(J181="","",VLOOKUP(J181,EventNPC!A:E,5,FALSE)) -> 许由 | L181: =IF(M181="","",IF(P181=1,MAX(D181,B181)+1,MAX(B180,L180,D180,X180,AA180)+1)) -> 2218 | M181: 天下在尧的带领下，已经治理得很好了，又何必要我，我是要去混个功成名就吗？ | O181: 10013 | P181: =IF(O181=O180,P180+1,1) -> 11 | T181: =IF(R181="","","-"&VLOOKUP(R181,EventConditionConfig!A:C,3,FALSE)&IF(S181="","",CHAR(10)&"-"&VLOOKUP(S181,EventConditionConfig!A:C,3,FALSE))) ->  | AF181: =IF(A181="","",IF(U181=1,"",IF(A182="",3,1))) -> 1 | AG181: =IF(AF181=1,A182,IF(AF181=3,LEFT(A181,5)+1,"")) -> 1001312 | AI181: 2218
A182: =O182*100+P182 -> 1001312 | B182: 2204 | C182: 访贤许由 | D182: =IF(E182="","",B182+1) -> 2205 | E182: 听一听这位尧帝口中的贤士有何说法 | J182: 106 | K182: =IF(J182="","",VLOOKUP(J182,EventNPC!A:E,5,FALSE)) -> 许由 | L182: =IF(M182="","",IF(P182=1,MAX(D182,B182)+1,MAX(B181,L181,D181,X181,AA181)+1)) -> 2219 | M182: 回答我？ | O182: 10013 | P182: =IF(O182=O181,P181+1,1) -> 12 | T182: =IF(R182="","","-"&VLOOKUP(R182,EventConditionConfig!A:C,3,FALSE)&IF(S182="","",CHAR(10)&"-"&VLOOKUP(S182,EventConditionConfig!A:C,3,FALSE))) ->  | U182: 1 | V182: =A183 -> 1001313 | W182: 2220 | X182: 2220 | Y182: 就算只得功成名就也不错。 | AF182: =IF(A182="","",IF(U182=1,"",IF(A183="",3,1))) ->  | AG182: =IF(AF182=1,A183,IF(AF182=3,LEFT(A182,5)+1,"")) ->  | AI182: 2220
A183: 1001313 | B183: 2204 | C183: 访贤许由 | D183: 2205 | E183: 听一听这位尧帝口中的贤士有何说法 | J183: 106 | K183: =IF(J183="","",VLOOKUP(J183,EventNPC!A:E,5,FALSE)) -> 许由 | L183: 2221 | M183: 小友，名就像宾客一样，难道我们的一生是为了宾客吗？ | O183: 10013 | P183: 13 | T183: =IF(R183="","","-"&VLOOKUP(R183,EventConditionConfig!A:C,3,FALSE)&IF(S183="","",CHAR(10)&"-"&VLOOKUP(S183,EventConditionConfig!A:C,3,FALSE))) ->  | U183: 1 | V183: =A184 -> 1001314 | W183: 2222 | X183: 2222 | Y183: （愣住）...... | AI183: 2222
A184: =O184*100+P184 -> 1001314 | B184: 2204 | C184: 访贤许由 | D184: =IF(E184="","",B184+1) -> 2205 | E184: 听一听这位尧帝口中的贤士有何说法 | J184: 106 | K184: =IF(J184="","",VLOOKUP(J184,EventNPC!A:E,5,FALSE)) -> 许由 | L184: =IF(M184="","",IF(P184=1,MAX(D184,B184)+1,MAX(B183,L183,D183,X183,AA183)+1)) -> 2223 | M184: 他若真想修道，便该知“道不碍政，心自碍道”。 | O184: 10013 | P184: =IF(O184=O183,P183+1,1) -> 14 | T184: =IF(R184="","","-"&VLOOKUP(R184,EventConditionConfig!A:C,3,FALSE)&IF(S184="","",CHAR(10)&"-"&VLOOKUP(S184,EventConditionConfig!A:C,3,FALSE))) ->  | AF184: =IF(A184="","",IF(U184=1,"",IF(A185="",3,1))) -> 1 | AG184: =IF(AF184=1,A185,IF(AF184=3,LEFT(A184,5)+1,"")) -> 1001315 | AI184: 2223
A185: 1001315 | B185: 2204 | C185: 访贤许由 | D185: 2205 | E185: 听一听这位尧帝口中的贤士有何说法 | J185: 106 | K185: =IF(J185="","",VLOOKUP(J185,EventNPC!A:E,5,FALSE)) -> 许由 | L185: 2224 | M185: 若心不净，纵避千山万水，又有何用。 | O185: 10013 | P185: 15 | T185: =IF(R185="","","-"&VLOOKUP(R185,EventConditionConfig!A:C,3,FALSE)&IF(S185="","",CHAR(10)&"-"&VLOOKUP(S185,EventConditionConfig!A:C,3,FALSE))) ->  | U185: 1 | V185: =A186 -> 1001316 | W185: =_xlfn.TEXTJOIN(";",1,X185,AA185) -> 2225 | X185: =IF(Y185="","",L185+1) -> 2225 | Y185: （愣住）...... | AI185: 2225
A186: 1001316 | B186: 2204 | C186: 访贤许由 | D186: 2205 | E186: 听一听这位尧帝口中的贤士有何说法 | K186: =IF(J186="","",VLOOKUP(J186,EventNPC!A:E,5,FALSE)) ->  | O186: 10013 | P186: 16 | Q186: 21 | R186: 21 | T186: =IF(R186="","","-"&VLOOKUP(R186,EventConditionConfig!A:C,3,FALSE)&IF(S186="","",CHAR(10)&"-"&VLOOKUP(S186,EventConditionConfig!A:C,3,FALSE))) -> -达到境界：金丹-中期 | W186: =_xlfn.TEXTJOIN(";",1,X186,AA186) ->  | X186: =IF(Y186="","",L186+1) ->  | AF186: 3 | AG186: 10014 | AI186: 2205
T187: =IF(R187="","","-"&VLOOKUP(R187,EventConditionConfig!A:C,3,FALSE)&IF(S187="","",CHAR(10)&"-"&VLOOKUP(S187,EventConditionConfig!A:C,3,FALSE))) -> 
A188: =O188*100+P188 -> 1001401 | B188: =IF(B187="",MAX(AA186,X186,L186,B186,D186,AA185,X185,L185)+1,B187) -> 2226 | C188: 割草喝茶 | D188: =IF(E188="","",B188+1) ->  | J188: 106 | K188: =IF(J188="","",VLOOKUP(J188,EventNPC!A:E,5,FALSE)) -> 许由 | L188: =IF(M188="","",IF(P188=1,MAX(D188,B188)+1,MAX(B187,L187,D187,X187,AA187)+1)) -> 2227 | M188: （转身望向屋后的山坡）你来得也巧，我正想在开辟一块新药田。 | O188: =IF(O187="",O186+1,O187) -> 10014 | P188: =IF(O188=O187,P187+1,1) -> 1 | T188: =IF(R188="","","-"&VLOOKUP(R188,EventConditionConfig!A:C,3,FALSE)&IF(S188="","",CHAR(10)&"-"&VLOOKUP(S188,EventConditionConfig!A:C,3,FALSE))) ->  | W188: =_xlfn.TEXTJOIN(";",1,X188,AA188) ->  | X188: =IF(Y188="","",L188+1) ->  | AA188: =IF(AB188="","",X188+1) ->  | AF188: =IF(A188="","",IF(U188=1,"",IF(A189="",3,1))) -> 1 | AG188: =IF(AF188=1,A189,IF(AF188=3,LEFT(A188,5)+1,"")) -> 1001402 | AI188: 2227
A189: =O189*100+P189 -> 1001402 | B189: 2226 | C189: 割草喝茶 | D189: =IF(E189="","",B189+1) ->  | J189: 106 | K189: =IF(J189="","",VLOOKUP(J189,EventNPC!A:E,5,FALSE)) -> 许由 | L189: =IF(M189="","",IF(P189=1,MAX(D189,B189)+1,MAX(B188,L188,D188,X188,AA188)+1)) -> 2228 | M189: 后山有一块不错的地，离家有一点远平时我也懒得去打理，正好你来了帮我开辟出来吧。 | O189: 10014 | P189: =IF(O189=O188,P188+1,1) -> 2 | T189: =IF(R189="","","-"&VLOOKUP(R189,EventConditionConfig!A:C,3,FALSE)&IF(S189="","",CHAR(10)&"-"&VLOOKUP(S189,EventConditionConfig!A:C,3,FALSE))) ->  | U189: 1 | V189: =A190 -> 1001403 | W189: 2229 | X189: 2229 | Y189: ……前辈是让我干农活吗 | AF189: =IF(A189="","",IF(U189=1,"",IF(A190="",3,1))) ->  | AG189: =IF(AF189=1,A190,IF(AF189=3,LEFT(A189,5)+1,"")) ->  | AI189: 2229
A190: 1001403 | B190: 2226 | C190: 割草喝茶 | J190: 106 | K190: =IF(J190="","",VLOOKUP(J190,EventNPC!A:E,5,FALSE)) -> 许由 | L190: 2230 | M190: （笑）哈哈，正是，帮我清理一下灵田，回来请你喝茶。 | O190: 10014 | P190: 3 | Q190: =_xlfn.TEXTJOIN(";",1,R190:S190) ->  | T190: =IF(R190="","","-"&VLOOKUP(R190,EventConditionConfig!A:C,3,FALSE)&IF(S190="","",CHAR(10)&"-"&VLOOKUP(S190,EventConditionConfig!A:C,3,FALSE))) ->  | AF190: 1 | AG190: 1001404 | AI190: 2230
A191: =O191*100+P191 -> 1001404 | B191: 2226 | C191: 割草喝茶 | D191: =IF(E191="","",B191+1) ->  | J191: 106 | K191: =IF(J191="","",VLOOKUP(J191,EventNPC!A:E,5,FALSE)) -> 许由 | L191: =IF(M191="","",IF(P191=1,MAX(D191,B191)+1,MAX(B190,L190,D190,X190,AA190)+1)) -> 2231 | M191: 对了，在哪些杂草中不也会生长着一些药效不错的药草，这些药草在杂草中没有更好的成长起来，如果发现了药草帮我收集一些药草的种子回来。 | O191: 10014 | P191: =IF(O191=O190,P190+1,1) -> 4 | Q191: =_xlfn.TEXTJOIN(";",1,R191:S191) ->  | T191: =IF(R191="","","-"&VLOOKUP(R191,EventConditionConfig!A:C,3,FALSE)&IF(S191="","",CHAR(10)&"-"&VLOOKUP(S191,EventConditionConfig!A:C,3,FALSE))) ->  | AF191: =IF(A191="","",IF(U191=1,"",IF(A192="",3,1))) -> 1 | AG191: =IF(AF191=1,A192,IF(AF191=3,LEFT(A191,5)+1,"")) -> 1001405 | AI191: 2231
A192: =O192*100+P192 -> 1001405 | B192: 2226 | C192: 割草喝茶 | D192: =IF(E192="","",B192+1) ->  | J192: 106 | K192: =IF(J192="","",VLOOKUP(J192,EventNPC!A:E,5,FALSE)) -> 许由 | L192: =IF(M192="","",IF(P192=1,MAX(D192,B192)+1,MAX(B191,L191,D191,X191,AA191)+1)) -> 2232 | M192: 在开辟的过程中也请小心一点，后山也经常有妖怪出没。 | O192: 10014 | P192: =IF(O192=O191,P191+1,1) -> 5 | Q192: =_xlfn.TEXTJOIN(";",1,R192:S192) -> 10;11 | R192: 10 | S192: 11 | T192: =IF(R192="","","-"&VLOOKUP(R192,EventConditionConfig!A:C,3,FALSE)&IF(S192="","",CHAR(10)&"-"&VLOOKUP(S192,EventConditionConfig!A:C,3,FALSE))) -> -击败后山小妖 -收集灵草种子 | AF192: =IF(A192="","",IF(U192=1,"",IF(A193="",3,1))) -> 1 | AG192: =IF(AF192=1,A193,IF(AF192=3,LEFT(A192,5)+1,"")) -> 1001406 | AI192: 2232
A193: 1001406 | B193: 2226 | C193: 割草喝茶 | K193: =IF(J193="","",VLOOKUP(J193,EventNPC!A:E,5,FALSE)) ->  | L193: 2233 | M193: （你回到屋前，满身草屑与泥土，许由在烧水，煮茶） | O193: 10014 | P193: 6 | T193: =IF(R193="","","-"&VLOOKUP(R193,EventConditionConfig!A:C,3,FALSE)&IF(S193="","",CHAR(10)&"-"&VLOOKUP(S193,EventConditionConfig!A:C,3,FALSE))) ->  | AF193: 1 | AG193: 1001407 | AI193: 2233
A194: =O194*100+P194 -> 1001407 | B194: 2226 | C194: 割草喝茶 | D194: =IF(E194="","",B194+1) ->  | J194: 106 | K194: =IF(J194="","",VLOOKUP(J194,EventNPC!A:E,5,FALSE)) -> 许由 | L194: =IF(M194="","",IF(P194=1,MAX(D194,B194)+1,MAX(B193,L193,D193,X193,AA193)+1)) -> 2234 | M194: 动得挺快。坐，喝口茶。 | O194: 10014 | P194: =IF(O194=O193,P193+1,1) -> 7 | Q194: =_xlfn.TEXTJOIN(";",1,R194:S194) ->  | T194: =IF(R194="","","-"&VLOOKUP(R194,EventConditionConfig!A:C,3,FALSE)&IF(S194="","",CHAR(10)&"-"&VLOOKUP(S194,EventConditionConfig!A:C,3,FALSE))) ->  | U194: =IF(Y194="","",1) -> 1 | V194: =IF(U194=1,A195,"") -> 1001408 | W194: 2235 | X194: 2235 | Y194: 多谢前辈。 | AF194: =IF(A194="","",IF(U194=1,"",IF(A195="",3,1))) ->  | AG194: =IF(AF194=1,A195,IF(AF194=3,LEFT(A194,5)+1,"")) ->  | AI194: 2235
A195: =O195*100+P195 -> 1001408 | B195: 2226 | C195: 割草喝茶 | D195: =IF(E195="","",B195+1) ->  | K195: =IF(J195="","",VLOOKUP(J195,EventNPC!A:E,5,FALSE)) ->  | L195: =IF(M195="","",IF(P195=1,MAX(D195,B195)+1,MAX(B194,L194,D194,X194,AA194)+1)) -> 2236 | M195: （你获得了永久属性提升）（此处需要进一步处理） | O195: 10014 | P195: =IF(O195=O194,P194+1,1) -> 8 | Q195: =_xlfn.TEXTJOIN(";",1,R195:S195) ->  | T195: =IF(R195="","","-"&VLOOKUP(R195,EventConditionConfig!A:C,3,FALSE)&IF(S195="","",CHAR(10)&"-"&VLOOKUP(S195,EventConditionConfig!A:C,3,FALSE))) ->  | U195: =IF(Y195="","",1) ->  | V195: =IF(U195=1,A196,"") ->  | AF195: =IF(A195="","",IF(U195=1,"",IF(A196="",3,1))) -> 3 | AG195: =IF(AF195=1,A196,IF(AF195=3,LEFT(A195,5)+1,"")) -> 10015 | AI195: 2236
A197: =O197*100+P197 -> 1001501 | B197: =IF(B196="",MAX(AA195,X195,L195,B195,D195,AA194,X194,L194)+1,B196) -> 2237 | C197: 再来一杯 | D197: =IF(E197="","",B197+1) ->  | J197: 106 | K197: =IF(J197="","",VLOOKUP(J197,EventNPC!A:E,5,FALSE)) -> 许由 | L197: 3190 | M197: 今天的风有点不对，开来昨日你在后山的动静不小呀，山那头怕是要来些不速之客。 | O197: =IF(O196="",O195+1,O196) -> 10015 | P197: =IF(O197=O196,P196+1,1) -> 1 | Q197: =_xlfn.TEXTJOIN(";",1,R197:S197) ->  | T197: =IF(R197="","","-"&VLOOKUP(R197,EventConditionConfig!A:C,3,FALSE)&IF(S197="","",CHAR(10)&"-"&VLOOKUP(S197,EventConditionConfig!A:C,3,FALSE))) ->  | U197: =IF(Y197="","",1) ->  | V197: =IF(U197=1,A198,"") ->  | W197: =_xlfn.TEXTJOIN(";",1,X197,AA197) ->  | X197: =IF(Y197="","",L197+1) ->  | AA197: =IF(AB197="","",X197+1) ->  | AF197: =IF(A197="","",IF(U197=1,"",IF(A198="",3,1))) -> 1 | AG197: =IF(AF197=1,A198,IF(AF197=3,LEFT(A197,5)+1,"")) -> 1001502 | AI197: 3190
A198: =O198*100+P198 -> 1001502 | B198: 2237 | C198: 再来一杯 | D198: =IF(E198="","",B198+1) ->  | J198: 106 | K198: =IF(J198="","",VLOOKUP(J198,EventNPC!A:E,5,FALSE)) -> 许由 | L198: 3191 | M198: 你才帮我弄好灵草种子和灵田，别让妖兽给毁了。 | O198: 10015 | P198: =IF(O198=O197,P197+1,1) -> 2 | Q198: =_xlfn.TEXTJOIN(";",1,R198:S198) ->  | T198: =IF(R198="","","-"&VLOOKUP(R198,EventConditionConfig!A:C,3,FALSE)&IF(S198="","",CHAR(10)&"-"&VLOOKUP(S198,EventConditionConfig!A:C,3,FALSE))) ->  | AF198: =IF(A198="","",IF(U198=1,"",IF(A199="",3,1))) -> 1 | AG198: =IF(AF198=1,A199,IF(AF198=3,LEFT(A198,5)+1,"")) -> 1001503 | AI198: 3191
A199: =O199*100+P199 -> 1001503 | B199: 2237 | C199: 再来一杯 | D199: =IF(E199="","",B199+1) ->  | J199: 106 | K199: =IF(J199="","",VLOOKUP(J199,EventNPC!A:E,5,FALSE)) -> 许由 | L199: 3192 | M199: 你去走一趟。 | O199: 10015 | P199: =IF(O199=O198,P198+1,1) -> 3 | Q199: =_xlfn.TEXTJOIN(";",1,R199:S199) ->  | T199: =IF(R199="","","-"&VLOOKUP(R199,EventConditionConfig!A:C,3,FALSE)&IF(S199="","",CHAR(10)&"-"&VLOOKUP(S199,EventConditionConfig!A:C,3,FALSE))) ->  | U199: 1 | V199: 1001504 | W199: 3193 | X199: 3193 | Y199: 好的...... | AF199: =IF(A199="","",IF(U199=1,"",IF(A200="",3,1))) ->  | AG199: =IF(AF199=1,A200,IF(AF199=3,LEFT(A199,5)+1,"")) ->  | AI199: 3193
A200: 1001504 | B200: 2237 | C200: 再来一杯 | K200: =IF(J200="","",VLOOKUP(J200,EventNPC!A:E,5,FALSE)) ->  | L200: =IF(M200="","",IF(P200=1,MAX(D200,B200)+1,MAX(B199,L199,D199,X199,AA199)+1)) ->  | O200: 10015 | P200: 4 | Q200: 12 | R200: 12 | T200: =IF(R200="","","-"&VLOOKUP(R200,EventConditionConfig!A:C,3,FALSE)&IF(S200="","",CHAR(10)&"-"&VLOOKUP(S200,EventConditionConfig!A:C,3,FALSE))) -> -击败夜袭的妖兽 | AF200: 1 | AG200: 1001505 | AI200: 2237
A201: 1001505 | B201: 2237 | C201: 再来一杯 | K201: =IF(J201="","",VLOOKUP(J201,EventNPC!A:E,5,FALSE)) ->  | L201: 2238 | M201: （回到屋前，看到许由又在烧水，煮茶，和上次一样） | O201: 10015 | P201: 5 | T201: =IF(R201="","","-"&VLOOKUP(R201,EventConditionConfig!A:C,3,FALSE)&IF(S201="","",CHAR(10)&"-"&VLOOKUP(S201,EventConditionConfig!A:C,3,FALSE))) ->  | AF201: 1 | AG201: 1001506 | AI201: 2238
A202: =O202*100+P202 -> 1001506 | B202: 2237 | C202: 再来一杯 | D202: =IF(E202="","",B202+1) ->  | J202: 106 | K202: =IF(J202="","",VLOOKUP(J202,EventNPC!A:E,5,FALSE)) -> 许由 | L202: =IF(M202="","",IF(P202=1,MAX(D202,B202)+1,MAX(B201,L201,D201,X201,AA201)+1)) -> 2239 | M202: 来，喝茶。 | O202: 10015 | P202: =IF(O202=O201,P201+1,1) -> 6 | Q202: =_xlfn.TEXTJOIN(";",1,R202:S202) ->  | T202: =IF(R202="","","-"&VLOOKUP(R202,EventConditionConfig!A:C,3,FALSE)&IF(S202="","",CHAR(10)&"-"&VLOOKUP(S202,EventConditionConfig!A:C,3,FALSE))) ->  | AF202: =IF(A202="","",IF(U202=1,"",IF(A203="",3,1))) -> 1 | AG202: =IF(AF202=1,A203,IF(AF202=3,LEFT(A202,5)+1,"")) -> 1001507 | AI202: 2239
A203: =O203*100+P203 -> 1001507 | B203: 2237 | C203: 再来一杯 | D203: =IF(E203="","",B203+1) ->  | J203: 100 | K203: =IF(J203="","",VLOOKUP(J203,EventNPC!A:E,5,FALSE)) -> 玩家 | L203: =IF(M203="","",IF(P203=1,MAX(D203,B203)+1,MAX(B202,L202,D202,X202,AA202)+1)) -> 2240 | M203: （心中默念...这个精英妖兽，可费我一些功夫，怎么又是茶？） | O203: 10015 | P203: =IF(O203=O202,P202+1,1) -> 7 | Q203: =_xlfn.TEXTJOIN(";",1,R203:S203) ->  | T203: =IF(R203="","","-"&VLOOKUP(R203,EventConditionConfig!A:C,3,FALSE)&IF(S203="","",CHAR(10)&"-"&VLOOKUP(S203,EventConditionConfig!A:C,3,FALSE))) ->  | U203: 1 | V203: 1001508 | W203: 2241 | X203: 2241 | Y203: （你没说话，默默喝下） | AF203: =IF(A203="","",IF(U203=1,"",IF(A204="",3,1))) ->  | AG203: =IF(AF203=1,A204,IF(AF203=3,LEFT(A203,5)+1,"")) ->  | AI203: 2241
... 240 more rows

Sheet EventConditionConfig
A1: ID | B1: message | E1: Operation | G1: ConditionType | H1: ConditionPara | I1: finishCount | J1: RelatedEvents | L1: SkiptoIds
A2: int | B2: int | E2: int | G2: int | H2: int[] | I2: int | J2: int[] | L2: int[]
A4: ID | B4: 描述 | E4: 与0 或1 | G4: 条件判断类型 | H4: 条件判断值 | I4: 条件完成次数or数量 | J4: 关联的事件Id | K4: 提示 | L4: 跳转Id
A5: 1 | B5: 2078 | C5: 拥有金币 | D5: =CONCATENATE("- ",C5,"{0}/{1}") -> - 拥有金币{0}/{1} | G5: 1 | H5: 1001 | I5: 10 | L5: 1;2;3;4
A6: 2 | B6: 2079 | C6: 达到境界：筑基-中期 | D6: =CONCATENATE("- ",C6,"{0}/{1}") -> - 达到境界：筑基-中期{0}/{1} | G6: 3 | H6: 11 | I6: 1 | L6: 1;2;3;4
A7: 3 | B7: 2080 | C7: 击杀魔休 | D7: - 击杀魔休{0}/{1} | G7: 5 | H7: 1001 | I7: 5 | J7: 9031 | L7: 1;2;3;4
A8: 4 | B8: 2081 | C8: 获得钻石 | D8: - 获得钻石{0}/{1} | G8: 6 | H8: 1002 | I8: 10 | L8: 1;2;3;4
A9: 5 | B9: 2082 | C9: 使用神识 | D9: - 使用神识{0}/{1} | G9: 8 | I9: 1 | L9: 1;2;3;4
A10: 6 | B10: 2094 | C10: 继续飞行一段时间 | G10: 9 | I10: 6 | L10: 1;2;3;4
A11: 7 | B11: 2843 | C11: 击败结界兽 | D11: - 击败结界兽{0}/{1} | G11: 5 | H11: 1002 | I11: 1 | L11: 1;2;3;4
A12: 8 | B12: 2844 | C12: 达到境界：筑基-后期 | D12: - 达到境界：筑基-后期{0}/{1} | G12: 3 | H12: 21 | I12: 1 | L12: 1;2;3;4
A13: 9 | B13: 2845 | C13: 击杀妖兽 | D13: - 击杀妖兽{0}/{1} | G13: 5 | H13: 1003 | I13: 1 | J13: 30003 | L13: 1;2;3;4
A14: 10 | B14: 2846 | C14: 击败后山小妖 | D14: - 击败后山小妖{0}/{1} | G14: 5 | H14: 1004 | I14: 3 | J14: 30004 | L14: 1;2;3;4
A15: 11 | B15: 2847 | C15: 收集灵草种子 | D15: - 收集灵草种子{0}/{1} | G15: 6 | H15: 20003 | I15: 3 | J15: 30011 | L15: 1;2;3;4
A16: 12 | B16: 2848 | C16: 击败夜袭的妖兽 | D16: - 击败夜袭的妖兽{0}/{1} | G16: 5 | H16: 1005 | I16: 1 | J16: 30005 | L16: 1;2;3;4
A17: 13 | B17: 2849 | C17: 击败峰顶的妖王 | D17: - 击败峰顶的妖王{0}/{1} | G17: 5 | H17: 1006 | I17: 1 | J17: 30006 | L17: 1;2;3;4
A18: 14 | B18: 2850 | C18: 境界达到[金丹-前期] | D18: - 境界达到[金丹-前期]{0}/{1} | G18: 3 | H18: 31 | I18: 1 | L18: 1;2;3;4
A19: 15 | B19: 2851 | C19: 击败仙山的阵眼妖兽 | D19: - 击败仙山的阵眼妖兽{0}/{1} | G19: 5 | H19: 1007 | I19: 1 | J19: 30007 | L19: 1;2;3;4
A20: 17 | B20: 2852 | C20: 击杀灵兽获得天肥 | D20: =CONCATENATE("- ",C20,"{0}/{1}") -> - 击杀灵兽获得天肥{0}/{1} | G20: 5 | H20: 1008 | I20: 1 | J20: 30008 | L20: 1;2;3;4
A21: 18 | B21: 2853 | C21: 获得一件袈裟 | D21: - 获得一件袈裟{0}/{1} | G21: 6 | H21: 1301 | I21: 1 | J21: 30009 | L21: 1;2;3;4
A22: 19 | B22: 2854 | C22: 夺回琉璃盏 | D22: - 夺回琉璃盏{0}/{1} | G22: 6 | H22: 1001 | I22: 1 | J22: 30010 | L22: 1;2;3;4
A23: 20 | B23: 2855 | C23: 给予渡劫丹 | D23: - 给予渡劫丹{0}/{1} | G23: 1 | H23: 1001 | I23: 1 | L23: 1;2;3;4
A24: 21 | B24: 2856 | C24: 达到境界：金丹-中期 | D24: - 达到境界：金丹-中期{0}/{1} | G24: 3 | H24: 41 | I24: 1 | L24: 1;2;3;4
A25: 22 | B25: 2857 | C25: 达到境界：金丹-后期 | D25: =CONCATENATE("- ",C25,"{0}/{1}") -> - 达到境界：金丹-后期{0}/{1} | G25: 3 | H25: 51 | I25: 1 | L25: 1;2;3;4
A26: 23 | B26: 2858 | C26: 达到境界：元婴-前期 | D26: =CONCATENATE("- ",C26,"{0}/{1}") -> - 达到境界：元婴-前期{0}/{1} | G26: 3 | H26: 61 | I26: 1 | L26: 1;2;3;4
A27: 24 | B27: 2859 | C27: 达到境界：元婴-中期 | D27: - 达到境界：元婴-中期{0}/{1} | G27: 3 | H27: 71 | I27: 1 | L27: 1;2;3;4
A28: 25 | B28: 2860 | C28: 达到境界：元婴-后期 | D28: - 达到境界：元婴-后期{0}/{1} | G28: 3 | H28: 81 | I28: 1 | L28: 1;2;3;4
A29: 26 | B29: 2861 | C29: 达到境界：化神-前期 | D29: =CONCATENATE("- ",C29,"{0}/{1}") -> - 达到境界：化神-前期{0}/{1} | G29: 3 | H29: 91 | I29: 1 | L29: 1;2;3;4

Sheet 条件类型查询
A1: ID | B1: 条件判断类型 | C1: 条件判断值 | D1: 条件完成次数or数量 | E1: 额外文本 | F1: 不可用 | G1: 是否可用于事件
A2: 1 | B2: 拥有特定道具 | C2: 道具ID | D2: 数量≥ | E2: 检测背包道具 | G2: 1
A3: 2 | B3: 灵根判定 | C3: 哪个灵根 | D3: 灵根值≥ | F3: 1
A4: 3 | B4: 境界判断 | C4: 境界id | G4: 1
A5: 5 | B5: 战斗胜利 | C5: 战斗组ID | D5: 胜利次数≥
A6: 6 | B6: 获得道具 | C6: 道具的ID | D6: 数量≥ | E6: 探测出事件才开始检测
A7: 7 | B7: 触发概率 | C7: 概率值 1000=100% | G7: 1
A8: 8 | B8: 使用神识 | D8: 数量≥
A9: 9 | B9: 游戏在线多少时长（秒） | D9: 时间≥（秒） | G9: 1
A10: 10 | B10: 前置事件 | C10: 事件ID | G10: 1

Sheet 产出tag查询
A1: 产出TAG | B1: 产出类型
A2: 1 | B2: 金币
A3: 2 | B3: 修为
A4: 3 | B4: 功法灵气
A5: 4 | B5: 法宝灵韵
A6: 5 | B6: 功法碎片
A7: 6 | B7: 法宝碎片
A8: 7 | B8: 修为丹
A9: 8 | B9: 天材地宝
A10: 9 | B10: 渡劫丹
A11: 10 | B11: 好感度礼物
A12: 11 | B12: 心情礼物
A13: 12
A14: 13
A15: 14
A16: 15
A17: 16
A18: 17
A19: 18
A20: 19
A21: 20
A22: 21
A23: 22

Sheet EventNPC
A1: ID | B1: name | C1: ID | D1: DaoyouID
A2: int | B2: int | C2: int | D2: int
A4: ID | B4: 名字 | C4: 半身像icon | D4: 道友ID | E4: 名称
A5: 1 | E5: 玩家
A6: 2 | D6: 1 | E6: 道友1
A7: 3 | D7: 2 | E7: 道友2
A8: 4 | D8: 3 | E8: 道友3
A9: 5 | D9: 4 | E9: 道友4
A10: 6 | D10: 5 | E10: 道友5
A11: 7 | D11: 6 | E11: 道友6
A12: 8 | D12: 7 | E12: 道友7
A13: 9 | D13: 8 | E13: 道友8
A14: 10 | D14: 9 | E14: 道友9
A15: 11 | D15: 10 | E15: 道友10
A17: 100 | B17: 3000 | E17: 玩家
A18: 101 | B18: 3001 | E18: 蜩鸟
A19: 102 | B19: 3002 | E19: 小麻雀
A20: 103 | B20: 3003 | E20: 疯道人
A21: 104 | B21: 3004 | E21: 痴道人
A22: 105 | B22: 3005 | E22: 尧帝
A23: 106 | B23: 3006 | E23: 许由
A24: 107 | B24: 3007 | E24: 村名甲
A25: 108 | B25: 3008 | E25: 村名乙
A26: 109 | B26: 3009 | E26: 村名丙
A27: 110 | B27: 3010 | E27: 樗木之灵
A28: 111 | E28: 惠子
A29: 112 | B29: 3021 | E29: 风无咎
A30: 113 | B30: 3034 | E30: 北海剑妖
A31: 114 | B31: 3067 | E31: 拦路妖兽

Sheet XianTuLogConfig
A1: ID | B1: EventType | C1: Title | D1: Desc | E1: BigMapID
A2: int | B2: int | C2: int | D2: int | E2: int
A4: ID | B4: 1主线 2事件 | C4: 名称 | D4: 描述 | E4: 属于哪个章节
A5: 1 | B5: 1 | C5: 2087 | D5: 2089 | E5: 1 | F5: 第一章.逍遥游 | G5: 多次渡劫失败的你，误入“无何有之乡”，在这里受到了列子的指引，踏上了寻找七道心境的修仙之路。
A6: 2 | B6: 2 | C6: 2088 | D6: 2090 | E6: 1 | F6: 无用的大葫芦 | G6: 惠子种出了巨大葫芦，他觉得毫无用处，非常生气！
A7: 3 | B7: 2 | C7: 2088 | D7: 2090 | E7: 2 | F7: 无用的大葫芦 | G7: 惠子种出了巨大葫芦，他觉得毫无用处，非常生气！
A8: 4 | B8: 2 | C8: 2088 | D8: 2090 | E8: 3 | F8: 无用的大葫芦 | G8: 惠子种出了巨大葫芦，他觉得毫无用处，非常生气！
